Department Family,Entity,Date,Expense Type,Expense Area,Supplier,Transaction Number,Amount,Item Description
BEIS,UKRI - AHRC,01/07/2019,Non-staff travel and subsistance,GCRF - Programme Delivery,Non Employee Expenses Supplier,98525023,216.50,Non-staff travel and subsistance
BEIS,UKRI - AHRC,01/07/2019,Non-staff travel and subsistance,GCRF - Programme Delivery,Non Employee Expenses Supplier,98525024,172.20,Non-staff travel and subsistance
BEIS,UKRI - AHRC,01/07/2019,Non-staff travel and subsistance,GCRF - Programme Delivery,Non Employee Expenses Supplier,98525026,37.50,Non-staff travel and subsistance
BEIS,UKRI - AHRC,01/07/2019,Non-staff travel and subsistance,GCRF - Programme Delivery,Non Employee Expenses Supplier,98525027,145.00,Non-staff travel and subsistance
BEIS,UKRI - AHRC,01/07/2019,Non-staff travel and subsistance,GCRF - Programme Delivery,Non Employee Expenses Supplier,98525028,492.47,Non-staff travel and subsistance
BEIS,UKRI - AHRC,01/07/2019,Non-staff travel and subsistance,GCRF - Programme Delivery,Non Employee Expenses Supplier,98525029,340.50,Non-staff travel and subsistance
BEIS,UKRI - AHRC,01/07/2019,Non-staff travel and subsistance,GCRF - Programme Delivery,Non Employee Expenses Supplier,98525030,178.20,Non-staff travel and subsistance
BEIS,UKRI - AHRC,01/07/2019,Non-staff travel and subsistance,Operations,Non Employee Expenses Supplier,98525031,68.60,Non-staff travel and subsistance
BEIS,UKRI - AHRC,01/07/2019,Contract Staff,PSU Project Office,Alexander Mann Solutions Ltd,98525709,2795.58,Contract Staff
BEIS,UKRI - AHRC,01/07/2019,T&S UK - Public Transport,Digital Arts and Humanities and Creative Industries,Unspecified,98526027,4.80,T&S UK - Public Transport
BEIS,UKRI - AHRC,01/07/2019,T&S UK - Subsistence,Digital Arts and Humanities and Creative Industries,Unspecified,98526027,25.52,T&S UK - Subsistence
BEIS,UKRI - AHRC,01/07/2019,T&S UK - Subsistence,Digital Arts and Humanities and Creative Industries,Unspecified,98526027,8.50,T&S UK - Subsistence
BEIS,UKRI - AHRC,02/07/2019,Research Grant Expenditure,RCUK Global Challenges Research Fund (RCUK GCRF),UKRI - Medical Research Council,98522394,49867.32,Research Grant Expenditure
BEIS,UKRI - AHRC,02/07/2019,Research Grant Expenditure,RCUK Global Challenges Research Fund (RCUK GCRF),UKRI - Medical Research Council,98523015,-29425.91,Research Grant Expenditure
BEIS,UKRI - AHRC,02/07/2019,T&S UK - Subsistence,International Partnership and Engagement,Unspecified,98526631,25.00,T&S UK - Subsistence
BEIS,UKRI - AHRC,02/07/2019,T&S UK - Subsistence,International Partnership and Engagement,Unspecified,98526631,4.59,T&S UK - Subsistence
BEIS,UKRI - AHRC,02/07/2019,T&S UK - Subsistence,International Partnership and Engagement,Unspecified,98526631,10.00,T&S UK - Subsistence
BEIS,UKRI - AHRC,03/07/2019,Research Grant Expenditure,International Placement Scheme,The University Of Texas At Austin,98527010,1564.96,Research Grant Expenditure
BEIS,UKRI - AHRC,03/07/2019,T&S UK - Vehicle Hire,Operations,Unspecified,98527567,21.00,T&S UK - Vehicle Hire
BEIS,UKRI - AHRC,03/07/2019,Recruitment Costs,Secretariat,The Guardian,98527918,-30.00,Recruitment Costs
BEIS,UKRI - AHRC,03/07/2019,Recruitment Costs,Secretariat,The Guardian,98527918,1080.00,Recruitment Costs
BEIS,UKRI - AHRC,03/07/2019,Recruitment Costs,Secretariat,The Guardian,98527918,-150.00,Recruitment Costs
BEIS,UKRI - AHRC,04/07/2019,T&S UK - Other Charges,SMT,Unspecified,98529917,4.75,T&S UK - Other Charges
BEIS,UKRI - AHRC,04/07/2019,T&S UK - Public Transport,SMT,Unspecified,98529917,10.00,T&S UK - Public Transport
BEIS,UKRI - AHRC,04/07/2019,T&S UK - Public Transport,SMT,Unspecified,98529917,20.50,T&S UK - Public Transport
BEIS,UKRI - AHRC,04/07/2019,T&S UK - Subsistence,SMT,Unspecified,98529917,38.46,T&S UK - Subsistence
BEIS,UKRI - AHRC,05/07/2019,Consultancy Services,HR,Everwell Occupational Health Ltd,98525703,144.00,Consultancy Services
BEIS,UKRI - AHRC,05/07/2019,Consultancy Services,HR,Everwell Occupational Health Ltd,98525703,144.00,Consultancy Services
BEIS,UKRI - AHRC,08/07/2019,Non-staff travel and subsistance,SMT,Non Employee Expenses Supplier,98531277,48.00,Non-staff travel and subsistance
BEIS,UKRI - AHRC,08/07/2019,Non-staff travel and subsistance,SMT,Non Employee Expenses Supplier,98531278,45.52,Non-staff travel and subsistance
BEIS,UKRI - AHRC,08/07/2019,Non-staff travel and subsistance,SMT,Non Employee Expenses Supplier,98531279,67.79,Non-staff travel and subsistance
BEIS,UKRI - AHRC,08/07/2019,Non-staff travel and subsistance,SMT,Non Employee Expenses Supplier,98531280,36.12,Non-staff travel and subsistance
BEIS,UKRI - AHRC,08/07/2019,Non-staff travel and subsistance,SMT,Non Employee Expenses Supplier,98531281,213.53,Non-staff travel and subsistance
BEIS,UKRI - AHRC,08/07/2019,Non-staff travel and subsistance,SMT,Non Employee Expenses Supplier,98531282,143.90,Non-staff travel and subsistance
BEIS,UKRI - AHRC,08/07/2019,Non-staff travel and subsistance,SMT,Non Employee Expenses Supplier,98531283,161.40,Non-staff travel and subsistance
BEIS,UKRI - AHRC,08/07/2019,Non-staff travel and subsistance,SMT,Non Employee Expenses Supplier,98531284,76.00,Non-staff travel and subsistance
BEIS,UKRI - AHRC,08/07/2019,Non-staff travel and subsistance,SMT,Non Employee Expenses Supplier,98531285,770.57,Non-staff travel and subsistance
BEIS,UKRI - AHRC,08/07/2019,Non-staff travel and subsistance,SMT,Non Employee Expenses Supplier,98531286,388.60,Non-staff travel and subsistance
BEIS,UKRI - AHRC,08/07/2019,Non-staff travel and subsistance,SMT,Non Employee Expenses Supplier,98531287,110.75,Non-staff travel and subsistance
BEIS,UKRI - AHRC,09/07/2019,Secondments,PSU JRS,UKRI - Natural Environment Research Council,98526379,8961.26,Secondments
BEIS,UKRI - AHRC,09/07/2019,Contract Staff,PSU Project Office,Alexander Mann Solutions Ltd,98532376,2141.43,Contract Staff
BEIS,UKRI - AHRC,09/07/2019,Contract Staff,PSU Project Office,Alexander Mann Solutions Ltd,98532376,95.03,Contract Staff
BEIS,UKRI - AHRC,09/07/2019,Other Staff Benefits,HR,EDENRED (UK GROUP) LTD,98532586,589.90,Other Staff Benefits
BEIS,UKRI - AHRC,09/07/2019,T&S UK - Mileage,International Partnership and Engagement,Unspecified,98532645,56.88,T&S UK - Mileage
BEIS,UKRI - AHRC,09/07/2019,T&S UK - Mileage,Digital Arts and Humanities and Creative Industries,Unspecified,98532646,89.55,T&S UK - Mileage
BEIS,UKRI - AHRC,09/07/2019,T&S UK - Other Charges,Digital Arts and Humanities and Creative Industries,Unspecified,98532646,16.62,T&S UK - Other Charges
BEIS,UKRI - AHRC,09/07/2019,T&S UK - Parking Tolls Congestion Charges,Digital Arts and Humanities and Creative Industries,Unspecified,98532646,8.00,T&S UK - Parking Tolls Congestion Charges
BEIS,UKRI - AHRC,09/07/2019,T&S UK - Public Transport,Digital Arts and Humanities and Creative Industries,Unspecified,98532646,2.00,T&S UK - Public Transport
BEIS,UKRI - AHRC,09/07/2019,T&S UK - Public Transport,Digital Arts and Humanities and Creative Industries,Unspecified,98532646,15.00,T&S UK - Public Transport
BEIS,UKRI - AHRC,09/07/2019,T&S UK - Subsistence,Digital Arts and Humanities and Creative Industries,Unspecified,98532646,22.59,T&S UK - Subsistence
BEIS,UKRI - AHRC,09/07/2019,T&S UK - Subsistence,Digital Arts and Humanities and Creative Industries,Unspecified,98532646,15.00,T&S UK - Subsistence
BEIS,UKRI - AHRC,09/07/2019,T&S UK - Subsistence,Digital Arts and Humanities and Creative Industries,Unspecified,98532646,25.00,T&S UK - Subsistence
BEIS,UKRI - AHRC,09/07/2019,T&S UK - Public Transport,Corporate Services,Unspecified,98532647,13.80,T&S UK - Public Transport
BEIS,UKRI - AHRC,09/07/2019,T&S UK - Public Transport,Public and Stakeholder Engagement,Unspecified,98532648,2.50,T&S UK - Public Transport
BEIS,UKRI - AHRC,09/07/2019,T&S UK - Subsistence,Public and Stakeholder Engagement,Unspecified,98532648,10.70,T&S UK - Subsistence
BEIS,UKRI - AHRC,09/07/2019,T&S UK - Subsistence,Public and Stakeholder Engagement,Unspecified,98532648,12.50,T&S UK - Subsistence
BEIS,UKRI - AHRC,09/07/2019,T&S UK - Subsistence,Public and Stakeholder Engagement,Unspecified,98532648,14.75,T&S UK - Subsistence
BEIS,UKRI - AHRC,09/07/2019,T&S UK - Subsistence,Public and Stakeholder Engagement,Unspecified,98532648,15.00,T&S UK - Subsistence
BEIS,UKRI - AHRC,10/07/2019,T&S UK - Mileage,HR,Unspecified,98519536,94.50,T&S UK - Mileage
BEIS,UKRI - AHRC,10/07/2019,T&S UK - Public Transport,"History, Heritage, Languages and Literature",Unspecified,98533414,3.30,T&S UK - Public Transport
BEIS,UKRI - AHRC,10/07/2019,T&S UK - Public Transport,"History, Heritage, Languages and Literature",Unspecified,98533414,20.60,T&S UK - Public Transport
BEIS,UKRI - AHRC,10/07/2019,T&S UK - Subsistence,"History, Heritage, Languages and Literature",Unspecified,98533414,104.87,T&S UK - Subsistence
BEIS,UKRI - AHRC,10/07/2019,T&S UK - Subsistence,"History, Heritage, Languages and Literature",Unspecified,98533414,16.40,T&S UK - Subsistence
BEIS,UKRI - AHRC,10/07/2019,T&S UK - Subsistence,"History, Heritage, Languages and Literature",Unspecified,98533414,25.00,T&S UK - Subsistence
BEIS,UKRI - AHRC,10/07/2019,Recruitment Costs,Corporate Services,Onefix Recruitment Ltd,98533888,150.00,Recruitment Costs
BEIS,UKRI - AHRC,11/07/2019,Financial Services,Corporate Services,CCI Credit Management Ltd,98217417,3.72,Financial Services
BEIS,UKRI - AHRC,11/07/2019,Financial Services,Corporate Services,CCI Credit Management Ltd,98262522,3.72,Financial Services
BEIS,UKRI - AHRC,11/07/2019,Financial Services,Corporate Services,CCI Credit Management Ltd,98270050,3.72,Financial Services
BEIS,UKRI - AHRC,11/07/2019,Financial Services,Corporate Services,CCI Credit Management Ltd,98296738,3.72,Financial Services
BEIS,UKRI - AHRC,11/07/2019,Financial Services,Corporate Services,CCI Credit Management Ltd,98318622,3.72,Financial Services
BEIS,UKRI - AHRC,11/07/2019,Financial Services,Corporate Services,CCI Credit Management Ltd,98370223,3.72,Financial Services
BEIS,UKRI - AHRC,11/07/2019,Financial Services,Corporate Services,CCI Credit Management Ltd,98377291,1.32,Financial Services
BEIS,UKRI - AHRC,11/07/2019,Financial Services,Corporate Services,CCI Credit Management Ltd,98385534,1.32,Financial Services
BEIS,UKRI - AHRC,11/07/2019,Financial Services,Corporate Services,CCI Credit Management Ltd,98418733,1.32,Financial Services
BEIS,UKRI - AHRC,11/07/2019,Financial Services,Corporate Services,CCI Credit Management Ltd,98445711,1.32,Financial Services
BEIS,UKRI - AHRC,11/07/2019,Financial Services,Corporate Services,CCI Credit Management Ltd,98470934,1.32,Financial Services
BEIS,UKRI - AHRC,11/07/2019,Financial Services,Corporate Services,CCI Credit Management Ltd,98507122,1.32,Financial Services
BEIS,UKRI - AHRC,11/07/2019,Financial Services,Corporate Services,CCI Credit Management Ltd,98510519,1.32,Financial Services
BEIS,UKRI - AHRC,11/07/2019,Health & Safety (inc. Medicals & Opticians),HR,Swindon Occupational Medical Services Ltd,98532369,525.00,Health & Safety (inc. Medicals & Opticians)
BEIS,UKRI - AHRC,11/07/2019,Recruitment Costs,Operations,UK Shared Business Services Ltd,98533517,32.43,Recruitment Costs
BEIS,UKRI - AHRC,11/07/2019,Financial Services,Corporate Services,CCI Credit Management Ltd,98535744,1.32,Financial Services
BEIS,UKRI - AHRC,11/07/2019,T&S UK - Public Transport,SMT,Unspecified,98535820,33.00,T&S UK - Public Transport
BEIS,UKRI - AHRC,11/07/2019,T&S UK - Subsistence,SMT,Unspecified,98535820,15.35,T&S UK - Subsistence
BEIS,UKRI - AHRC,11/07/2019,T&S UK - Subsistence,SMT,Unspecified,98535820,19.10,T&S UK - Subsistence
BEIS,UKRI - AHRC,11/07/2019,T&S UK - Subsistence,SMT,Unspecified,98535820,44.30,T&S UK - Subsistence
BEIS,UKRI - AHRC,11/07/2019,T&S UK - Subsistence,SMT,Unspecified,98535820,5.00,T&S UK - Subsistence
BEIS,UKRI - AHRC,11/07/2019,T&S UK - Vehicle Hire,SMT,Unspecified,98535820,45.00,T&S UK - Vehicle Hire
BEIS,UKRI - AHRC,11/07/2019,T&S UK - Mileage,SMT,Unspecified,98535821,45.00,T&S UK - Mileage
BEIS,UKRI - AHRC,11/07/2019,Health & Safety (inc. Medicals & Opticians),SMT,Unspecified,98535822,4.25,Health & Safety (inc. Medicals & Opticians)
BEIS,UKRI - AHRC,11/07/2019,T&S UK - Other Charges,SMT,Unspecified,98535822,12.25,T&S UK - Other Charges
BEIS,UKRI - AHRC,11/07/2019,T&S UK - Parking Tolls Congestion Charges,SMT,Unspecified,98535822,7.30,T&S UK - Parking Tolls Congestion Charges
BEIS,UKRI - AHRC,11/07/2019,T&S UK - Public Transport,SMT,Unspecified,98535822,24.80,T&S UK - Public Transport
BEIS,UKRI - AHRC,11/07/2019,T&S UK - Subsistence,SMT,Unspecified,98535822,5.15,T&S UK - Subsistence
BEIS,UKRI - AHRC,11/07/2019,T&S UK - Subsistence,SMT,Unspecified,98535822,26.65,T&S UK - Subsistence
BEIS,UKRI - AHRC,11/07/2019,T&S UK - Subsistence,SMT,Unspecified,98535822,10.41,T&S UK - Subsistence
BEIS,UKRI - AHRC,11/07/2019,T&S UK - Mileage,Digital Arts and Humanities and Creative Industries,Unspecified,98535823,26.10,T&S UK - Mileage
BEIS,UKRI - AHRC,11/07/2019,T&S UK - Parking Tolls Congestion Charges,Digital Arts and Humanities and Creative Industries,Unspecified,98535823,46.79,T&S UK - Parking Tolls Congestion Charges
BEIS,UKRI - AHRC,11/07/2019,T&S UK - Public Transport,Digital Arts and Humanities and Creative Industries,Unspecified,98535823,30.19,T&S UK - Public Transport
BEIS,UKRI - AHRC,11/07/2019,T&S UK - Subsistence,Digital Arts and Humanities and Creative Industries,Unspecified,98535823,4.70,T&S UK - Subsistence
BEIS,UKRI - AHRC,11/07/2019,T&S UK - Subsistence,Digital Arts and Humanities and Creative Industries,Unspecified,98535823,29.48,T&S UK - Subsistence
BEIS,UKRI - AHRC,11/07/2019,T&S UK - Subsistence,Digital Arts and Humanities and Creative Industries,Unspecified,98535823,26.10,T&S UK - Subsistence
BEIS,UKRI - AHRC,11/07/2019,T&S UK - Subsistence,Digital Arts and Humanities and Creative Industries,Unspecified,98535823,5.90,T&S UK - Subsistence
BEIS,UKRI - AHRC,11/07/2019,T&S UK - Subsistence,Digital Arts and Humanities and Creative Industries,Unspecified,98535823,5.00,T&S UK - Subsistence
BEIS,UKRI - AHRC,11/07/2019,T&S UK - Subsistence,Strategy and Evidence,Unspecified,98535824,25.00,T&S UK - Subsistence
BEIS,UKRI - AHRC,11/07/2019,T&S UK - Subsistence,Strategy and Evidence,Unspecified,98535824,2.40,T&S UK - Subsistence
BEIS,UKRI - AHRC,11/07/2019,T&S UK - Public Transport,Secretariat,Unspecified,98535825,48.20,T&S UK - Public Transport
BEIS,UKRI - AHRC,11/07/2019,T&S UK - Subsistence,Secretariat,Unspecified,98535825,8.49,T&S UK - Subsistence
BEIS,UKRI - AHRC,11/07/2019,T&S UK - Subsistence,Secretariat,Unspecified,98535825,8.58,T&S UK - Subsistence
BEIS,UKRI - AHRC,11/07/2019,T&S UK - Subsistence,Secretariat,Unspecified,98535825,3.70,T&S UK - Subsistence
BEIS,UKRI - AHRC,11/07/2019,T&S UK - Subsistence,Secretariat,Unspecified,98535825,3.25,T&S UK - Subsistence
BEIS,UKRI - AHRC,11/07/2019,T&S UK - Subsistence,IS,Unspecified,98535826,22.35,T&S UK - Subsistence
BEIS,UKRI - AHRC,12/07/2019,Contract Staff,Finance,Hays Specialist Recruitment Ltd,98239751,1176.31,Contract Staff
BEIS,UKRI - AHRC,12/07/2019,Contract Staff,Finance,Hays Specialist Recruitment Ltd,98239751,389.93,Contract Staff
BEIS,UKRI - AHRC,12/07/2019,Contract Staff,PSU JRS,Alexander Mann Solutions Ltd,98535392,5819.30,Contract Staff
BEIS,UKRI - AHRC,12/07/2019,Contract Staff,PSU Project Office,Alexander Mann Solutions Ltd,98535393,2795.58,Contract Staff
BEIS,UKRI - AHRC,12/07/2019,NI Payable Salaries,Balance Sheet,HM Revenue & Customs,98536301,54974.63,NI Payable Salaries
BEIS,UKRI - AHRC,12/07/2019,PAYE Payable Salaries,Balance Sheet,HM Revenue & Customs,98536302,37039.12,PAYE Payable Salaries
BEIS,UKRI - AHRC,12/07/2019,Student Loans,Balance Sheet,HM Revenue & Customs,98536303,4221.00,Student Loans
BEIS,UKRI - AHRC,12/07/2019,Apprenticeship Levy,Corporate Services,HM Revenue & Customs,98536304,1361.00,Apprenticeship Levy
BEIS,UKRI - AHRC,15/07/2019,Non-staff travel and subsistance,GCRF - Programme Delivery,Non Employee Expenses Supplier,98535433,226.55,Non-staff travel and subsistance
BEIS,UKRI - AHRC,15/07/2019,Non-staff travel and subsistance,GCRF - Programme Delivery,Non Employee Expenses Supplier,98535434,120.70,Non-staff travel and subsistance
BEIS,UKRI - AHRC,15/07/2019,Non-staff travel and subsistance,International Development and Area Studies,Non Employee Expenses Supplier,98535435,116.10,Non-staff travel and subsistance
BEIS,UKRI - AHRC,15/07/2019,Non-staff travel and subsistance,International Development and Area Studies,Non Employee Expenses Supplier,98535436,91.74,Non-staff travel and subsistance
BEIS,UKRI - AHRC,15/07/2019,Non-staff travel and subsistance,International Development and Area Studies,Non Employee Expenses Supplier,98535437,25.40,Non-staff travel and subsistance
BEIS,UKRI - AHRC,15/07/2019,Non-staff travel and subsistance,International Development and Area Studies,Non Employee Expenses Supplier,98535438,317.75,Non-staff travel and subsistance
BEIS,UKRI - AHRC,15/07/2019,Non-staff travel and subsistance,"History, Heritage, Languages and Literature",Non Employee Expenses Supplier,98535439,17.45,Non-staff travel and subsistance
BEIS,UKRI - AHRC,15/07/2019,Non-staff travel and subsistance,"History, Heritage, Languages and Literature",Non Employee Expenses Supplier,98535440,67.20,Non-staff travel and subsistance
BEIS,UKRI - AHRC,15/07/2019,Non-staff travel and subsistance,GCRF - Programme Delivery,Non Employee Expenses Supplier,98535441,159.10,Non-staff travel and subsistance
BEIS,UKRI - AHRC,15/07/2019,Non-staff travel and subsistance,GCRF - Programme Delivery,Non Employee Expenses Supplier,98535442,141.03,Non-staff travel and subsistance
BEIS,UKRI - AHRC,15/07/2019,Non-staff travel and subsistance,GCRF - Programme Delivery,Non Employee Expenses Supplier,98535443,164.20,Non-staff travel and subsistance
BEIS,UKRI - AHRC,15/07/2019,Non-staff travel and subsistance,"History, Heritage, Languages and Literature",Non Employee Expenses Supplier,98535444,145.10,Non-staff travel and subsistance
BEIS,UKRI - AHRC,15/07/2019,Non-staff travel and subsistance,International Development and Area Studies,Non Employee Expenses Supplier,98535445,105.30,Non-staff travel and subsistance
BEIS,UKRI - AHRC,15/07/2019,Non-staff travel and subsistance,International Development and Area Studies,Non Employee Expenses Supplier,98535446,507.03,Non-staff travel and subsistance
BEIS,UKRI - AHRC,15/07/2019,Other Pension Deductions,Balance Sheet,Standard Life Assurance Ltd,98536305,100.00,Other Pension Deductions
BEIS,UKRI - AHRC,15/07/2019,Union Deductions,Balance Sheet,PCS Union,98536307,101.04,Union Deductions
BEIS,UKRI - AHRC,15/07/2019,Ees Pension Deductions - JSS,Balance Sheet,RCPS Pension,98536308,11493.24,Ees Pension Deductions - JSS
BEIS,UKRI - AHRC,15/07/2019,Ers Pension Deductions - JSS,Balance Sheet,RCPS Pension,98536309,50821.56,Ers Pension Deductions - JSS
BEIS,UKRI - AHRC,15/07/2019,Partnership Pension Deductions,Balance Sheet,Scottish Widows,98536310,369.68,Partnership Pension Deductions
BEIS,UKRI - AHRC,15/07/2019,Ers Pension Deductions - JSS,Balance Sheet,Cabinet Office RM Shared Services,98536311,12.83,Ers Pension Deductions - JSS
BEIS,UKRI - AHRC,15/07/2019,Ees Pension Deductions - MyCSP,Balance Sheet,Cabinet Office RM Shared Services,98536312,3918.89,Ees Pension Deductions - MyCSP
BEIS,UKRI - AHRC,15/07/2019,Ers Pension Deductions - MyCSP,Balance Sheet,Cabinet Office RM Shared Services,98536313,20692.13,Ers Pension Deductions - MyCSP
BEIS,UKRI - AHRC,15/07/2019,Ees Pension Deductions - MRC,Balance Sheet,UKRI - Medical Research Council,98536314,341.88,Ees Pension Deductions - MRC
BEIS,UKRI - AHRC,15/07/2019,Ers Pension Deductions - MRC,Balance Sheet,UKRI - Medical Research Council,98536315,788.94,Ers Pension Deductions - MRC
BEIS,UKRI - AHRC,15/07/2019,Non-staff travel and subsistance,GCRF - Programme Delivery,Corporate Travel Management (North) Ltd,98536608,63.54,Non-staff travel and subsistance
BEIS,UKRI - AHRC,15/07/2019,Non-staff travel and subsistance,GCRF - Programme Delivery,Corporate Travel Management (North) Ltd,98536608,65.04,Non-staff travel and subsistance
BEIS,UKRI - AHRC,15/07/2019,Non-staff travel and subsistance,Public and Stakeholder Engagement,Corporate Travel Management (North) Ltd,98536608,0.50,Non-staff travel and subsistance
BEIS,UKRI - AHRC,15/07/2019,Non-staff travel and subsistance,Public and Stakeholder Engagement,Corporate Travel Management (North) Ltd,98536608,189.00,Non-staff travel and subsistance
BEIS,UKRI - AHRC,15/07/2019,Non-staff travel and subsistance,Public and Stakeholder Engagement,Corporate Travel Management (North) Ltd,98536608,1.00,Non-staff travel and subsistance
BEIS,UKRI - AHRC,15/07/2019,Non-staff travel and subsistance,Public and Stakeholder Engagement,Corporate Travel Management (North) Ltd,98536608,177.24,Non-staff travel and subsistance
BEIS,UKRI - AHRC,15/07/2019,Non-staff travel and subsistance,Public and Stakeholder Engagement,Corporate Travel Management (North) Ltd,98536608,0.50,Non-staff travel and subsistance
BEIS,UKRI - AHRC,15/07/2019,Non-staff travel and subsistance,Public and Stakeholder Engagement,Corporate Travel Management (North) Ltd,98536608,104.25,Non-staff travel and subsistance
BEIS,UKRI - AHRC,15/07/2019,Non-staff travel and subsistance,Public and Stakeholder Engagement,Corporate Travel Management (North) Ltd,98536608,0.40,Non-staff travel and subsistance
BEIS,UKRI - AHRC,15/07/2019,T&S Overseas - Accommodation,International Development and Area Studies,Corporate Travel Management (North) Ltd,98536608,0.50,T&S Overseas - Accommodation
BEIS,UKRI - AHRC,15/07/2019,T&S Overseas - Accommodation,International Development and Area Studies,Corporate Travel Management (North) Ltd,98536608,0.10,T&S Overseas - Accommodation
BEIS,UKRI - AHRC,15/07/2019,T&S Overseas - Accommodation,JPI Cultural Heritage Project,Corporate Travel Management (North) Ltd,98536608,0.50,T&S Overseas - Accommodation
BEIS,UKRI - AHRC,15/07/2019,T&S Overseas - Accommodation,JPI Cultural Heritage Project,Corporate Travel Management (North) Ltd,98536608,0.10,T&S Overseas - Accommodation
BEIS,UKRI - AHRC,15/07/2019,T&S Overseas - Flights,International,Corporate Travel Management (North) Ltd,98536608,52.36,T&S Overseas - Flights
BEIS,UKRI - AHRC,15/07/2019,T&S Overseas - Flights,International,Corporate Travel Management (North) Ltd,98536608,241.60,T&S Overseas - Flights
BEIS,UKRI - AHRC,15/07/2019,T&S Overseas - Flights,International,Corporate Travel Management (North) Ltd,98536608,6.75,T&S Overseas - Flights
BEIS,UKRI - AHRC,15/07/2019,T&S Overseas - Flights,International,Corporate Travel Management (North) Ltd,98536608,25.00,T&S Overseas - Flights
BEIS,UKRI - AHRC,15/07/2019,T&S Overseas - Flights,International,Corporate Travel Management (North) Ltd,98536608,11.20,T&S Overseas - Flights
BEIS,UKRI - AHRC,15/07/2019,T&S Overseas - Flights,International,Corporate Travel Management (North) Ltd,98536608,6.35,T&S Overseas - Flights
BEIS,UKRI - AHRC,15/07/2019,T&S Overseas - Flights,SMT,Corporate Travel Management (North) Ltd,98536608,2.16,T&S Overseas - Flights
BEIS,UKRI - AHRC,15/07/2019,T&S Overseas - Flights,SMT,Corporate Travel Management (North) Ltd,98536608,271.41,T&S Overseas - Flights
BEIS,UKRI - AHRC,15/07/2019,T&S Overseas - Public Transport,HERA JRP Project,Corporate Travel Management (North) Ltd,98536608,-82.50,T&S Overseas - Public Transport
BEIS,UKRI - AHRC,15/07/2019,T&S UK - Accommodation,Digital Arts and Humanities and Creative Industries,Corporate Travel Management (North) Ltd,98536608,0.50,T&S UK - Accommodation
BEIS,UKRI - AHRC,15/07/2019,T&S UK - Accommodation,Digital Arts and Humanities and Creative Industries,Corporate Travel Management (North) Ltd,98536608,0.50,T&S UK - Accommodation
BEIS,UKRI - AHRC,15/07/2019,T&S UK - Accommodation,Digital Arts and Humanities and Creative Industries,Corporate Travel Management (North) Ltd,98536608,82.82,T&S UK - Accommodation
BEIS,UKRI - AHRC,15/07/2019,T&S UK - Accommodation,Digital Arts and Humanities and Creative Industries,Corporate Travel Management (North) Ltd,98536608,0.50,T&S UK - Accommodation
BEIS,UKRI - AHRC,15/07/2019,T&S UK - Accommodation,Digital Arts and Humanities and Creative Industries,Corporate Travel Management (North) Ltd,98536608,225.50,T&S UK - Accommodation
BEIS,UKRI - AHRC,15/07/2019,T&S UK - Accommodation,Digital Arts and Humanities and Creative Industries,Corporate Travel Management (North) Ltd,98536608,0.30,T&S UK - Accommodation
BEIS,UKRI - AHRC,15/07/2019,T&S UK - Accommodation,Executive Office,Corporate Travel Management (North) Ltd,98536608,0.50,T&S UK - Accommodation
BEIS,UKRI - AHRC,15/07/2019,T&S UK - Accommodation,Executive Office,Corporate Travel Management (North) Ltd,98536608,77.90,T&S UK - Accommodation
BEIS,UKRI - AHRC,15/07/2019,T&S UK - Accommodation,Executive Office,Corporate Travel Management (North) Ltd,98536608,0.10,T&S UK - Accommodation
BEIS,UKRI - AHRC,15/07/2019,T&S UK - Accommodation,GCRF - Programme Delivery,Corporate Travel Management (North) Ltd,98536608,0.50,T&S UK - Accommodation
BEIS,UKRI - AHRC,15/07/2019,T&S UK - Accommodation,GCRF - Programme Delivery,Corporate Travel Management (North) Ltd,98536608,378.50,T&S UK - Accommodation
BEIS,UKRI - AHRC,15/07/2019,T&S UK - Accommodation,GCRF - Programme Delivery,Corporate Travel Management (North) Ltd,98536608,0.50,T&S UK - Accommodation
BEIS,UKRI - AHRC,15/07/2019,T&S UK - Accommodation,GCRF - Programme Delivery,Corporate Travel Management (North) Ltd,98536608,358.50,T&S UK - Accommodation
BEIS,UKRI - AHRC,15/07/2019,T&S UK - Accommodation,GCRF - Programme Delivery,Corporate Travel Management (North) Ltd,98536608,0.50,T&S UK - Accommodation
BEIS,UKRI - AHRC,15/07/2019,T&S UK - Accommodation,GCRF - Programme Delivery,Corporate Travel Management (North) Ltd,98536608,96.25,T&S UK - Accommodation
BEIS,UKRI - AHRC,15/07/2019,T&S UK - Accommodation,GCRF - Programme Delivery,Corporate Travel Management (North) Ltd,98536608,0.50,T&S UK - Accommodation
BEIS,UKRI - AHRC,15/07/2019,T&S UK - Accommodation,GCRF - Programme Delivery,Corporate Travel Management (North) Ltd,98536608,96.25,T&S UK - Accommodation
BEIS,UKRI - AHRC,15/07/2019,T&S UK - Accommodation,GCRF - Programme Delivery,Corporate Travel Management (North) Ltd,98536608,0.50,T&S UK - Accommodation
BEIS,UKRI - AHRC,15/07/2019,T&S UK - Accommodation,GCRF - Programme Delivery,Corporate Travel Management (North) Ltd,98536608,96.25,T&S UK - Accommodation
BEIS,UKRI - AHRC,15/07/2019,T&S UK - Accommodation,GCRF - Programme Delivery,Corporate Travel Management (North) Ltd,98536608,0.50,T&S UK - Accommodation
BEIS,UKRI - AHRC,15/07/2019,T&S UK - Accommodation,HR,Corporate Travel Management (North) Ltd,98536608,0.50,T&S UK - Accommodation
BEIS,UKRI - AHRC,15/07/2019,T&S UK - Accommodation,HR,Corporate Travel Management (North) Ltd,98536608,83.50,T&S UK - Accommodation
BEIS,UKRI - AHRC,15/07/2019,T&S UK - Accommodation,HR,Corporate Travel Management (North) Ltd,98536608,0.50,T&S UK - Accommodation
BEIS,UKRI - AHRC,15/07/2019,T&S UK - Accommodation,HR,Corporate Travel Management (North) Ltd,98536608,41.75,T&S UK - Accommodation
BEIS,UKRI - AHRC,15/07/2019,T&S UK - Accommodation,HR,Corporate Travel Management (North) Ltd,98536608,0.20,T&S UK - Accommodation
BEIS,UKRI - AHRC,15/07/2019,T&S UK - Accommodation,"History, Heritage, Languages and Literature",Corporate Travel Management (North) Ltd,98536608,0.50,T&S UK - Accommodation
BEIS,UKRI - AHRC,15/07/2019,T&S UK - Accommodation,"History, Heritage, Languages and Literature",Corporate Travel Management (North) Ltd,98536608,127.50,T&S UK - Accommodation
BEIS,UKRI - AHRC,15/07/2019,T&S UK - Accommodation,"History, Heritage, Languages and Literature",Corporate Travel Management (North) Ltd,98536608,0.50,T&S UK - Accommodation
BEIS,UKRI - AHRC,15/07/2019,T&S UK - Accommodation,"History, Heritage, Languages and Literature",Corporate Travel Management (North) Ltd,98536608,75.00,T&S UK - Accommodation
BEIS,UKRI - AHRC,15/07/2019,T&S UK - Accommodation,"History, Heritage, Languages and Literature",Corporate Travel Management (North) Ltd,98536608,0.50,T&S UK - Accommodation
BEIS,UKRI - AHRC,15/07/2019,T&S UK - Accommodation,"History, Heritage, Languages and Literature",Corporate Travel Management (North) Ltd,98536608,75.00,T&S UK - Accommodation
BEIS,UKRI - AHRC,15/07/2019,T&S UK - Accommodation,"History, Heritage, Languages and Literature",Corporate Travel Management (North) Ltd,98536608,0.50,T&S UK - Accommodation
BEIS,UKRI - AHRC,15/07/2019,T&S UK - Accommodation,"History, Heritage, Languages and Literature",Corporate Travel Management (North) Ltd,98536608,1.44,T&S UK - Accommodation
BEIS,UKRI - AHRC,15/07/2019,T&S UK - Accommodation,"History, Heritage, Languages and Literature",Corporate Travel Management (North) Ltd,98536608,75.00,T&S UK - Accommodation
BEIS,UKRI - AHRC,15/07/2019,T&S UK - Accommodation,"History, Heritage, Languages and Literature",Corporate Travel Management (North) Ltd,98536608,0.50,T&S UK - Accommodation
BEIS,UKRI - AHRC,15/07/2019,T&S UK - Accommodation,"History, Heritage, Languages and Literature",Corporate Travel Management (North) Ltd,98536608,85.00,T&S UK - Accommodation
BEIS,UKRI - AHRC,15/07/2019,T&S UK - Accommodation,"History, Heritage, Languages and Literature",Corporate Travel Management (North) Ltd,98536608,0.50,T&S UK - Accommodation
BEIS,UKRI - AHRC,15/07/2019,T&S UK - Accommodation,"History, Heritage, Languages and Literature",Corporate Travel Management (North) Ltd,98536608,75.00,T&S UK - Accommodation
BEIS,UKRI - AHRC,15/07/2019,T&S UK - Accommodation,"History, Heritage, Languages and Literature",Corporate Travel Management (North) Ltd,98536608,0.50,T&S UK - Accommodation
BEIS,UKRI - AHRC,15/07/2019,T&S UK - Accommodation,"History, Heritage, Languages and Literature",Corporate Travel Management (North) Ltd,98536608,54.00,T&S UK - Accommodation
BEIS,UKRI - AHRC,15/07/2019,T&S UK - Accommodation,"History, Heritage, Languages and Literature",Corporate Travel Management (North) Ltd,98536608,0.50,T&S UK - Accommodation
BEIS,UKRI - AHRC,15/07/2019,T&S UK - Accommodation,"History, Heritage, Languages and Literature",Corporate Travel Management (North) Ltd,98536608,93.00,T&S UK - Accommodation
BEIS,UKRI - AHRC,15/07/2019,T&S UK - Accommodation,"History, Heritage, Languages and Literature",Corporate Travel Management (North) Ltd,98536608,1.09,T&S UK - Accommodation
BEIS,UKRI - AHRC,15/07/2019,T&S UK - Accommodation,IS,Corporate Travel Management (North) Ltd,98536608,0.50,T&S UK - Accommodation
BEIS,UKRI - AHRC,15/07/2019,T&S UK - Accommodation,IS,Corporate Travel Management (North) Ltd,98536608,792.00,T&S UK - Accommodation
BEIS,UKRI - AHRC,15/07/2019,T&S UK - Accommodation,IS,Corporate Travel Management (North) Ltd,98536608,0.10,T&S UK - Accommodation
BEIS,UKRI - AHRC,15/07/2019,T&S UK - Accommodation,Industrial Strategy Challenge Fund (ISCF) - Creative Clusters,Corporate Travel Management (North) Ltd,98536608,0.50,T&S UK - Accommodation
BEIS,UKRI - AHRC,15/07/2019,T&S UK - Accommodation,Industrial Strategy Challenge Fund (ISCF) - Creative Clusters,Corporate Travel Management (North) Ltd,98536608,0.10,T&S UK - Accommodation
BEIS,UKRI - AHRC,15/07/2019,T&S UK - Accommodation,International Development and Area Studies,Corporate Travel Management (North) Ltd,98536608,0.50,T&S UK - Accommodation
BEIS,UKRI - AHRC,15/07/2019,T&S UK - Accommodation,International Development and Area Studies,Corporate Travel Management (North) Ltd,98536608,75.00,T&S UK - Accommodation
BEIS,UKRI - AHRC,15/07/2019,T&S UK - Accommodation,International Development and Area Studies,Corporate Travel Management (North) Ltd,98536608,0.50,T&S UK - Accommodation
BEIS,UKRI - AHRC,15/07/2019,T&S UK - Accommodation,International Development and Area Studies,Corporate Travel Management (North) Ltd,98536608,65.00,T&S UK - Accommodation
BEIS,UKRI - AHRC,15/07/2019,T&S UK - Accommodation,International Development and Area Studies,Corporate Travel Management (North) Ltd,98536608,0.50,T&S UK - Accommodation
BEIS,UKRI - AHRC,15/07/2019,T&S UK - Accommodation,International Development and Area Studies,Corporate Travel Management (North) Ltd,98536608,75.00,T&S UK - Accommodation
BEIS,UKRI - AHRC,15/07/2019,T&S UK - Accommodation,International Development and Area Studies,Corporate Travel Management (North) Ltd,98536608,0.50,T&S UK - Accommodation
BEIS,UKRI - AHRC,15/07/2019,T&S UK - Accommodation,International Development and Area Studies,Corporate Travel Management (North) Ltd,98536608,65.00,T&S UK - Accommodation
BEIS,UKRI - AHRC,15/07/2019,T&S UK - Accommodation,International Development and Area Studies,Corporate Travel Management (North) Ltd,98536608,0.50,T&S UK - Accommodation
BEIS,UKRI - AHRC,15/07/2019,T&S UK - Accommodation,International Development and Area Studies,Corporate Travel Management (North) Ltd,98536608,75.00,T&S UK - Accommodation
BEIS,UKRI - AHRC,15/07/2019,T&S UK - Accommodation,International Development and Area Studies,Corporate Travel Management (North) Ltd,98536608,0.50,T&S UK - Accommodation
BEIS,UKRI - AHRC,15/07/2019,T&S UK - Accommodation,International Development and Area Studies,Corporate Travel Management (North) Ltd,98536608,75.00,T&S UK - Accommodation
BEIS,UKRI - AHRC,15/07/2019,T&S UK - Accommodation,International Development and Area Studies,Corporate Travel Management (North) Ltd,98536608,0.50,T&S UK - Accommodation
BEIS,UKRI - AHRC,15/07/2019,T&S UK - Accommodation,International Development and Area Studies,Corporate Travel Management (North) Ltd,98536608,75.00,T&S UK - Accommodation
BEIS,UKRI - AHRC,15/07/2019,T&S UK - Accommodation,International Development and Area Studies,Corporate Travel Management (North) Ltd,98536608,0.70,T&S UK - Accommodation
BEIS,UKRI - AHRC,15/07/2019,T&S UK - Accommodation,International Partnership and Engagement,Corporate Travel Management (North) Ltd,98536608,0.50,T&S UK - Accommodation
BEIS,UKRI - AHRC,15/07/2019,T&S UK - Accommodation,International Partnership and Engagement,Corporate Travel Management (North) Ltd,98536608,107.25,T&S UK - Accommodation
BEIS,UKRI - AHRC,15/07/2019,T&S UK - Accommodation,International Partnership and Engagement,Corporate Travel Management (North) Ltd,98536608,0.50,T&S UK - Accommodation
BEIS,UKRI - AHRC,15/07/2019,T&S UK - Accommodation,International Partnership and Engagement,Corporate Travel Management (North) Ltd,98536608,66.50,T&S UK - Accommodation
BEIS,UKRI - AHRC,15/07/2019,T&S UK - Accommodation,International Partnership and Engagement,Corporate Travel Management (North) Ltd,98536608,0.50,T&S UK - Accommodation
BEIS,UKRI - AHRC,15/07/2019,T&S UK - Accommodation,International Partnership and Engagement,Corporate Travel Management (North) Ltd,98536608,66.50,T&S UK - Accommodation
BEIS,UKRI - AHRC,15/07/2019,T&S UK - Accommodation,International Partnership and Engagement,Corporate Travel Management (North) Ltd,98536608,0.50,T&S UK - Accommodation
BEIS,UKRI - AHRC,15/07/2019,T&S UK - Accommodation,International Partnership and Engagement,Corporate Travel Management (North) Ltd,98536608,94.00,T&S UK - Accommodation
BEIS,UKRI - AHRC,15/07/2019,T&S UK - Accommodation,International Partnership and Engagement,Corporate Travel Management (North) Ltd,98536608,0.50,T&S UK - Accommodation
BEIS,UKRI - AHRC,15/07/2019,T&S UK - Accommodation,International Partnership and Engagement,Corporate Travel Management (North) Ltd,98536608,88.22,T&S UK - Accommodation
BEIS,UKRI - AHRC,15/07/2019,T&S UK - Accommodation,International Partnership and Engagement,Corporate Travel Management (North) Ltd,98536608,0.50,T&S UK - Accommodation
BEIS,UKRI - AHRC,15/07/2019,T&S UK - Accommodation,International Partnership and Engagement,Corporate Travel Management (North) Ltd,98536608,260.00,T&S UK - Accommodation
BEIS,UKRI - AHRC,15/07/2019,T&S UK - Accommodation,International Partnership and Engagement,Corporate Travel Management (North) Ltd,98536608,0.60,T&S UK - Accommodation
BEIS,UKRI - AHRC,15/07/2019,T&S UK - Accommodation,PSU Project Office,Corporate Travel Management (North) Ltd,98536608,0.50,T&S UK - Accommodation
BEIS,UKRI - AHRC,15/07/2019,T&S UK - Accommodation,PSU Project Office,Corporate Travel Management (North) Ltd,98536608,65.25,T&S UK - Accommodation
BEIS,UKRI - AHRC,15/07/2019,T&S UK - Accommodation,PSU Project Office,Corporate Travel Management (North) Ltd,98536608,0.10,T&S UK - Accommodation
BEIS,UKRI - AHRC,15/07/2019,T&S UK - Accommodation,Public and Stakeholder Engagement,Corporate Travel Management (North) Ltd,98536608,0.50,T&S UK - Accommodation
BEIS,UKRI - AHRC,15/07/2019,T&S UK - Accommodation,Public and Stakeholder Engagement,Corporate Travel Management (North) Ltd,98536608,189.00,T&S UK - Accommodation
BEIS,UKRI - AHRC,15/07/2019,T&S UK - Accommodation,Public and Stakeholder Engagement,Corporate Travel Management (North) Ltd,98536608,0.10,T&S UK - Accommodation
BEIS,UKRI - AHRC,15/07/2019,T&S UK - Accommodation,SMT,Corporate Travel Management (North) Ltd,98536608,290.00,T&S UK - Accommodation
BEIS,UKRI - AHRC,15/07/2019,T&S UK - Accommodation,SMT,Corporate Travel Management (North) Ltd,98536608,0.50,T&S UK - Accommodation
BEIS,UKRI - AHRC,15/07/2019,T&S UK - Accommodation,SMT,Corporate Travel Management (North) Ltd,98536608,99.00,T&S UK - Accommodation
BEIS,UKRI - AHRC,15/07/2019,T&S UK - Accommodation,SMT,Corporate Travel Management (North) Ltd,98536608,0.50,T&S UK - Accommodation
BEIS,UKRI - AHRC,15/07/2019,T&S UK - Accommodation,SMT,Corporate Travel Management (North) Ltd,98536608,99.00,T&S UK - Accommodation
BEIS,UKRI - AHRC,15/07/2019,T&S UK - Accommodation,SMT,Corporate Travel Management (North) Ltd,98536608,0.50,T&S UK - Accommodation
BEIS,UKRI - AHRC,15/07/2019,T&S UK - Accommodation,SMT,Corporate Travel Management (North) Ltd,98536608,129.00,T&S UK - Accommodation
BEIS,UKRI - AHRC,15/07/2019,T&S UK - Accommodation,SMT,Corporate Travel Management (North) Ltd,98536608,0.50,T&S UK - Accommodation
BEIS,UKRI - AHRC,15/07/2019,T&S UK - Accommodation,SMT,Corporate Travel Management (North) Ltd,98536608,99.00,T&S UK - Accommodation
BEIS,UKRI - AHRC,15/07/2019,T&S UK - Accommodation,SMT,Corporate Travel Management (North) Ltd,98536608,0.50,T&S UK - Accommodation
BEIS,UKRI - AHRC,15/07/2019,T&S UK - Accommodation,SMT,Corporate Travel Management (North) Ltd,98536608,99.00,T&S UK - Accommodation
BEIS,UKRI - AHRC,15/07/2019,T&S UK - Accommodation,SMT,Corporate Travel Management (North) Ltd,98536608,0.50,T&S UK - Accommodation
BEIS,UKRI - AHRC,15/07/2019,T&S UK - Accommodation,SMT,Corporate Travel Management (North) Ltd,98536608,99.00,T&S UK - Accommodation
BEIS,UKRI - AHRC,15/07/2019,T&S UK - Accommodation,SMT,Corporate Travel Management (North) Ltd,98536608,0.50,T&S UK - Accommodation
BEIS,UKRI - AHRC,15/07/2019,T&S UK - Accommodation,SMT,Corporate Travel Management (North) Ltd,98536608,99.00,T&S UK - Accommodation
BEIS,UKRI - AHRC,15/07/2019,T&S UK - Accommodation,SMT,Corporate Travel Management (North) Ltd,98536608,0.50,T&S UK - Accommodation
BEIS,UKRI - AHRC,15/07/2019,T&S UK - Accommodation,SMT,Corporate Travel Management (North) Ltd,98536608,0.50,T&S UK - Accommodation
BEIS,UKRI - AHRC,15/07/2019,T&S UK - Accommodation,SMT,Corporate Travel Management (North) Ltd,98536608,130.00,T&S UK - Accommodation
BEIS,UKRI - AHRC,15/07/2019,T&S UK - Accommodation,SMT,Corporate Travel Management (North) Ltd,98536608,0.50,T&S UK - Accommodation
BEIS,UKRI - AHRC,15/07/2019,T&S UK - Accommodation,SMT,Corporate Travel Management (North) Ltd,98536608,170.10,T&S UK - Accommodation
BEIS,UKRI - AHRC,15/07/2019,T&S UK - Accommodation,SMT,Corporate Travel Management (North) Ltd,98536608,0.50,T&S UK - Accommodation
BEIS,UKRI - AHRC,15/07/2019,T&S UK - Accommodation,SMT,Corporate Travel Management (North) Ltd,98536608,135.00,T&S UK - Accommodation
BEIS,UKRI - AHRC,15/07/2019,T&S UK - Accommodation,SMT,Corporate Travel Management (North) Ltd,98536608,0.50,T&S UK - Accommodation
BEIS,UKRI - AHRC,15/07/2019,T&S UK - Accommodation,SMT,Corporate Travel Management (North) Ltd,98536608,1.44,T&S UK - Accommodation
BEIS,UKRI - AHRC,15/07/2019,T&S UK - Accommodation,SMT,Corporate Travel Management (North) Ltd,98536608,99.00,T&S UK - Accommodation
BEIS,UKRI - AHRC,15/07/2019,T&S UK - Accommodation,SMT,Corporate Travel Management (North) Ltd,98536608,1.49,T&S UK - Accommodation
BEIS,UKRI - AHRC,15/07/2019,T&S UK - Accommodation,Secretariat,Corporate Travel Management (North) Ltd,98536608,0.50,T&S UK - Accommodation
BEIS,UKRI - AHRC,15/07/2019,T&S UK - Accommodation,Secretariat,Corporate Travel Management (North) Ltd,98536608,0.10,T&S UK - Accommodation
BEIS,UKRI - AHRC,15/07/2019,T&S UK - Accommodation,Skills Strategy,Corporate Travel Management (North) Ltd,98536608,0.50,T&S UK - Accommodation
BEIS,UKRI - AHRC,15/07/2019,T&S UK - Accommodation,Skills Strategy,Corporate Travel Management (North) Ltd,98536608,80.00,T&S UK - Accommodation
BEIS,UKRI - AHRC,15/07/2019,T&S UK - Accommodation,Skills Strategy,Corporate Travel Management (North) Ltd,98536608,0.10,T&S UK - Accommodation
BEIS,UKRI - AHRC,15/07/2019,T&S UK - Flights,Digital Arts and Humanities and Creative Industries,Corporate Travel Management (North) Ltd,98536608,163.46,T&S UK - Flights
BEIS,UKRI - AHRC,15/07/2019,T&S UK - Flights,Digital Arts and Humanities and Creative Industries,Corporate Travel Management (North) Ltd,98536608,341.76,T&S UK - Flights
BEIS,UKRI - AHRC,15/07/2019,T&S UK - Flights,Industrial Strategy Challenge Fund (ISCF) - Creative Clusters,Corporate Travel Management (North) Ltd,98536608,185.06,T&S UK - Flights
BEIS,UKRI - AHRC,15/07/2019,T&S UK - Flights,Industrial Strategy Challenge Fund (ISCF) - Creative Clusters,Corporate Travel Management (North) Ltd,98536608,163.46,T&S UK - Flights
BEIS,UKRI - AHRC,15/07/2019,T&S UK - Flights,Industrial Strategy Challenge Fund (ISCF) - Creative Clusters,Corporate Travel Management (North) Ltd,98536608,74.98,T&S UK - Flights
BEIS,UKRI - AHRC,15/07/2019,T&S UK - Flights,International Partnership and Engagement,Corporate Travel Management (North) Ltd,98536608,44.28,T&S UK - Flights
BEIS,UKRI - AHRC,15/07/2019,T&S UK - Flights,SMT,Corporate Travel Management (North) Ltd,98536608,68.30,T&S UK - Flights
BEIS,UKRI - AHRC,15/07/2019,T&S UK - Flights,SMT,Corporate Travel Management (North) Ltd,98536608,73.49,T&S UK - Flights
BEIS,UKRI - AHRC,15/07/2019,T&S UK - Flights,SMT,Corporate Travel Management (North) Ltd,98536608,84.72,T&S UK - Flights
BEIS,UKRI - AHRC,15/07/2019,T&S UK - Flights,SMT,Corporate Travel Management (North) Ltd,98536608,328.31,T&S UK - Flights
BEIS,UKRI - AHRC,15/07/2019,T&S UK - Flights,SMT,Corporate Travel Management (North) Ltd,98536608,73.49,T&S UK - Flights
BEIS,UKRI - AHRC,15/07/2019,T&S UK - Flights,SMT,Corporate Travel Management (North) Ltd,98536608,-28.44,T&S UK - Flights
BEIS,UKRI - AHRC,15/07/2019,T&S UK - Flights,SMT,Corporate Travel Management (North) Ltd,98536608,63.26,T&S UK - Flights
BEIS,UKRI - AHRC,15/07/2019,T&S UK - Flights,SMT,Corporate Travel Management (North) Ltd,98536608,224.87,T&S UK - Flights
BEIS,UKRI - AHRC,15/07/2019,T&S UK - Flights,SMT,Corporate Travel Management (North) Ltd,98536608,229.87,T&S UK - Flights
BEIS,UKRI - AHRC,15/07/2019,T&S UK - Flights,SMT,Corporate Travel Management (North) Ltd,98536608,229.87,T&S UK - Flights
BEIS,UKRI - AHRC,15/07/2019,T&S UK - Flights,SMT,Corporate Travel Management (North) Ltd,98536608,121.48,T&S UK - Flights
BEIS,UKRI - AHRC,15/07/2019,T&S UK - Flights,SMT,Corporate Travel Management (North) Ltd,98536608,243.00,T&S UK - Flights
BEIS,UKRI - AHRC,15/07/2019,T&S UK - Flights,SMT,Corporate Travel Management (North) Ltd,98536608,2.16,T&S UK - Flights
BEIS,UKRI - AHRC,15/07/2019,T&S UK - Flights,SMT,Corporate Travel Management (North) Ltd,98536608,76.19,T&S UK - Flights
BEIS,UKRI - AHRC,15/07/2019,T&S UK - Flights,SMT,Corporate Travel Management (North) Ltd,98536608,88.72,T&S UK - Flights
BEIS,UKRI - AHRC,15/07/2019,T&S UK - Flights,SMT,Corporate Travel Management (North) Ltd,98536608,333.31,T&S UK - Flights
BEIS,UKRI - AHRC,15/07/2019,T&S UK - Other Charges,GCRF - Programme Delivery,Corporate Travel Management (North) Ltd,98536608,19.09,T&S UK - Other Charges
BEIS,UKRI - AHRC,15/07/2019,T&S UK - Other Charges,GCRF - Programme Delivery,Corporate Travel Management (North) Ltd,98536608,16.06,T&S UK - Other Charges
BEIS,UKRI - AHRC,15/07/2019,T&S UK - Other Charges,GCRF - Programme Delivery,Corporate Travel Management (North) Ltd,98536608,44.74,T&S UK - Other Charges
BEIS,UKRI - AHRC,15/07/2019,T&S UK - Other Charges,GCRF - Programme Delivery,Corporate Travel Management (North) Ltd,98536608,16.06,T&S UK - Other Charges
BEIS,UKRI - AHRC,15/07/2019,T&S UK - Public Transport,Digital Arts and Humanities and Creative Industries,Corporate Travel Management (North) Ltd,98536608,53.60,T&S UK - Public Transport
BEIS,UKRI - AHRC,15/07/2019,T&S UK - Public Transport,Digital Arts and Humanities and Creative Industries,Corporate Travel Management (North) Ltd,98536608,1.00,T&S UK - Public Transport
BEIS,UKRI - AHRC,15/07/2019,T&S UK - Public Transport,Digital Arts and Humanities and Creative Industries,Corporate Travel Management (North) Ltd,98536608,114.40,T&S UK - Public Transport
BEIS,UKRI - AHRC,15/07/2019,T&S UK - Public Transport,Digital Arts and Humanities and Creative Industries,Corporate Travel Management (North) Ltd,98536608,36.00,T&S UK - Public Transport
BEIS,UKRI - AHRC,15/07/2019,T&S UK - Public Transport,Digital Arts and Humanities and Creative Industries,Corporate Travel Management (North) Ltd,98536608,111.15,T&S UK - Public Transport
BEIS,UKRI - AHRC,15/07/2019,T&S UK - Public Transport,Digital Arts and Humanities and Creative Industries,Corporate Travel Management (North) Ltd,98536608,114.40,T&S UK - Public Transport
BEIS,UKRI - AHRC,15/07/2019,T&S UK - Public Transport,Digital Arts and Humanities and Creative Industries,Corporate Travel Management (North) Ltd,98536608,1.00,T&S UK - Public Transport
BEIS,UKRI - AHRC,15/07/2019,T&S UK - Public Transport,Digital Arts and Humanities and Creative Industries,Corporate Travel Management (North) Ltd,98536608,103.80,T&S UK - Public Transport
BEIS,UKRI - AHRC,15/07/2019,T&S UK - Public Transport,Digital Arts and Humanities and Creative Industries,Corporate Travel Management (North) Ltd,98536608,16.50,T&S UK - Public Transport
BEIS,UKRI - AHRC,15/07/2019,T&S UK - Public Transport,Digital Arts and Humanities and Creative Industries,Corporate Travel Management (North) Ltd,98536608,1.00,T&S UK - Public Transport
BEIS,UKRI - AHRC,15/07/2019,T&S UK - Public Transport,Digital Arts and Humanities and Creative Industries,Corporate Travel Management (North) Ltd,98536608,139.80,T&S UK - Public Transport
BEIS,UKRI - AHRC,15/07/2019,T&S UK - Public Transport,Digital Arts and Humanities and Creative Industries,Corporate Travel Management (North) Ltd,98536608,1.00,T&S UK - Public Transport
BEIS,UKRI - AHRC,15/07/2019,T&S UK - Public Transport,Digital Arts and Humanities and Creative Industries,Corporate Travel Management (North) Ltd,98536608,31.80,T&S UK - Public Transport
BEIS,UKRI - AHRC,15/07/2019,T&S UK - Public Transport,Digital Arts and Humanities and Creative Industries,Corporate Travel Management (North) Ltd,98536608,1.00,T&S UK - Public Transport
BEIS,UKRI - AHRC,15/07/2019,T&S UK - Public Transport,Digital Arts and Humanities and Creative Industries,Corporate Travel Management (North) Ltd,98536608,114.40,T&S UK - Public Transport
BEIS,UKRI - AHRC,15/07/2019,T&S UK - Public Transport,Digital Arts and Humanities and Creative Industries,Corporate Travel Management (North) Ltd,98536608,1.00,T&S UK - Public Transport
BEIS,UKRI - AHRC,15/07/2019,T&S UK - Public Transport,Digital Arts and Humanities and Creative Industries,Corporate Travel Management (North) Ltd,98536608,51.70,T&S UK - Public Transport
BEIS,UKRI - AHRC,15/07/2019,T&S UK - Public Transport,Digital Arts and Humanities and Creative Industries,Corporate Travel Management (North) Ltd,98536608,1.00,T&S UK - Public Transport
BEIS,UKRI - AHRC,15/07/2019,T&S UK - Public Transport,Digital Arts and Humanities and Creative Industries,Corporate Travel Management (North) Ltd,98536608,103.80,T&S UK - Public Transport
BEIS,UKRI - AHRC,15/07/2019,T&S UK - Public Transport,Digital Arts and Humanities and Creative Industries,Corporate Travel Management (North) Ltd,98536608,1.00,T&S UK - Public Transport
BEIS,UKRI - AHRC,15/07/2019,T&S UK - Public Transport,Digital Arts and Humanities and Creative Industries,Corporate Travel Management (North) Ltd,98536608,100.30,T&S UK - Public Transport
BEIS,UKRI - AHRC,15/07/2019,T&S UK - Public Transport,Executive Office,Corporate Travel Management (North) Ltd,98536608,78.80,T&S UK - Public Transport
BEIS,UKRI - AHRC,15/07/2019,T&S UK - Public Transport,Executive Office,Corporate Travel Management (North) Ltd,98536608,103.80,T&S UK - Public Transport
BEIS,UKRI - AHRC,15/07/2019,T&S UK - Public Transport,Executive Office,Corporate Travel Management (North) Ltd,98536608,31.80,T&S UK - Public Transport
BEIS,UKRI - AHRC,15/07/2019,T&S UK - Public Transport,Executive Office,Corporate Travel Management (North) Ltd,98536608,112.00,T&S UK - Public Transport
BEIS,UKRI - AHRC,15/07/2019,T&S UK - Public Transport,Finance,Corporate Travel Management (North) Ltd,98536608,23.70,T&S UK - Public Transport
BEIS,UKRI - AHRC,15/07/2019,T&S UK - Public Transport,Finance,Corporate Travel Management (North) Ltd,98536608,19.60,T&S UK - Public Transport
BEIS,UKRI - AHRC,15/07/2019,T&S UK - Public Transport,Finance,Corporate Travel Management (North) Ltd,98536608,23.70,T&S UK - Public Transport
BEIS,UKRI - AHRC,15/07/2019,T&S UK - Public Transport,Fund for International Collaboration,Corporate Travel Management (North) Ltd,98536608,28.80,T&S UK - Public Transport
BEIS,UKRI - AHRC,15/07/2019,T&S UK - Public Transport,Fund for International Collaboration,Corporate Travel Management (North) Ltd,98536608,35.40,T&S UK - Public Transport
BEIS,UKRI - AHRC,15/07/2019,T&S UK - Public Transport,GCRF - Programme Delivery,Corporate Travel Management (North) Ltd,98536608,63.70,T&S UK - Public Transport
BEIS,UKRI - AHRC,15/07/2019,T&S UK - Public Transport,GCRF - Programme Delivery,Corporate Travel Management (North) Ltd,98536608,144.00,T&S UK - Public Transport
BEIS,UKRI - AHRC,15/07/2019,T&S UK - Public Transport,GCRF - Programme Delivery,Corporate Travel Management (North) Ltd,98536608,144.00,T&S UK - Public Transport
BEIS,UKRI - AHRC,15/07/2019,T&S UK - Public Transport,GCRF - Programme Delivery,Corporate Travel Management (North) Ltd,98536608,224.00,T&S UK - Public Transport
BEIS,UKRI - AHRC,15/07/2019,T&S UK - Public Transport,GCRF - Programme Delivery,Corporate Travel Management (North) Ltd,98536608,134.50,T&S UK - Public Transport
BEIS,UKRI - AHRC,15/07/2019,T&S UK - Public Transport,GCRF - Programme Delivery,Corporate Travel Management (North) Ltd,98536608,69.90,T&S UK - Public Transport
BEIS,UKRI - AHRC,15/07/2019,T&S UK - Public Transport,GCRF - Programme Delivery,Corporate Travel Management (North) Ltd,98536608,1.00,T&S UK - Public Transport
BEIS,UKRI - AHRC,15/07/2019,T&S UK - Public Transport,GCRF - Programme Delivery,Corporate Travel Management (North) Ltd,98536608,121.90,T&S UK - Public Transport
BEIS,UKRI - AHRC,15/07/2019,T&S UK - Public Transport,GCRF - Programme Delivery,Corporate Travel Management (North) Ltd,98536608,177.05,T&S UK - Public Transport
BEIS,UKRI - AHRC,15/07/2019,T&S UK - Public Transport,GCRF - Programme Delivery,Corporate Travel Management (North) Ltd,98536608,1.00,T&S UK - Public Transport
BEIS,UKRI - AHRC,15/07/2019,T&S UK - Public Transport,GCRF - Programme Delivery,Corporate Travel Management (North) Ltd,98536608,71.20,T&S UK - Public Transport
BEIS,UKRI - AHRC,15/07/2019,T&S UK - Public Transport,HR,Corporate Travel Management (North) Ltd,98536608,151.10,T&S UK - Public Transport
BEIS,UKRI - AHRC,15/07/2019,T&S UK - Public Transport,HR,Corporate Travel Management (North) Ltd,98536608,23.70,T&S UK - Public Transport
BEIS,UKRI - AHRC,15/07/2019,T&S UK - Public Transport,HR,Corporate Travel Management (North) Ltd,98536608,23.70,T&S UK - Public Transport
BEIS,UKRI - AHRC,15/07/2019,T&S UK - Public Transport,HR,Corporate Travel Management (North) Ltd,98536608,96.60,T&S UK - Public Transport
BEIS,UKRI - AHRC,15/07/2019,T&S UK - Public Transport,HR,Corporate Travel Management (North) Ltd,98536608,196.24,T&S UK - Public Transport
BEIS,UKRI - AHRC,15/07/2019,T&S UK - Public Transport,HR,Corporate Travel Management (North) Ltd,98536608,261.43,T&S UK - Public Transport
BEIS,UKRI - AHRC,15/07/2019,T&S UK - Public Transport,HR,Corporate Travel Management (North) Ltd,98536608,184.70,T&S UK - Public Transport
BEIS,UKRI - AHRC,15/07/2019,T&S UK - Public Transport,HR,Corporate Travel Management (North) Ltd,98536608,1.00,T&S UK - Public Transport
BEIS,UKRI - AHRC,15/07/2019,T&S UK - Public Transport,HR,Corporate Travel Management (North) Ltd,98536608,96.10,T&S UK - Public Transport
BEIS,UKRI - AHRC,15/07/2019,T&S UK - Public Transport,HR,Corporate Travel Management (North) Ltd,98536608,23.70,T&S UK - Public Transport
BEIS,UKRI - AHRC,15/07/2019,T&S UK - Public Transport,HR,Corporate Travel Management (North) Ltd,98536608,23.70,T&S UK - Public Transport
BEIS,UKRI - AHRC,15/07/2019,T&S UK - Public Transport,HR,Corporate Travel Management (North) Ltd,98536608,23.70,T&S UK - Public Transport
BEIS,UKRI - AHRC,15/07/2019,T&S UK - Public Transport,HR,Corporate Travel Management (North) Ltd,98536608,97.90,T&S UK - Public Transport
BEIS,UKRI - AHRC,15/07/2019,T&S UK - Public Transport,HR,Corporate Travel Management (North) Ltd,98536608,97.90,T&S UK - Public Transport
BEIS,UKRI - AHRC,15/07/2019,T&S UK - Public Transport,HR,Corporate Travel Management (North) Ltd,98536608,212.00,T&S UK - Public Transport
BEIS,UKRI - AHRC,15/07/2019,T&S UK - Public Transport,HR,Corporate Travel Management (North) Ltd,98536608,184.00,T&S UK - Public Transport
BEIS,UKRI - AHRC,15/07/2019,T&S UK - Public Transport,HR,Corporate Travel Management (North) Ltd,98536608,1.00,T&S UK - Public Transport
BEIS,UKRI - AHRC,15/07/2019,T&S UK - Public Transport,HR,Corporate Travel Management (North) Ltd,98536608,177.00,T&S UK - Public Transport
BEIS,UKRI - AHRC,15/07/2019,T&S UK - Public Transport,"History, Heritage, Languages and Literature",Corporate Travel Management (North) Ltd,98536608,1.00,T&S UK - Public Transport
BEIS,UKRI - AHRC,15/07/2019,T&S UK - Public Transport,"History, Heritage, Languages and Literature",Corporate Travel Management (North) Ltd,98536608,107.50,T&S UK - Public Transport
BEIS,UKRI - AHRC,15/07/2019,T&S UK - Public Transport,"History, Heritage, Languages and Literature",Corporate Travel Management (North) Ltd,98536608,72.00,T&S UK - Public Transport
BEIS,UKRI - AHRC,15/07/2019,T&S UK - Public Transport,"History, Heritage, Languages and Literature",Corporate Travel Management (North) Ltd,98536608,79.50,T&S UK - Public Transport
BEIS,UKRI - AHRC,15/07/2019,T&S UK - Public Transport,"History, Heritage, Languages and Literature",Corporate Travel Management (North) Ltd,98536608,1.00,T&S UK - Public Transport
BEIS,UKRI - AHRC,15/07/2019,T&S UK - Public Transport,"History, Heritage, Languages and Literature",Corporate Travel Management (North) Ltd,98536608,105.00,T&S UK - Public Transport
BEIS,UKRI - AHRC,15/07/2019,T&S UK - Public Transport,"History, Heritage, Languages and Literature",Corporate Travel Management (North) Ltd,98536608,34.10,T&S UK - Public Transport
BEIS,UKRI - AHRC,15/07/2019,T&S UK - Public Transport,"History, Heritage, Languages and Literature",Corporate Travel Management (North) Ltd,98536608,103.80,T&S UK - Public Transport
BEIS,UKRI - AHRC,15/07/2019,T&S UK - Public Transport,"History, Heritage, Languages and Literature",Corporate Travel Management (North) Ltd,98536608,1.00,T&S UK - Public Transport
BEIS,UKRI - AHRC,15/07/2019,T&S UK - Public Transport,"History, Heritage, Languages and Literature",Corporate Travel Management (North) Ltd,98536608,159.00,T&S UK - Public Transport
BEIS,UKRI - AHRC,15/07/2019,T&S UK - Public Transport,"History, Heritage, Languages and Literature",Corporate Travel Management (North) Ltd,98536608,201.50,T&S UK - Public Transport
BEIS,UKRI - AHRC,15/07/2019,T&S UK - Public Transport,"History, Heritage, Languages and Literature",Corporate Travel Management (North) Ltd,98536608,201.50,T&S UK - Public Transport
BEIS,UKRI - AHRC,15/07/2019,T&S UK - Public Transport,"History, Heritage, Languages and Literature",Corporate Travel Management (North) Ltd,98536608,60.30,T&S UK - Public Transport
BEIS,UKRI - AHRC,15/07/2019,T&S UK - Public Transport,"History, Heritage, Languages and Literature",Corporate Travel Management (North) Ltd,98536608,144.00,T&S UK - Public Transport
BEIS,UKRI - AHRC,15/07/2019,T&S UK - Public Transport,"History, Heritage, Languages and Literature",Corporate Travel Management (North) Ltd,98536608,201.50,T&S UK - Public Transport
BEIS,UKRI - AHRC,15/07/2019,T&S UK - Public Transport,"History, Heritage, Languages and Literature",Corporate Travel Management (North) Ltd,98536608,142.60,T&S UK - Public Transport
BEIS,UKRI - AHRC,15/07/2019,T&S UK - Public Transport,IS,Corporate Travel Management (North) Ltd,98536608,144.70,T&S UK - Public Transport
BEIS,UKRI - AHRC,15/07/2019,T&S UK - Public Transport,IS,Corporate Travel Management (North) Ltd,98536608,94.30,T&S UK - Public Transport
BEIS,UKRI - AHRC,15/07/2019,T&S UK - Public Transport,IS,Corporate Travel Management (North) Ltd,98536608,4.90,T&S UK - Public Transport
BEIS,UKRI - AHRC,15/07/2019,T&S UK - Public Transport,IS,Corporate Travel Management (North) Ltd,98536608,151.10,T&S UK - Public Transport
BEIS,UKRI - AHRC,15/07/2019,T&S UK - Public Transport,IS,Corporate Travel Management (North) Ltd,98536608,4.90,T&S UK - Public Transport
BEIS,UKRI - AHRC,15/07/2019,T&S UK - Public Transport,Industrial Strategy Challenge Fund (ISCF) - Creative Clusters,Corporate Travel Management (North) Ltd,98536608,1.00,T&S UK - Public Transport
BEIS,UKRI - AHRC,15/07/2019,T&S UK - Public Transport,Industrial Strategy Challenge Fund (ISCF) - Creative Clusters,Corporate Travel Management (North) Ltd,98536608,144.00,T&S UK - Public Transport
BEIS,UKRI - AHRC,15/07/2019,T&S UK - Public Transport,Industrial Strategy Challenge Fund (ISCF) - Creative Clusters,Corporate Travel Management (North) Ltd,98536608,1.00,T&S UK - Public Transport
BEIS,UKRI - AHRC,15/07/2019,T&S UK - Public Transport,Industrial Strategy Challenge Fund (ISCF) - Creative Clusters,Corporate Travel Management (North) Ltd,98536608,128.20,T&S UK - Public Transport
BEIS,UKRI - AHRC,15/07/2019,T&S UK - Public Transport,Industrial Strategy Challenge Fund (ISCF) - Creative Clusters,Corporate Travel Management (North) Ltd,98536608,1.00,T&S UK - Public Transport
BEIS,UKRI - AHRC,15/07/2019,T&S UK - Public Transport,Industrial Strategy Challenge Fund (ISCF) - Creative Clusters,Corporate Travel Management (North) Ltd,98536608,110.00,T&S UK - Public Transport
BEIS,UKRI - AHRC,15/07/2019,T&S UK - Public Transport,Industrial Strategy Challenge Fund (ISCF) - Creative Clusters,Corporate Travel Management (North) Ltd,98536608,117.50,T&S UK - Public Transport
BEIS,UKRI - AHRC,15/07/2019,T&S UK - Public Transport,Industrial Strategy Challenge Fund (ISCF) - Creative Clusters,Corporate Travel Management (North) Ltd,98536608,1.00,T&S UK - Public Transport
BEIS,UKRI - AHRC,15/07/2019,T&S UK - Public Transport,Industrial Strategy Challenge Fund (ISCF) - Creative Clusters,Corporate Travel Management (North) Ltd,98536608,16.50,T&S UK - Public Transport
BEIS,UKRI - AHRC,15/07/2019,T&S UK - Public Transport,Industrial Strategy Challenge Fund (ISCF) - Creative Clusters,Corporate Travel Management (North) Ltd,98536608,27.50,T&S UK - Public Transport
BEIS,UKRI - AHRC,15/07/2019,T&S UK - Public Transport,Industrial Strategy Challenge Fund (ISCF) - Creative Clusters,Corporate Travel Management (North) Ltd,98536608,5.00,T&S UK - Public Transport
BEIS,UKRI - AHRC,15/07/2019,T&S UK - Public Transport,Industrial Strategy Challenge Fund (ISCF) - Creative Clusters,Corporate Travel Management (North) Ltd,98536608,-166.00,T&S UK - Public Transport
BEIS,UKRI - AHRC,15/07/2019,T&S UK - Public Transport,Industrial Strategy Challenge Fund (ISCF) - Creative Clusters,Corporate Travel Management (North) Ltd,98536608,36.40,T&S UK - Public Transport
BEIS,UKRI - AHRC,15/07/2019,T&S UK - Public Transport,Industrial Strategy Challenge Fund (ISCF) - Creative Clusters,Corporate Travel Management (North) Ltd,98536608,1.00,T&S UK - Public Transport
BEIS,UKRI - AHRC,15/07/2019,T&S UK - Public Transport,Industrial Strategy Challenge Fund (ISCF) - Creative Clusters,Corporate Travel Management (North) Ltd,98536608,36.50,T&S UK - Public Transport
BEIS,UKRI - AHRC,15/07/2019,T&S UK - Public Transport,Industrial Strategy Challenge Fund (ISCF) - Creative Clusters,Corporate Travel Management (North) Ltd,98536608,1.00,T&S UK - Public Transport
BEIS,UKRI - AHRC,15/07/2019,T&S UK - Public Transport,Industrial Strategy Challenge Fund (ISCF) - Creative Clusters,Corporate Travel Management (North) Ltd,98536608,20.90,T&S UK - Public Transport
BEIS,UKRI - AHRC,15/07/2019,T&S UK - Public Transport,Industrial Strategy Challenge Fund (ISCF) - Creative Clusters,Corporate Travel Management (North) Ltd,98536608,1.00,T&S UK - Public Transport
BEIS,UKRI - AHRC,15/07/2019,T&S UK - Public Transport,Industrial Strategy Challenge Fund (ISCF) - Creative Clusters,Corporate Travel Management (North) Ltd,98536608,35.20,T&S UK - Public Transport
BEIS,UKRI - AHRC,15/07/2019,T&S UK - Public Transport,International Development and Area Studies,Corporate Travel Management (North) Ltd,98536608,1.00,T&S UK - Public Transport
BEIS,UKRI - AHRC,15/07/2019,T&S UK - Public Transport,International Development and Area Studies,Corporate Travel Management (North) Ltd,98536608,121.85,T&S UK - Public Transport
BEIS,UKRI - AHRC,15/07/2019,T&S UK - Public Transport,International Development and Area Studies,Corporate Travel Management (North) Ltd,98536608,2.00,T&S UK - Public Transport
BEIS,UKRI - AHRC,15/07/2019,T&S UK - Public Transport,International Development and Area Studies,Corporate Travel Management (North) Ltd,98536608,115.50,T&S UK - Public Transport
BEIS,UKRI - AHRC,15/07/2019,T&S UK - Public Transport,International Development and Area Studies,Corporate Travel Management (North) Ltd,98536608,38.40,T&S UK - Public Transport
BEIS,UKRI - AHRC,15/07/2019,T&S UK - Public Transport,International Development and Area Studies,Corporate Travel Management (North) Ltd,98536608,103.80,T&S UK - Public Transport
BEIS,UKRI - AHRC,15/07/2019,T&S UK - Public Transport,International Development and Area Studies,Corporate Travel Management (North) Ltd,98536608,144.00,T&S UK - Public Transport
BEIS,UKRI - AHRC,15/07/2019,T&S UK - Public Transport,International Development and Area Studies,Corporate Travel Management (North) Ltd,98536608,278.50,T&S UK - Public Transport
BEIS,UKRI - AHRC,15/07/2019,T&S UK - Public Transport,International Development and Area Studies,Corporate Travel Management (North) Ltd,98536608,144.00,T&S UK - Public Transport
BEIS,UKRI - AHRC,15/07/2019,T&S UK - Public Transport,International Development and Area Studies,Corporate Travel Management (North) Ltd,98536608,64.90,T&S UK - Public Transport
BEIS,UKRI - AHRC,15/07/2019,T&S UK - Public Transport,International Partnership and Engagement,Corporate Travel Management (North) Ltd,98536608,31.80,T&S UK - Public Transport
BEIS,UKRI - AHRC,15/07/2019,T&S UK - Public Transport,International Partnership and Engagement,Corporate Travel Management (North) Ltd,98536608,36.55,T&S UK - Public Transport
BEIS,UKRI - AHRC,15/07/2019,T&S UK - Public Transport,International Partnership and Engagement,Corporate Travel Management (North) Ltd,98536608,46.80,T&S UK - Public Transport
BEIS,UKRI - AHRC,15/07/2019,T&S UK - Public Transport,International Partnership and Engagement,Corporate Travel Management (North) Ltd,98536608,89.75,T&S UK - Public Transport
BEIS,UKRI - AHRC,15/07/2019,T&S UK - Public Transport,International Partnership and Engagement,Corporate Travel Management (North) Ltd,98536608,29.80,T&S UK - Public Transport
BEIS,UKRI - AHRC,15/07/2019,T&S UK - Public Transport,International Partnership and Engagement,Corporate Travel Management (North) Ltd,98536608,9.85,T&S UK - Public Transport
BEIS,UKRI - AHRC,15/07/2019,T&S UK - Public Transport,International Partnership and Engagement,Corporate Travel Management (North) Ltd,98536608,10.05,T&S UK - Public Transport
BEIS,UKRI - AHRC,15/07/2019,T&S UK - Public Transport,International Partnership and Engagement,Corporate Travel Management (North) Ltd,98536608,49.95,T&S UK - Public Transport
BEIS,UKRI - AHRC,15/07/2019,T&S UK - Public Transport,International Partnership and Engagement,Corporate Travel Management (North) Ltd,98536608,-19.50,T&S UK - Public Transport
BEIS,UKRI - AHRC,15/07/2019,T&S UK - Public Transport,International Partnership and Engagement,Corporate Travel Management (North) Ltd,98536608,96.50,T&S UK - Public Transport
BEIS,UKRI - AHRC,15/07/2019,T&S UK - Public Transport,International Partnership and Engagement,Corporate Travel Management (North) Ltd,98536608,55.40,T&S UK - Public Transport
BEIS,UKRI - AHRC,15/07/2019,T&S UK - Public Transport,International Partnership and Engagement,Corporate Travel Management (North) Ltd,98536608,69.90,T&S UK - Public Transport
BEIS,UKRI - AHRC,15/07/2019,T&S UK - Public Transport,JPI Cultural Heritage Project,Corporate Travel Management (North) Ltd,98536608,105.50,T&S UK - Public Transport
BEIS,UKRI - AHRC,15/07/2019,T&S UK - Public Transport,Newton Programme Delivery,Corporate Travel Management (North) Ltd,98536608,20.00,T&S UK - Public Transport
BEIS,UKRI - AHRC,15/07/2019,T&S UK - Public Transport,Newton Programme Delivery,Corporate Travel Management (North) Ltd,98536608,-128.40,T&S UK - Public Transport
BEIS,UKRI - AHRC,15/07/2019,T&S UK - Public Transport,Newton Programme Delivery,Corporate Travel Management (North) Ltd,98536608,65.90,T&S UK - Public Transport
BEIS,UKRI - AHRC,15/07/2019,T&S UK - Public Transport,Newton Programme Delivery,Corporate Travel Management (North) Ltd,98536608,69.90,T&S UK - Public Transport
BEIS,UKRI - AHRC,15/07/2019,T&S UK - Public Transport,Newton Programme Delivery,Corporate Travel Management (North) Ltd,98536608,103.80,T&S UK - Public Transport
BEIS,UKRI - AHRC,15/07/2019,T&S UK - Public Transport,Operations,Corporate Travel Management (North) Ltd,98536608,12.00,T&S UK - Public Transport
BEIS,UKRI - AHRC,15/07/2019,T&S UK - Public Transport,Operations,Corporate Travel Management (North) Ltd,98536608,18.10,T&S UK - Public Transport
BEIS,UKRI - AHRC,15/07/2019,T&S UK - Public Transport,Operations,Corporate Travel Management (North) Ltd,98536608,18.10,T&S UK - Public Transport
BEIS,UKRI - AHRC,15/07/2019,T&S UK - Public Transport,Operations,Corporate Travel Management (North) Ltd,98536608,8.20,T&S UK - Public Transport
BEIS,UKRI - AHRC,15/07/2019,T&S UK - Public Transport,Operations,Corporate Travel Management (North) Ltd,98536608,11.90,T&S UK - Public Transport
BEIS,UKRI - AHRC,15/07/2019,T&S UK - Public Transport,PSU JRS,Corporate Travel Management (North) Ltd,98536608,16.50,T&S UK - Public Transport
BEIS,UKRI - AHRC,15/07/2019,T&S UK - Public Transport,PSU Project Office,Corporate Travel Management (North) Ltd,98536608,138.00,T&S UK - Public Transport
BEIS,UKRI - AHRC,15/07/2019,T&S UK - Public Transport,PSU Project Office,Corporate Travel Management (North) Ltd,98536608,67.10,T&S UK - Public Transport
BEIS,UKRI - AHRC,15/07/2019,T&S UK - Public Transport,PSU Project Office,Corporate Travel Management (North) Ltd,98536608,144.70,T&S UK - Public Transport
BEIS,UKRI - AHRC,15/07/2019,T&S UK - Public Transport,PSU Project Office,Corporate Travel Management (North) Ltd,98536608,-8.10,T&S UK - Public Transport
BEIS,UKRI - AHRC,15/07/2019,T&S UK - Public Transport,PSU Project Office,Corporate Travel Management (North) Ltd,98536608,-133.00,T&S UK - Public Transport
BEIS,UKRI - AHRC,15/07/2019,T&S UK - Public Transport,PSU Project Office,Corporate Travel Management (North) Ltd,98536608,-16.20,T&S UK - Public Transport
BEIS,UKRI - AHRC,15/07/2019,T&S UK - Public Transport,PSU Project Office,Corporate Travel Management (North) Ltd,98536608,-266.00,T&S UK - Public Transport
BEIS,UKRI - AHRC,15/07/2019,T&S UK - Public Transport,PSU Project Office,Corporate Travel Management (North) Ltd,98536608,-64.00,T&S UK - Public Transport
BEIS,UKRI - AHRC,15/07/2019,T&S UK - Public Transport,PSU Project Office,Corporate Travel Management (North) Ltd,98536608,-64.00,T&S UK - Public Transport
BEIS,UKRI - AHRC,15/07/2019,T&S UK - Public Transport,PSU Project Office,Corporate Travel Management (North) Ltd,98536608,119.10,T&S UK - Public Transport
BEIS,UKRI - AHRC,15/07/2019,T&S UK - Public Transport,PSU Project Office,Corporate Travel Management (North) Ltd,98536608,18.60,T&S UK - Public Transport
BEIS,UKRI - AHRC,15/07/2019,T&S UK - Public Transport,PSU Project Office,Corporate Travel Management (North) Ltd,98536608,91.10,T&S UK - Public Transport
BEIS,UKRI - AHRC,15/07/2019,T&S UK - Public Transport,PSU Project Office,Corporate Travel Management (North) Ltd,98536608,144.00,T&S UK - Public Transport
BEIS,UKRI - AHRC,15/07/2019,T&S UK - Public Transport,PSU Project Office,Corporate Travel Management (North) Ltd,98536608,85.20,T&S UK - Public Transport
BEIS,UKRI - AHRC,15/07/2019,T&S UK - Public Transport,PSU Project Office,Corporate Travel Management (North) Ltd,98536608,51.00,T&S UK - Public Transport
BEIS,UKRI - AHRC,15/07/2019,T&S UK - Public Transport,PSU Project Office,Corporate Travel Management (North) Ltd,98536608,125.10,T&S UK - Public Transport
BEIS,UKRI - AHRC,15/07/2019,T&S UK - Public Transport,PSU Project Office,Corporate Travel Management (North) Ltd,98536608,79.70,T&S UK - Public Transport
BEIS,UKRI - AHRC,15/07/2019,T&S UK - Public Transport,PSU Project Office,Corporate Travel Management (North) Ltd,98536608,51.00,T&S UK - Public Transport
BEIS,UKRI - AHRC,15/07/2019,T&S UK - Public Transport,PSU Project Office,Corporate Travel Management (North) Ltd,98536608,-139.00,T&S UK - Public Transport
BEIS,UKRI - AHRC,15/07/2019,T&S UK - Public Transport,PSU Project Office,Corporate Travel Management (North) Ltd,98536608,114.40,T&S UK - Public Transport
BEIS,UKRI - AHRC,15/07/2019,T&S UK - Public Transport,PSU Project Office,Corporate Travel Management (North) Ltd,98536608,91.10,T&S UK - Public Transport
BEIS,UKRI - AHRC,15/07/2019,T&S UK - Public Transport,PSU Project Office,Corporate Travel Management (North) Ltd,98536608,114.40,T&S UK - Public Transport
BEIS,UKRI - AHRC,15/07/2019,T&S UK - Public Transport,PSU Project Office,Corporate Travel Management (North) Ltd,98536608,156.60,T&S UK - Public Transport
BEIS,UKRI - AHRC,15/07/2019,T&S UK - Public Transport,PSU Project Office,Corporate Travel Management (North) Ltd,98536608,133.60,T&S UK - Public Transport
BEIS,UKRI - AHRC,15/07/2019,T&S UK - Public Transport,PSU Project Office,Corporate Travel Management (North) Ltd,98536608,1.00,T&S UK - Public Transport
BEIS,UKRI - AHRC,15/07/2019,T&S UK - Public Transport,PSU Project Office,Corporate Travel Management (North) Ltd,98536608,103.80,T&S UK - Public Transport
BEIS,UKRI - AHRC,15/07/2019,T&S UK - Public Transport,PSU Project Office,Corporate Travel Management (North) Ltd,98536608,97.70,T&S UK - Public Transport
BEIS,UKRI - AHRC,15/07/2019,T&S UK - Public Transport,PSU Project Office,Corporate Travel Management (North) Ltd,98536608,48.85,T&S UK - Public Transport
BEIS,UKRI - AHRC,15/07/2019,T&S UK - Public Transport,Public and Stakeholder Engagement,Corporate Travel Management (North) Ltd,98536608,81.10,T&S UK - Public Transport
BEIS,UKRI - AHRC,15/07/2019,T&S UK - Public Transport,Public and Stakeholder Engagement,Corporate Travel Management (North) Ltd,98536608,71.55,T&S UK - Public Transport
BEIS,UKRI - AHRC,15/07/2019,T&S UK - Public Transport,Public and Stakeholder Engagement,Corporate Travel Management (North) Ltd,98536608,87.00,T&S UK - Public Transport
BEIS,UKRI - AHRC,15/07/2019,T&S UK - Public Transport,Public and Stakeholder Engagement,Corporate Travel Management (North) Ltd,98536608,91.10,T&S UK - Public Transport
BEIS,UKRI - AHRC,15/07/2019,T&S UK - Public Transport,Public and Stakeholder Engagement,Corporate Travel Management (North) Ltd,98536608,16.50,T&S UK - Public Transport
BEIS,UKRI - AHRC,15/07/2019,T&S UK - Public Transport,Public and Stakeholder Engagement,Corporate Travel Management (North) Ltd,98536608,209.00,T&S UK - Public Transport
BEIS,UKRI - AHRC,15/07/2019,T&S UK - Public Transport,Public and Stakeholder Engagement,Corporate Travel Management (North) Ltd,98536608,142.90,T&S UK - Public Transport
BEIS,UKRI - AHRC,15/07/2019,T&S UK - Public Transport,Public and Stakeholder Engagement,Corporate Travel Management (North) Ltd,98536608,209.00,T&S UK - Public Transport
BEIS,UKRI - AHRC,15/07/2019,T&S UK - Public Transport,Public and Stakeholder Engagement,Corporate Travel Management (North) Ltd,98536608,144.00,T&S UK - Public Transport
BEIS,UKRI - AHRC,15/07/2019,T&S UK - Public Transport,Public and Stakeholder Engagement,Corporate Travel Management (North) Ltd,98536608,142.90,T&S UK - Public Transport
BEIS,UKRI - AHRC,15/07/2019,T&S UK - Public Transport,Public and Stakeholder Engagement,Corporate Travel Management (North) Ltd,98536608,209.00,T&S UK - Public Transport
BEIS,UKRI - AHRC,15/07/2019,T&S UK - Public Transport,Public and Stakeholder Engagement,Corporate Travel Management (North) Ltd,98536608,148.30,T&S UK - Public Transport
BEIS,UKRI - AHRC,15/07/2019,T&S UK - Public Transport,Public and Stakeholder Engagement,Corporate Travel Management (North) Ltd,98536608,91.10,T&S UK - Public Transport
BEIS,UKRI - AHRC,15/07/2019,T&S UK - Public Transport,SMT,Corporate Travel Management (North) Ltd,98536608,1.00,T&S UK - Public Transport
BEIS,UKRI - AHRC,15/07/2019,T&S UK - Public Transport,SMT,Corporate Travel Management (North) Ltd,98536608,39.40,T&S UK - Public Transport
BEIS,UKRI - AHRC,15/07/2019,T&S UK - Public Transport,SMT,Corporate Travel Management (North) Ltd,98536608,213.00,T&S UK - Public Transport
BEIS,UKRI - AHRC,15/07/2019,T&S UK - Public Transport,SMT,Corporate Travel Management (North) Ltd,98536608,147.00,T&S UK - Public Transport
BEIS,UKRI - AHRC,15/07/2019,T&S UK - Public Transport,SMT,Corporate Travel Management (North) Ltd,98536608,66.00,T&S UK - Public Transport
BEIS,UKRI - AHRC,15/07/2019,T&S UK - Public Transport,SMT,Corporate Travel Management (North) Ltd,98536608,97.80,T&S UK - Public Transport
BEIS,UKRI - AHRC,15/07/2019,T&S UK - Public Transport,SMT,Corporate Travel Management (North) Ltd,98536608,1.00,T&S UK - Public Transport
BEIS,UKRI - AHRC,15/07/2019,T&S UK - Public Transport,SMT,Corporate Travel Management (North) Ltd,98536608,108.40,T&S UK - Public Transport
BEIS,UKRI - AHRC,15/07/2019,T&S UK - Public Transport,SMT,Corporate Travel Management (North) Ltd,98536608,178.50,T&S UK - Public Transport
BEIS,UKRI - AHRC,15/07/2019,T&S UK - Public Transport,SMT,Corporate Travel Management (North) Ltd,98536608,39.40,T&S UK - Public Transport
BEIS,UKRI - AHRC,15/07/2019,T&S UK - Public Transport,SMT,Corporate Travel Management (North) Ltd,98536608,-45.50,T&S UK - Public Transport
BEIS,UKRI - AHRC,15/07/2019,T&S UK - Public Transport,SMT,Corporate Travel Management (North) Ltd,98536608,1.00,T&S UK - Public Transport
BEIS,UKRI - AHRC,15/07/2019,T&S UK - Public Transport,SMT,Corporate Travel Management (North) Ltd,98536608,113.50,T&S UK - Public Transport
BEIS,UKRI - AHRC,15/07/2019,T&S UK - Public Transport,SMT,Corporate Travel Management (North) Ltd,98536608,57.60,T&S UK - Public Transport
BEIS,UKRI - AHRC,15/07/2019,T&S UK - Public Transport,SMT,Corporate Travel Management (North) Ltd,98536608,23.40,T&S UK - Public Transport
BEIS,UKRI - AHRC,15/07/2019,T&S UK - Public Transport,SMT,Corporate Travel Management (North) Ltd,98536608,69.00,T&S UK - Public Transport
BEIS,UKRI - AHRC,15/07/2019,T&S UK - Public Transport,SMT,Corporate Travel Management (North) Ltd,98536608,78.80,T&S UK - Public Transport
BEIS,UKRI - AHRC,15/07/2019,T&S UK - Public Transport,SMT,Corporate Travel Management (North) Ltd,98536608,14.20,T&S UK - Public Transport
BEIS,UKRI - AHRC,15/07/2019,T&S UK - Public Transport,SMT,Corporate Travel Management (North) Ltd,98536608,23.40,T&S UK - Public Transport
BEIS,UKRI - AHRC,15/07/2019,T&S UK - Public Transport,SMT,Corporate Travel Management (North) Ltd,98536608,138.00,T&S UK - Public Transport
BEIS,UKRI - AHRC,15/07/2019,T&S UK - Public Transport,SMT,Corporate Travel Management (North) Ltd,98536608,1.00,T&S UK - Public Transport
BEIS,UKRI - AHRC,15/07/2019,T&S UK - Public Transport,SMT,Corporate Travel Management (North) Ltd,98536608,58.70,T&S UK - Public Transport
BEIS,UKRI - AHRC,15/07/2019,T&S UK - Public Transport,SMT,Corporate Travel Management (North) Ltd,98536608,218.00,T&S UK - Public Transport
BEIS,UKRI - AHRC,15/07/2019,T&S UK - Public Transport,SMT,Corporate Travel Management (North) Ltd,98536608,97.80,T&S UK - Public Transport
BEIS,UKRI - AHRC,15/07/2019,T&S UK - Public Transport,SMT,Corporate Travel Management (North) Ltd,98536608,32.60,T&S UK - Public Transport
BEIS,UKRI - AHRC,15/07/2019,T&S UK - Public Transport,SMT,Corporate Travel Management (North) Ltd,98536608,28.80,T&S UK - Public Transport
BEIS,UKRI - AHRC,15/07/2019,T&S UK - Public Transport,SMT,Corporate Travel Management (North) Ltd,98536608,1.00,T&S UK - Public Transport
BEIS,UKRI - AHRC,15/07/2019,T&S UK - Public Transport,SMT,Corporate Travel Management (North) Ltd,98536608,27.40,T&S UK - Public Transport
BEIS,UKRI - AHRC,15/07/2019,T&S UK - Public Transport,SMT,Corporate Travel Management (North) Ltd,98536608,218.00,T&S UK - Public Transport
BEIS,UKRI - AHRC,15/07/2019,T&S UK - Public Transport,SMT,Corporate Travel Management (North) Ltd,98536608,76.70,T&S UK - Public Transport
BEIS,UKRI - AHRC,15/07/2019,T&S UK - Public Transport,SMT,Corporate Travel Management (North) Ltd,98536608,89.00,T&S UK - Public Transport
BEIS,UKRI - AHRC,15/07/2019,T&S UK - Public Transport,SMT,Corporate Travel Management (North) Ltd,98536608,28.80,T&S UK - Public Transport
BEIS,UKRI - AHRC,15/07/2019,T&S UK - Public Transport,SMT,Corporate Travel Management (North) Ltd,98536608,121.60,T&S UK - Public Transport
BEIS,UKRI - AHRC,15/07/2019,T&S UK - Public Transport,SMT,Corporate Travel Management (North) Ltd,98536608,97.80,T&S UK - Public Transport
BEIS,UKRI - AHRC,15/07/2019,T&S UK - Public Transport,SMT,Corporate Travel Management (North) Ltd,98536608,1.00,T&S UK - Public Transport
BEIS,UKRI - AHRC,15/07/2019,T&S UK - Public Transport,SMT,Corporate Travel Management (North) Ltd,98536608,16.30,T&S UK - Public Transport
BEIS,UKRI - AHRC,15/07/2019,T&S UK - Public Transport,SMT,Corporate Travel Management (North) Ltd,98536608,57.60,T&S UK - Public Transport
BEIS,UKRI - AHRC,15/07/2019,T&S UK - Public Transport,SMT,Corporate Travel Management (North) Ltd,98536608,5.00,T&S UK - Public Transport
BEIS,UKRI - AHRC,15/07/2019,T&S UK - Public Transport,SMT,Corporate Travel Management (North) Ltd,98536608,-149.90,T&S UK - Public Transport
BEIS,UKRI - AHRC,15/07/2019,T&S UK - Public Transport,SMT,Corporate Travel Management (North) Ltd,98536608,144.40,T&S UK - Public Transport
BEIS,UKRI - AHRC,15/07/2019,T&S UK - Public Transport,SMT,Corporate Travel Management (North) Ltd,98536608,57.60,T&S UK - Public Transport
BEIS,UKRI - AHRC,15/07/2019,T&S UK - Public Transport,SMT,Corporate Travel Management (North) Ltd,98536608,2.00,T&S UK - Public Transport
BEIS,UKRI - AHRC,15/07/2019,T&S UK - Public Transport,SMT,Corporate Travel Management (North) Ltd,98536608,25.00,T&S UK - Public Transport
BEIS,UKRI - AHRC,15/07/2019,T&S UK - Public Transport,SMT,Corporate Travel Management (North) Ltd,98536608,33.70,T&S UK - Public Transport
BEIS,UKRI - AHRC,15/07/2019,T&S UK - Public Transport,SMT,Corporate Travel Management (North) Ltd,98536608,-17.00,T&S UK - Public Transport
BEIS,UKRI - AHRC,15/07/2019,T&S UK - Public Transport,SMT,Corporate Travel Management (North) Ltd,98536608,5.00,T&S UK - Public Transport
BEIS,UKRI - AHRC,15/07/2019,T&S UK - Public Transport,SMT,Corporate Travel Management (North) Ltd,98536608,-98.40,T&S UK - Public Transport
BEIS,UKRI - AHRC,15/07/2019,T&S UK - Public Transport,SMT,Corporate Travel Management (North) Ltd,98536608,97.80,T&S UK - Public Transport
BEIS,UKRI - AHRC,15/07/2019,T&S UK - Public Transport,SMT,Corporate Travel Management (North) Ltd,98536608,138.00,T&S UK - Public Transport
BEIS,UKRI - AHRC,15/07/2019,T&S UK - Public Transport,SMT,Corporate Travel Management (North) Ltd,98536608,1.00,T&S UK - Public Transport
BEIS,UKRI - AHRC,15/07/2019,T&S UK - Public Transport,SMT,Corporate Travel Management (North) Ltd,98536608,163.60,T&S UK - Public Transport
BEIS,UKRI - AHRC,15/07/2019,T&S UK - Public Transport,SMT,Corporate Travel Management (North) Ltd,98536608,218.00,T&S UK - Public Transport
BEIS,UKRI - AHRC,15/07/2019,T&S UK - Public Transport,SMT,Corporate Travel Management (North) Ltd,98536608,26.00,T&S UK - Public Transport
BEIS,UKRI - AHRC,15/07/2019,T&S UK - Public Transport,SMT,Corporate Travel Management (North) Ltd,98536608,108.40,T&S UK - Public Transport
BEIS,UKRI - AHRC,15/07/2019,T&S UK - Public Transport,SMT,Corporate Travel Management (North) Ltd,98536608,1.00,T&S UK - Public Transport
BEIS,UKRI - AHRC,15/07/2019,T&S UK - Public Transport,SMT,Corporate Travel Management (North) Ltd,98536608,20.50,T&S UK - Public Transport
BEIS,UKRI - AHRC,15/07/2019,T&S UK - Public Transport,SMT,Corporate Travel Management (North) Ltd,98536608,138.00,T&S UK - Public Transport
BEIS,UKRI - AHRC,15/07/2019,T&S UK - Public Transport,SMT,Corporate Travel Management (North) Ltd,98536608,1.00,T&S UK - Public Transport
BEIS,UKRI - AHRC,15/07/2019,T&S UK - Public Transport,SMT,Corporate Travel Management (North) Ltd,98536608,33.70,T&S UK - Public Transport
BEIS,UKRI - AHRC,15/07/2019,T&S UK - Public Transport,Skills Strategy,Corporate Travel Management (North) Ltd,98536608,169.00,T&S UK - Public Transport
BEIS,UKRI - AHRC,15/07/2019,T&S UK - Public Transport,Skills Strategy,Corporate Travel Management (North) Ltd,98536608,96.50,T&S UK - Public Transport
BEIS,UKRI - AHRC,15/07/2019,T&S UK - Public Transport,Skills Strategy,Corporate Travel Management (North) Ltd,98536608,64.40,T&S UK - Public Transport
BEIS,UKRI - AHRC,15/07/2019,T&S UK - Public Transport,Skills Strategy,Corporate Travel Management (North) Ltd,98536608,64.40,T&S UK - Public Transport
BEIS,UKRI - AHRC,15/07/2019,T&S UK - Public Transport,Skills Strategy,Corporate Travel Management (North) Ltd,98536608,85.80,T&S UK - Public Transport
BEIS,UKRI - AHRC,15/07/2019,T&S UK - Subsistence,Public and Stakeholder Engagement,Unspecified,98537163,12.79,T&S UK - Subsistence
BEIS,UKRI - AHRC,15/07/2019,T&S UK - Public Transport,Executive Office,Unspecified,98537164,18.70,T&S UK - Public Transport
BEIS,UKRI - AHRC,15/07/2019,T&S UK - Public Transport,Executive Office,Unspecified,98537164,51.80,T&S UK - Public Transport
BEIS,UKRI - AHRC,15/07/2019,T&S UK - Public Transport,Executive Office,Unspecified,98537164,11.30,T&S UK - Public Transport
BEIS,UKRI - AHRC,15/07/2019,T&S UK - Subsistence,Executive Office,Unspecified,98537164,16.80,T&S UK - Subsistence
BEIS,UKRI - AHRC,15/07/2019,T&S UK - Subsistence,Executive Office,Unspecified,98537164,14.55,T&S UK - Subsistence
BEIS,UKRI - AHRC,16/07/2019,Recruitment Costs,Operations,Onefix Recruitment Ltd,98535241,150.00,Recruitment Costs
BEIS,UKRI - AHRC,16/07/2019,Nursery Deductions,Balance Sheet,EDENRED (UK GROUP) LTD,98537578,2298.73,Nursery Deductions
BEIS,UKRI - AHRC,16/07/2019,T&S UK - Other Charges,Public and Stakeholder Engagement,Unspecified,98537599,45.90,T&S UK - Other Charges
BEIS,UKRI - AHRC,16/07/2019,T&S UK - Public Transport,Public and Stakeholder Engagement,Unspecified,98537599,14.20,T&S UK - Public Transport
BEIS,UKRI - AHRC,16/07/2019,T&S UK - Public Transport,Public and Stakeholder Engagement,Unspecified,98537599,16.00,T&S UK - Public Transport
BEIS,UKRI - AHRC,16/07/2019,T&S UK - Subsistence,Public and Stakeholder Engagement,Unspecified,98537599,12.80,T&S UK - Subsistence
BEIS,UKRI - AHRC,16/07/2019,T&S UK - Subsistence,Public and Stakeholder Engagement,Unspecified,98537599,54.30,T&S UK - Subsistence
BEIS,UKRI - AHRC,16/07/2019,T&S UK - Subsistence,Public and Stakeholder Engagement,Unspecified,98537599,28.14,T&S UK - Subsistence
BEIS,UKRI - AHRC,16/07/2019,T&S UK - Subsistence,Public and Stakeholder Engagement,Unspecified,98537599,20.00,T&S UK - Subsistence
BEIS,UKRI - AHRC,16/07/2019,Legal & Professional Services,Public and Stakeholder Engagement,Tamasine McCaig T/A Mighty Oaks Digital,98538119,1200.00,Legal & Professional Services
BEIS,UKRI - AHRC,16/07/2019,Research Grant Expenditure,Digital Arts and Humanities and Creative Industries,Clore Leadership Programme,98538124,6251.04,Research Grant Expenditure
BEIS,UKRI - AHRC,17/07/2019,Non-staff travel and subsistance,Executive Office,Non Employee Expenses Supplier,98538181,89.00,Non-staff travel and subsistance
BEIS,UKRI - AHRC,17/07/2019,Non-staff travel and subsistance,SMT,Non Employee Expenses Supplier,98538183,41.15,Non-staff travel and subsistance
BEIS,UKRI - AHRC,17/07/2019,Non-staff travel and subsistance,International Partnership and Engagement,Non Employee Expenses Supplier,98538184,126.20,Non-staff travel and subsistance
BEIS,UKRI - AHRC,17/07/2019,Non-staff travel and subsistance,GCRF - Programme Delivery,Non Employee Expenses Supplier,98538185,174.80,Non-staff travel and subsistance
BEIS,UKRI - AHRC,17/07/2019,Non-staff travel and subsistance,GCRF - Programme Delivery,Non Employee Expenses Supplier,98538186,349.70,Non-staff travel and subsistance
BEIS,UKRI - AHRC,17/07/2019,Non-staff travel and subsistance,GCRF - Programme Delivery,Non Employee Expenses Supplier,98538187,187.90,Non-staff travel and subsistance
BEIS,UKRI - AHRC,17/07/2019,Non-staff travel and subsistance,GCRF - Programme Delivery,Non Employee Expenses Supplier,98538188,88.40,Non-staff travel and subsistance
BEIS,UKRI - AHRC,17/07/2019,Non-staff travel and subsistance,GCRF - Programme Delivery,Non Employee Expenses Supplier,98538189,185.10,Non-staff travel and subsistance
BEIS,UKRI - AHRC,17/07/2019,Non-staff travel and subsistance,GCRF - Programme Delivery,Non Employee Expenses Supplier,98538190,188.50,Non-staff travel and subsistance
BEIS,UKRI - AHRC,17/07/2019,Non-staff travel and subsistance,Executive Office,Non Employee Expenses Supplier,98538191,401.90,Non-staff travel and subsistance
BEIS,UKRI - AHRC,17/07/2019,Non-staff travel and subsistance,"History, Heritage, Languages and Literature",Non Employee Expenses Supplier,98538192,165.00,Non-staff travel and subsistance
BEIS,UKRI - AHRC,17/07/2019,Non-staff travel and subsistance,International Development and Area Studies,Non Employee Expenses Supplier,98538193,65.65,Non-staff travel and subsistance
BEIS,UKRI - AHRC,17/07/2019,Non-staff travel and subsistance,"History, Heritage, Languages and Literature",Non Employee Expenses Supplier,98538194,185.20,Non-staff travel and subsistance
BEIS,UKRI - AHRC,17/07/2019,Non-staff travel and subsistance,Executive Office,Non Employee Expenses Supplier,98538195,198.55,Non-staff travel and subsistance
BEIS,UKRI - AHRC,17/07/2019,Non-staff travel and subsistance,Fund for International Collaboration,Non Employee Expenses Supplier,98538196,2131.17,Non-staff travel and subsistance
BEIS,UKRI - AHRC,17/07/2019,Conferences & Seminars,Secretariat,University of Glasgow,98538320,870.44,Conferences & Seminars
BEIS,UKRI - AHRC,17/07/2019,Meetings & Catering,SMT,Baxter Storey Ltd,98538350,684.66,Meetings & Catering
BEIS,UKRI - AHRC,17/07/2019,T&S UK - Mileage,SMT,Unspecified,98539238,108.90,T&S UK - Mileage
BEIS,UKRI - AHRC,17/07/2019,T&S UK - Other Charges,SMT,Unspecified,98539238,4.50,T&S UK - Other Charges
BEIS,UKRI - AHRC,17/07/2019,T&S UK - Parking Tolls Congestion Charges,SMT,Unspecified,98539238,5.90,T&S UK - Parking Tolls Congestion Charges
BEIS,UKRI - AHRC,17/07/2019,T&S UK - Public Transport,SMT,Unspecified,98539238,52.00,T&S UK - Public Transport
BEIS,UKRI - AHRC,17/07/2019,T&S UK - Subsistence,SMT,Unspecified,98539238,19.05,T&S UK - Subsistence
BEIS,UKRI - AHRC,17/07/2019,T&S UK - Subsistence,SMT,Unspecified,98539238,8.75,T&S UK - Subsistence
BEIS,UKRI - AHRC,17/07/2019,T&S UK - Subsistence,SMT,Unspecified,98539238,10.00,T&S UK - Subsistence
BEIS,UKRI - AHRC,17/07/2019,T&S UK - Subsistence,SMT,Unspecified,98539238,10.14,T&S UK - Subsistence
BEIS,UKRI - AHRC,17/07/2019,T&S UK - Other Charges,SMT,Unspecified,98539239,3.74,T&S UK - Other Charges
BEIS,UKRI - AHRC,17/07/2019,T&S UK - Parking Tolls Congestion Charges,SMT,Unspecified,98539239,28.80,T&S UK - Parking Tolls Congestion Charges
BEIS,UKRI - AHRC,17/07/2019,T&S UK - Subsistence,SMT,Unspecified,98539239,5.35,T&S UK - Subsistence
BEIS,UKRI - AHRC,17/07/2019,T&S UK - Subsistence,SMT,Unspecified,98539239,16.83,T&S UK - Subsistence
BEIS,UKRI - AHRC,17/07/2019,T&S UK - Subsistence,SMT,Unspecified,98539239,8.17,T&S UK - Subsistence
BEIS,UKRI - AHRC,17/07/2019,T&S UK - Public Transport,Executive Office,Unspecified,98539240,4.80,T&S UK - Public Transport
BEIS,UKRI - AHRC,17/07/2019,T&S UK - Subsistence,Executive Office,Unspecified,98539240,10.00,T&S UK - Subsistence
BEIS,UKRI - AHRC,18/07/2019,Recruitment Costs,Corporate Services,Onefix Recruitment Ltd,98537896,150.00,Recruitment Costs
BEIS,UKRI - AHRC,18/07/2019,T&S UK - Subsistence,"History, Heritage, Languages and Literature",Unspecified,98539954,6.75,T&S UK - Subsistence
BEIS,UKRI - AHRC,18/07/2019,T&S UK - Subsistence,"History, Heritage, Languages and Literature",Unspecified,98539954,8.72,T&S UK - Subsistence
BEIS,UKRI - AHRC,18/07/2019,T&S UK - Subsistence,"History, Heritage, Languages and Literature",Unspecified,98539954,20.00,T&S UK - Subsistence
BEIS,UKRI - AHRC,19/07/2019,T&S UK - Other Charges,SMT,Unspecified,98540513,85.23,T&S UK - Other Charges
BEIS,UKRI - AHRC,19/07/2019,T&S UK - Parking Tolls Congestion Charges,SMT,Unspecified,98540513,35.70,T&S UK - Parking Tolls Congestion Charges
BEIS,UKRI - AHRC,19/07/2019,T&S UK - Public Transport,SMT,Unspecified,98540513,55.00,T&S UK - Public Transport
BEIS,UKRI - AHRC,19/07/2019,T&S UK - Subsistence,SMT,Unspecified,98540513,62.80,T&S UK - Subsistence
BEIS,UKRI - AHRC,19/07/2019,T&S UK - Subsistence,SMT,Unspecified,98540513,4.88,T&S UK - Subsistence
BEIS,UKRI - AHRC,19/07/2019,T&S UK - Subsistence,SMT,Unspecified,98540513,3.50,T&S UK - Subsistence
BEIS,UKRI - AHRC,22/07/2019,Health & Safety (inc. Medicals & Opticians),Secretariat,Unspecified,98541185,100.00,Health & Safety (inc. Medicals & Opticians)
BEIS,UKRI - AHRC,22/07/2019,T&S UK - Subsistence,Public and Stakeholder Engagement,Unspecified,98541188,9.07,T&S UK - Subsistence
BEIS,UKRI - AHRC,22/07/2019,T&S UK - Public Transport,Public and Stakeholder Engagement,Unspecified,98541189,87.00,T&S UK - Public Transport
BEIS,UKRI - AHRC,22/07/2019,T&S UK - Subsistence,Public and Stakeholder Engagement,Unspecified,98541189,1.77,T&S UK - Subsistence
BEIS,UKRI - AHRC,22/07/2019,T&S UK - Subsistence,Public and Stakeholder Engagement,Unspecified,98541189,7.05,T&S UK - Subsistence
BEIS,UKRI - AHRC,22/07/2019,T&S UK - Subsistence,Public and Stakeholder Engagement,Unspecified,98541189,5.00,T&S UK - Subsistence
BEIS,UKRI - AHRC,22/07/2019,Consultancy Services,Industrial Strategy Challenge Fund (ISCF) - Creative Clusters,SQW Ltd,98541917,14995.78,Consultancy Services
BEIS,UKRI - AHRC,22/07/2019,Contract Staff,PSU Project Office,Alexander Mann Solutions Ltd,98541941,2795.58,Contract Staff
BEIS,UKRI - AHRC,23/07/2019,Provision for Early Retirement Liability,Corporate Services,RCPS Pension,98529223,46499.24,Provision for Early Retirement Liability
BEIS,UKRI - AHRC,23/07/2019,Training Awards - Postgraduates,Collabrative Doctoral Grants - Block Payment,De Montfort University,98529526,59023.30,Training Awards - Postgraduates
BEIS,UKRI - AHRC,23/07/2019,Training Awards - Postgraduates,International Placement Scheme,Queen's University Belfast GRANT,98529527,-654.00,Training Awards - Postgraduates
BEIS,UKRI - AHRC,23/07/2019,Training Awards - Postgraduates,BGP Award,"Royal Holloway, University of London",98530037,673870.93,Training Awards - Postgraduates
BEIS,UKRI - AHRC,23/07/2019,Training Awards - Postgraduates,BGP Award,University of the West of England,98530038,116788.61,Training Awards - Postgraduates
BEIS,UKRI - AHRC,23/07/2019,Training Awards - Postgraduates,BGP Award,University of Hull,98530039,88877.86,Training Awards - Postgraduates
BEIS,UKRI - AHRC,23/07/2019,Training Awards - Postgraduates,BGP Award,University College London,98530040,125993.18,Training Awards - Postgraduates
BEIS,UKRI - AHRC,23/07/2019,Training Awards - Postgraduates,BGP Award,University College London,98530041,941427.98,Training Awards - Postgraduates
BEIS,UKRI - AHRC,23/07/2019,Training Awards - Postgraduates,BGP Award,University of Oxford,98530042,711023.21,Training Awards - Postgraduates
BEIS,UKRI - AHRC,23/07/2019,Training Awards - Postgraduates,BGP Award,University of Glasgow,98530043,711023.25,Training Awards - Postgraduates
BEIS,UKRI - AHRC,23/07/2019,Training Awards - Postgraduates,BGP Award,University of Newcastle Upon Tyne,98530044,556110.56,Training Awards - Postgraduates
BEIS,UKRI - AHRC,23/07/2019,Training Awards - Postgraduates,BGP Award,University of Bristol GRANT,98530045,711023.25,Training Awards - Postgraduates
BEIS,UKRI - AHRC,23/07/2019,Training Awards - Postgraduates,BGP Award,University of Glasgow,98530046,88877.86,Training Awards - Postgraduates
BEIS,UKRI - AHRC,23/07/2019,Training Awards - Postgraduates,BGP Award,Northumbria University,98530047,58394.49,Training Awards - Postgraduates
BEIS,UKRI - AHRC,23/07/2019,Training Awards - Postgraduates,BGP Award,The University of Manchester,98530048,711023.25,Training Awards - Postgraduates
BEIS,UKRI - AHRC,23/07/2019,Training Awards - Postgraduates,BGP Award,University of Cambridge,98530049,5362.48,Training Awards - Postgraduates
BEIS,UKRI - AHRC,23/07/2019,Training Awards - Postgraduates,BGP Award,University of Cambridge,98530049,711023.25,Training Awards - Postgraduates
BEIS,UKRI - AHRC,23/07/2019,Training Awards - Postgraduates,BGP Award,University of Reading,98530050,109207.60,Training Awards - Postgraduates
BEIS,UKRI - AHRC,23/07/2019,Training Awards - Postgraduates,BGP Award,University of Sussex,98530051,846925.78,Training Awards - Postgraduates
BEIS,UKRI - AHRC,23/07/2019,Training Awards - Postgraduates,BGP Award,University of Nottingham,98530052,728798.77,Training Awards - Postgraduates
BEIS,UKRI - AHRC,23/07/2019,Training Awards - Postgraduates,BGP Award,University of York,98530053,956519.87,Training Awards - Postgraduates
BEIS,UKRI - AHRC,23/07/2019,Training Awards - Postgraduates,BGP Award,Royal College of Art,98530054,117678.47,Training Awards - Postgraduates
BEIS,UKRI - AHRC,23/07/2019,Training Awards - Postgraduates,Collabrative Doctoral Grants - Block Payment,University of Liverpool,98530055,9918.50,Training Awards - Postgraduates
BEIS,UKRI - AHRC,23/07/2019,Training Awards - Postgraduates,Collabrative Doctoral Grants - Block Payment,University of Central Lancashire,98530056,9927.50,Training Awards - Postgraduates
BEIS,UKRI - AHRC,23/07/2019,Training Awards - Postgraduates,Collabrative Doctoral Grants - Block Payment,University of St Andrews,98530057,4963.75,Training Awards - Postgraduates
BEIS,UKRI - AHRC,23/07/2019,Training Awards - Postgraduates,Collabrative Doctoral Grants - Block Payment,University of Glasgow,98530058,4963.75,Training Awards - Postgraduates
BEIS,UKRI - AHRC,23/07/2019,Training Awards - Postgraduates,Collabrative Doctoral Grants - Block Payment,University of Glasgow,98530059,4963.75,Training Awards - Postgraduates
BEIS,UKRI - AHRC,23/07/2019,Training Awards - Postgraduates,Collabrative Doctoral Grants - Block Payment,University of Liverpool,98530060,9927.50,Training Awards - Postgraduates
BEIS,UKRI - AHRC,23/07/2019,Training Awards - Postgraduates,Collabrative Doctoral Grants - Block Payment,University of Sheffield,98530061,4963.75,Training Awards - Postgraduates
BEIS,UKRI - AHRC,23/07/2019,Training Awards - Postgraduates,Collabrative Doctoral Grants - Block Payment,University of Huddersfield,98530062,4963.75,Training Awards - Postgraduates
BEIS,UKRI - AHRC,23/07/2019,Training Awards - Postgraduates,Collabrative Doctoral Grants - Block Payment,University College London,98530063,5463.75,Training Awards - Postgraduates
BEIS,UKRI - AHRC,23/07/2019,Training Awards - Postgraduates,Collabrative Doctoral Grants - Block Payment,University of York,98530064,9927.50,Training Awards - Postgraduates
BEIS,UKRI - AHRC,23/07/2019,Training Awards - Postgraduates,Collabrative Doctoral Grants - Block Payment,Coventry University,98530065,4963.75,Training Awards - Postgraduates
BEIS,UKRI - AHRC,23/07/2019,Training Awards - Postgraduates,Collabrative Doctoral Grants - Block Payment,University of Liverpool,98530066,9927.50,Training Awards - Postgraduates
BEIS,UKRI - AHRC,23/07/2019,Training Awards - Postgraduates,Collabrative Doctoral Grants - Block Payment,University of Nottingham,98530067,4963.75,Training Awards - Postgraduates
BEIS,UKRI - AHRC,23/07/2019,Training Awards - Postgraduates,Collabrative Doctoral Grants - Block Payment,University of the Highlands and Islands,98530068,4963.75,Training Awards - Postgraduates
BEIS,UKRI - AHRC,23/07/2019,Training Awards - Postgraduates,Collabrative Doctoral Grants - Block Payment,University College London,98530069,5463.75,Training Awards - Postgraduates
BEIS,UKRI - AHRC,23/07/2019,Training Awards - Postgraduates,Collabrative Doctoral Grants - Block Payment,University of Durham,98530070,4963.75,Training Awards - Postgraduates
BEIS,UKRI - AHRC,23/07/2019,Training Awards - Postgraduates,Collabrative Doctoral Grants - Block Payment,University of Liverpool,98530071,9927.50,Training Awards - Postgraduates
BEIS,UKRI - AHRC,23/07/2019,Training Awards - Postgraduates,Collabrative Doctoral Grants - Block Payment,London South Bank University,98530072,5463.75,Training Awards - Postgraduates
BEIS,UKRI - AHRC,23/07/2019,Training Awards - Postgraduates,Collabrative Doctoral Grants - Block Payment,University of Nottingham,98530073,4963.75,Training Awards - Postgraduates
BEIS,UKRI - AHRC,23/07/2019,Training Awards - Postgraduates,Collabrative Doctoral Grants - Block Payment,Queen Mary University of London,98530074,5463.75,Training Awards - Postgraduates
BEIS,UKRI - AHRC,23/07/2019,Training Awards - Postgraduates,Collabrative Doctoral Grants - Block Payment,Cardiff University,98530075,4963.75,Training Awards - Postgraduates
BEIS,UKRI - AHRC,23/07/2019,Training Awards - Postgraduates,Collabrative Doctoral Grants - Block Payment,"Royal Holloway, University of London",98530076,5463.75,Training Awards - Postgraduates
BEIS,UKRI - AHRC,23/07/2019,Training Awards - Postgraduates,Collabrative Doctoral Grants - Block Payment,Queen Mary University of London,98530077,5463.75,Training Awards - Postgraduates
BEIS,UKRI - AHRC,23/07/2019,Training Awards - Postgraduates,Collabrative Doctoral Grants - Block Payment,"Royal Holloway, University of London",98530078,5463.75,Training Awards - Postgraduates
BEIS,UKRI - AHRC,23/07/2019,Training Awards - Postgraduates,Collabrative Doctoral Grants - Block Payment,University of York,98530079,4963.75,Training Awards - Postgraduates
BEIS,UKRI - AHRC,23/07/2019,Training Awards - Postgraduates,Collabrative Doctoral Grants - Block Payment,University of Warwick,98530080,4963.75,Training Awards - Postgraduates
BEIS,UKRI - AHRC,23/07/2019,Training Awards - Postgraduates,Collabrative Doctoral Grants - Block Payment,University of Warwick,98530080,4963.75,Training Awards - Postgraduates
BEIS,UKRI - AHRC,23/07/2019,Training Awards - Postgraduates,Collabrative Doctoral Grants - Block Payment,Birkbeck College,98530081,5463.75,Training Awards - Postgraduates
BEIS,UKRI - AHRC,23/07/2019,Training Awards - Postgraduates,Collabrative Doctoral Grants - Block Payment,Birkbeck College,98530081,5463.75,Training Awards - Postgraduates
BEIS,UKRI - AHRC,23/07/2019,Training Awards - Postgraduates,Collabrative Doctoral Grants - Block Payment,University of Cambridge,98530082,4963.75,Training Awards - Postgraduates
BEIS,UKRI - AHRC,23/07/2019,Training Awards - Postgraduates,Collabrative Doctoral Grants - Block Payment,University of Strathclyde,98530083,4963.75,Training Awards - Postgraduates
BEIS,UKRI - AHRC,23/07/2019,Training Awards - Postgraduates,Collabrative Doctoral Grants - Block Payment,University of Kent,98530084,4963.75,Training Awards - Postgraduates
BEIS,UKRI - AHRC,23/07/2019,Training Awards - Postgraduates,Collabrative Doctoral Grants - Block Payment,University of Lincoln,98530085,4963.75,Training Awards - Postgraduates
BEIS,UKRI - AHRC,23/07/2019,Training Awards - Postgraduates,Collabrative Doctoral Grants - Block Payment,University of Brighton,98530086,4963.75,Training Awards - Postgraduates
BEIS,UKRI - AHRC,23/07/2019,Training Awards - Postgraduates,Collabrative Doctoral Grants - Block Payment,Swansea University,98530087,4963.75,Training Awards - Postgraduates
BEIS,UKRI - AHRC,23/07/2019,Training Awards - Postgraduates,Collabrative Doctoral Grants - Block Payment,Bath Spa University,98530088,4963.75,Training Awards - Postgraduates
BEIS,UKRI - AHRC,23/07/2019,Training Awards - Postgraduates,Collabrative Doctoral Grants - Block Payment,University of Leeds,98530089,4963.75,Training Awards - Postgraduates
BEIS,UKRI - AHRC,23/07/2019,Training Awards - Postgraduates,Collabrative Doctoral Grants - Block Payment,University of Brighton,98530090,4963.75,Training Awards - Postgraduates
BEIS,UKRI - AHRC,23/07/2019,Training Awards - Postgraduates,Collabrative Doctoral Grants - Block Payment,University of Leeds,98530091,4963.75,Training Awards - Postgraduates
BEIS,UKRI - AHRC,23/07/2019,Training Awards - Postgraduates,Collabrative Doctoral Grants - Block Payment,University of Durham,98530092,4963.75,Training Awards - Postgraduates
BEIS,UKRI - AHRC,23/07/2019,Training Awards - Postgraduates,Collabrative Doctoral Grants - Block Payment,Manchester Metropolitan University,98530093,4963.75,Training Awards - Postgraduates
BEIS,UKRI - AHRC,23/07/2019,Training Awards - Postgraduates,Collabrative Doctoral Grants - Block Payment,University of Durham,98530094,4963.75,Training Awards - Postgraduates
BEIS,UKRI - AHRC,23/07/2019,Training Awards - Postgraduates,Collabrative Doctoral Grants - Block Payment,Courtauld Institute of Art,98530095,5463.75,Training Awards - Postgraduates
BEIS,UKRI - AHRC,23/07/2019,Training Awards - Postgraduates,Collabrative Doctoral Grants - Block Payment,University of Aberdeen,98530096,4963.75,Training Awards - Postgraduates
BEIS,UKRI - AHRC,23/07/2019,Training Awards - Postgraduates,Collabrative Doctoral Grants - Block Payment,University of Reading,98530097,4963.75,Training Awards - Postgraduates
BEIS,UKRI - AHRC,23/07/2019,Training Awards - Postgraduates,Collabrative Doctoral Grants - Block Payment,University of Bristol GRANT,98530098,4963.75,Training Awards - Postgraduates
BEIS,UKRI - AHRC,23/07/2019,Training Awards - Postgraduates,Collabrative Doctoral Grants - Block Payment,Royal College of Art,98530099,5463.75,Training Awards - Postgraduates
BEIS,UKRI - AHRC,23/07/2019,Training Awards - Postgraduates,Collabrative Doctoral Grants - Block Payment,University of Newcastle Upon Tyne,98530100,4963.75,Training Awards - Postgraduates
BEIS,UKRI - AHRC,23/07/2019,Training Awards - Postgraduates,Collabrative Doctoral Grants - Block Payment,University of Bedfordshire,98530101,4963.75,Training Awards - Postgraduates
BEIS,UKRI - AHRC,23/07/2019,Training Awards - Postgraduates,Collabrative Doctoral Grants - Block Payment,Guildhall School of Music & Drama,98530102,5463.75,Training Awards - Postgraduates
BEIS,UKRI - AHRC,23/07/2019,Training Awards - Postgraduates,Collabrative Doctoral Grants - Block Payment,The University of Manchester,98530103,4963.75,Training Awards - Postgraduates
BEIS,UKRI - AHRC,23/07/2019,Training Awards - Postgraduates,Collabrative Doctoral Grants - Block Payment,University of Glasgow,98530104,4963.75,Training Awards - Postgraduates
BEIS,UKRI - AHRC,23/07/2019,Training Awards - Postgraduates,Collabrative Doctoral Grants - Block Payment,University College London,98530105,5463.75,Training Awards - Postgraduates
BEIS,UKRI - AHRC,23/07/2019,Training Awards - Postgraduates,Collabrative Doctoral Grants - Block Payment,University of Leicester,98530106,4963.75,Training Awards - Postgraduates
BEIS,UKRI - AHRC,23/07/2019,Training Awards - Postgraduates,Collabrative Doctoral Grants - Block Payment,The University of Manchester,98530107,4963.75,Training Awards - Postgraduates
BEIS,UKRI - AHRC,23/07/2019,Training Awards - Postgraduates,Collabrative Doctoral Grants - Block Payment,Heriot Watt University,98530108,4963.75,Training Awards - Postgraduates
BEIS,UKRI - AHRC,23/07/2019,Training Awards - Postgraduates,Collabrative Doctoral Grants - Block Payment,University of Cambridge,98530109,4963.75,Training Awards - Postgraduates
BEIS,UKRI - AHRC,23/07/2019,Training Awards - Postgraduates,Collabrative Doctoral Grants - Block Payment,University of Northampton,98530110,4963.75,Training Awards - Postgraduates
BEIS,UKRI - AHRC,23/07/2019,Training Awards - Postgraduates,Collabrative Doctoral Grants - Block Payment,Queen Mary University of London,98530111,5463.75,Training Awards - Postgraduates
BEIS,UKRI - AHRC,23/07/2019,Training Awards - Postgraduates,Collabrative Doctoral Grants - Block Payment,University of York,98530112,4963.75,Training Awards - Postgraduates
BEIS,UKRI - AHRC,23/07/2019,Training Awards - Postgraduates,Collabrative Doctoral Grants - Block Payment,University of Leeds,98530113,4963.75,Training Awards - Postgraduates
BEIS,UKRI - AHRC,23/07/2019,Training Awards - Postgraduates,Collabrative Doctoral Grants - Block Payment,"City, University of London",98530114,5463.75,Training Awards - Postgraduates
BEIS,UKRI - AHRC,23/07/2019,Training Awards - Postgraduates,Collabrative Doctoral Grants - Block Payment,University of Bradford,98530115,4963.75,Training Awards - Postgraduates
BEIS,UKRI - AHRC,23/07/2019,Training Awards - Postgraduates,Collabrative Doctoral Grants - Block Payment,Birkbeck College,98530116,5463.75,Training Awards - Postgraduates
BEIS,UKRI - AHRC,23/07/2019,Training Awards - Postgraduates,Collabrative Doctoral Grants - Block Payment,Birkbeck College,98530116,5463.75,Training Awards - Postgraduates
BEIS,UKRI - AHRC,23/07/2019,Training Awards - Postgraduates,Collabrative Doctoral Grants - Block Payment,University of Bristol GRANT,98530117,4963.75,Training Awards - Postgraduates
BEIS,UKRI - AHRC,23/07/2019,Training Awards - Postgraduates,Collabrative Doctoral Grants - Block Payment,Queen Mary University of London,98530118,5463.75,Training Awards - Postgraduates
BEIS,UKRI - AHRC,23/07/2019,Training Awards - Postgraduates,Collabrative Doctoral Grants - Block Payment,University of Edinburgh,98530119,4963.75,Training Awards - Postgraduates
BEIS,UKRI - AHRC,23/07/2019,Training Awards - Postgraduates,Collabrative Doctoral Grants - Block Payment,University College London,98530120,5463.75,Training Awards - Postgraduates
BEIS,UKRI - AHRC,23/07/2019,Training Awards - Postgraduates,Collabrative Doctoral Grants - Block Payment,University of Edinburgh,98530121,4966.75,Training Awards - Postgraduates
BEIS,UKRI - AHRC,23/07/2019,Training Awards - Postgraduates,Collabrative Doctoral Grants - Block Payment,University of Oxford,98530122,4973.00,Training Awards - Postgraduates
BEIS,UKRI - AHRC,23/07/2019,Training Awards - Postgraduates,Collabrative Doctoral Grants - Block Payment,Nottingham Trent University,98530123,4973.00,Training Awards - Postgraduates
BEIS,UKRI - AHRC,23/07/2019,Training Awards - Postgraduates,Collabrative Doctoral Grants - Block Payment,"Royal Holloway, University of London",98530124,5473.00,Training Awards - Postgraduates
BEIS,UKRI - AHRC,23/07/2019,Training Awards - Postgraduates,Collabrative Doctoral Grants - Block Payment,Nottingham Trent University,98530125,4973.00,Training Awards - Postgraduates
BEIS,UKRI - AHRC,23/07/2019,Training Awards - Postgraduates,Collabrative Doctoral Grants - Block Payment,University of Sheffield,98530126,4973.00,Training Awards - Postgraduates
BEIS,UKRI - AHRC,23/07/2019,Training Awards - Postgraduates,Collabrative Doctoral Grants - Block Payment,University of Kent,98530127,4973.00,Training Awards - Postgraduates
BEIS,UKRI - AHRC,23/07/2019,Training Awards - Postgraduates,Collabrative Doctoral Grants - Block Payment,Birkbeck College,98530128,5473.00,Training Awards - Postgraduates
BEIS,UKRI - AHRC,23/07/2019,Training Awards - Postgraduates,Collabrative Doctoral Grants - Block Payment,Birkbeck College,98530128,5473.00,Training Awards - Postgraduates
BEIS,UKRI - AHRC,23/07/2019,Training Awards - Postgraduates,Collabrative Doctoral Grants - Block Payment,University of Wolverhampton,98530129,4973.00,Training Awards - Postgraduates
BEIS,UKRI - AHRC,23/07/2019,Training Awards - Postgraduates,Collabrative Doctoral Grants - Block Payment,University of Edinburgh,98530130,4973.00,Training Awards - Postgraduates
BEIS,UKRI - AHRC,23/07/2019,Training Awards - Postgraduates,Collabrative Doctoral Grants - Block Payment,University of Bristol GRANT,98530131,4973.00,Training Awards - Postgraduates
BEIS,UKRI - AHRC,23/07/2019,Training Awards - Postgraduates,Collabrative Doctoral Grants - Block Payment,University of Edinburgh,98530132,4973.00,Training Awards - Postgraduates
BEIS,UKRI - AHRC,23/07/2019,Training Awards - Postgraduates,Collabrative Doctoral Grants - Block Payment,University of Durham,98530133,4973.00,Training Awards - Postgraduates
BEIS,UKRI - AHRC,23/07/2019,Training Awards - Postgraduates,Collabrative Doctoral Grants - Block Payment,University of Leeds,98530134,4973.00,Training Awards - Postgraduates
BEIS,UKRI - AHRC,23/07/2019,Training Awards - Postgraduates,Collabrative Doctoral Grants - Block Payment,University of Leicester,98530135,4973.00,Training Awards - Postgraduates
BEIS,UKRI - AHRC,23/07/2019,Training Awards - Postgraduates,Collabrative Doctoral Grants - Block Payment,University of Stirling,98530136,4973.00,Training Awards - Postgraduates
BEIS,UKRI - AHRC,23/07/2019,Training Awards - Postgraduates,Collabrative Doctoral Grants - Block Payment,University of Leeds,98530137,4973.00,Training Awards - Postgraduates
BEIS,UKRI - AHRC,23/07/2019,Training Awards - Postgraduates,Collabrative Doctoral Grants - Block Payment,University of St Andrews,98530138,4973.00,Training Awards - Postgraduates
BEIS,UKRI - AHRC,23/07/2019,Training Awards - Postgraduates,Collabrative Doctoral Grants - Block Payment,University of Leicester,98530139,4973.00,Training Awards - Postgraduates
BEIS,UKRI - AHRC,23/07/2019,Training Awards - Postgraduates,Collabrative Doctoral Grants - Block Payment,University of Central Lancashire,98530140,4973.00,Training Awards - Postgraduates
BEIS,UKRI - AHRC,23/07/2019,Training Awards - Postgraduates,Collabrative Doctoral Grants - Block Payment,University of Sussex,98530141,4973.00,Training Awards - Postgraduates
BEIS,UKRI - AHRC,23/07/2019,Training Awards - Postgraduates,Collabrative Doctoral Grants - Block Payment,University of Exeter,98530142,4973.00,Training Awards - Postgraduates
BEIS,UKRI - AHRC,23/07/2019,Training Awards - Postgraduates,Collabrative Doctoral Grants - Block Payment,University of Edinburgh,98530143,4973.00,Training Awards - Postgraduates
BEIS,UKRI - AHRC,23/07/2019,Training Awards - Postgraduates,Collabrative Doctoral Grants - Block Payment,University of Nottingham,98530144,4973.00,Training Awards - Postgraduates
BEIS,UKRI - AHRC,23/07/2019,Training Awards - Postgraduates,Collabrative Doctoral Grants - Block Payment,University of Glasgow,98530145,4973.00,Training Awards - Postgraduates
BEIS,UKRI - AHRC,23/07/2019,Training Awards - Postgraduates,Collabrative Doctoral Grants - Block Payment,University College London,98530146,5473.00,Training Awards - Postgraduates
BEIS,UKRI - AHRC,23/07/2019,Training Awards - Postgraduates,Collabrative Doctoral Grants - Block Payment,University of Birmingham GRANT,98530147,4973.00,Training Awards - Postgraduates
BEIS,UKRI - AHRC,23/07/2019,Training Awards - Postgraduates,Collabrative Doctoral Grants - Block Payment,Birkbeck College,98530148,5473.00,Training Awards - Postgraduates
BEIS,UKRI - AHRC,23/07/2019,Training Awards - Postgraduates,Collabrative Doctoral Grants - Block Payment,Birkbeck College,98530148,5473.00,Training Awards - Postgraduates
BEIS,UKRI - AHRC,23/07/2019,Training Awards - Postgraduates,Collabrative Doctoral Grants - Block Payment,University of Oxford,98530149,4973.00,Training Awards - Postgraduates
BEIS,UKRI - AHRC,23/07/2019,Training Awards - Postgraduates,Collabrative Doctoral Grants - Block Payment,University of London,98530150,5473.00,Training Awards - Postgraduates
BEIS,UKRI - AHRC,23/07/2019,Training Awards - Postgraduates,Collabrative Doctoral Grants - Block Payment,University of Leicester,98530151,4973.00,Training Awards - Postgraduates
BEIS,UKRI - AHRC,23/07/2019,Training Awards - Postgraduates,Collabrative Doctoral Grants - Block Payment,King's College London,98530152,5473.00,Training Awards - Postgraduates
BEIS,UKRI - AHRC,23/07/2019,Training Awards - Postgraduates,Collabrative Doctoral Grants - Block Payment,University of Leeds,98530153,5026.72,Training Awards - Postgraduates
BEIS,UKRI - AHRC,23/07/2019,Training Awards - Postgraduates,Collabrative Doctoral Grants - Block Payment,De Montfort University,98530154,4973.00,Training Awards - Postgraduates
BEIS,UKRI - AHRC,23/07/2019,Training Awards - Postgraduates,Collabrative Doctoral Grants - Block Payment,De Montfort University,98530154,4973.00,Training Awards - Postgraduates
BEIS,UKRI - AHRC,23/07/2019,Training Awards - Postgraduates,Collabrative Doctoral Grants - Block Payment,University of Leicester,98530155,4973.00,Training Awards - Postgraduates
BEIS,UKRI - AHRC,23/07/2019,Training Awards - Postgraduates,Collabrative Doctoral Grants - Block Payment,Birkbeck College,98530156,5473.00,Training Awards - Postgraduates
BEIS,UKRI - AHRC,23/07/2019,Training Awards - Postgraduates,Collabrative Doctoral Grants - Block Payment,Birkbeck College,98530156,5473.00,Training Awards - Postgraduates
BEIS,UKRI - AHRC,23/07/2019,Training Awards - Postgraduates,Collabrative Doctoral Grants - Block Payment,University of Reading,98530157,4973.00,Training Awards - Postgraduates
BEIS,UKRI - AHRC,23/07/2019,Training Awards - Postgraduates,Collabrative Doctoral Grants - Block Payment,University of York,98530158,4973.00,Training Awards - Postgraduates
BEIS,UKRI - AHRC,23/07/2019,Training Awards - Postgraduates,Collabrative Doctoral Grants - Block Payment,Courtauld Institute of Art,98530159,5473.00,Training Awards - Postgraduates
BEIS,UKRI - AHRC,23/07/2019,Training Awards - Postgraduates,Collabrative Doctoral Grants - Block Payment,University of York,98530160,4973.00,Training Awards - Postgraduates
BEIS,UKRI - AHRC,23/07/2019,Training Awards - Postgraduates,Collabrative Doctoral Grants - Block Payment,The University of Manchester,98530161,4973.00,Training Awards - Postgraduates
BEIS,UKRI - AHRC,23/07/2019,Training Awards - Postgraduates,Collabrative Doctoral Grants - Block Payment,Cardiff University,98530162,4973.00,Training Awards - Postgraduates
BEIS,UKRI - AHRC,23/07/2019,Training Awards - Postgraduates,Collabrative Doctoral Grants - Block Payment,University of Reading,98530163,4973.00,Training Awards - Postgraduates
BEIS,UKRI - AHRC,23/07/2019,Training Awards - Postgraduates,Collabrative Doctoral Grants - Block Payment,De Montfort University,98530164,4973.00,Training Awards - Postgraduates
BEIS,UKRI - AHRC,23/07/2019,Training Awards - Postgraduates,Collabrative Doctoral Grants - Block Payment,De Montfort University,98530164,4973.00,Training Awards - Postgraduates
BEIS,UKRI - AHRC,23/07/2019,Training Awards - Postgraduates,Collabrative Doctoral Grants - Block Payment,University of Westminster,98530165,5564.00,Training Awards - Postgraduates
BEIS,UKRI - AHRC,23/07/2019,Training Awards - Postgraduates,Collabrative Doctoral Grants - Block Payment,The University of Manchester,98530166,4973.00,Training Awards - Postgraduates
BEIS,UKRI - AHRC,23/07/2019,Training Awards - Postgraduates,Collabrative Doctoral Grants - Block Payment,Royal College of Art,98530167,5473.00,Training Awards - Postgraduates
BEIS,UKRI - AHRC,23/07/2019,Training Awards - Postgraduates,Collabrative Doctoral Grants - Block Payment,Northumbria University,98530168,4973.00,Training Awards - Postgraduates
BEIS,UKRI - AHRC,23/07/2019,Training Awards - Postgraduates,Collabrative Doctoral Grants - Block Payment,Glasgow School of Art,98530169,4973.00,Training Awards - Postgraduates
BEIS,UKRI - AHRC,23/07/2019,Training Awards - Postgraduates,Collabrative Doctoral Grants - Block Payment,Royal College of Art,98530170,4720.08,Training Awards - Postgraduates
BEIS,UKRI - AHRC,23/07/2019,Training Awards - Postgraduates,BGP Award,University of Glasgow,98530171,7500.00,Training Awards - Postgraduates
BEIS,UKRI - AHRC,23/07/2019,Training Awards - Postgraduates,BGP Award,University of Glasgow,98530171,63959.70,Training Awards - Postgraduates
BEIS,UKRI - AHRC,23/07/2019,Training Awards - Postgraduates,BGP Award,University of Newcastle Upon Tyne,98530172,7500.00,Training Awards - Postgraduates
BEIS,UKRI - AHRC,23/07/2019,Training Awards - Postgraduates,BGP Award,University of Newcastle Upon Tyne,98530172,63960.00,Training Awards - Postgraduates
BEIS,UKRI - AHRC,23/07/2019,Training Awards - Postgraduates,BGP Award,The University of Manchester,98530173,63960.00,Training Awards - Postgraduates
BEIS,UKRI - AHRC,23/07/2019,Training Awards - Postgraduates,BGP Award,University of the West of England,98530174,62877.30,Training Awards - Postgraduates
BEIS,UKRI - AHRC,23/07/2019,Training Awards - Postgraduates,BGP Award,University of Nottingham,98530175,7500.00,Training Awards - Postgraduates
BEIS,UKRI - AHRC,23/07/2019,Training Awards - Postgraduates,BGP Award,University of Nottingham,98530175,52148.75,Training Awards - Postgraduates
BEIS,UKRI - AHRC,23/07/2019,Training Awards - Postgraduates,BGP Award,"Royal Holloway, University of London",98530176,7500.00,Training Awards - Postgraduates
BEIS,UKRI - AHRC,23/07/2019,Training Awards - Postgraduates,BGP Award,"Royal Holloway, University of London",98530176,69209.70,Training Awards - Postgraduates
BEIS,UKRI - AHRC,23/07/2019,Training Awards - Postgraduates,Collabrative Doctoral Grants - Block Payment,University of London,98530177,5446.75,Training Awards - Postgraduates
BEIS,UKRI - AHRC,23/07/2019,Training Awards - Postgraduates,Collabrative Doctoral Grants - Block Payment,University of Sheffield,98530178,4946.75,Training Awards - Postgraduates
BEIS,UKRI - AHRC,23/07/2019,Training Awards - Postgraduates,Collabrative Doctoral Grants - Block Payment,University College London,98530179,5446.75,Training Awards - Postgraduates
BEIS,UKRI - AHRC,23/07/2019,Training Awards - Postgraduates,Collabrative Doctoral Grants - Block Payment,University of Sheffield,98530180,4946.75,Training Awards - Postgraduates
BEIS,UKRI - AHRC,23/07/2019,Training Awards - Postgraduates,Collabrative Doctoral Grants - Block Payment,Northumbria University,98530181,4946.75,Training Awards - Postgraduates
BEIS,UKRI - AHRC,23/07/2019,Training Awards - Postgraduates,Collabrative Doctoral Grants - Block Payment,King's College London,98530182,5446.75,Training Awards - Postgraduates
BEIS,UKRI - AHRC,23/07/2019,Training Awards - Postgraduates,Collabrative Doctoral Grants - Block Payment,University of Brighton,98530183,4946.75,Training Awards - Postgraduates
BEIS,UKRI - AHRC,23/07/2019,Training Awards - Postgraduates,Collabrative Doctoral Grants - Block Payment,University of Stirling,98530184,4946.75,Training Awards - Postgraduates
BEIS,UKRI - AHRC,23/07/2019,Training Awards - Postgraduates,Collabrative Doctoral Grants - Block Payment,University of Liverpool,98530185,4946.75,Training Awards - Postgraduates
BEIS,UKRI - AHRC,23/07/2019,Training Awards - Postgraduates,Collabrative Doctoral Grants - Block Payment,Robert Gordon University,98530186,4946.75,Training Awards - Postgraduates
BEIS,UKRI - AHRC,23/07/2019,Training Awards - Postgraduates,Collabrative Doctoral Grants - Block Payment,University of Exeter,98530187,4946.75,Training Awards - Postgraduates
BEIS,UKRI - AHRC,23/07/2019,Training Awards - Postgraduates,Collabrative Doctoral Grants - Block Payment,University of Edinburgh,98530188,4946.75,Training Awards - Postgraduates
BEIS,UKRI - AHRC,23/07/2019,Training Awards - Postgraduates,Collabrative Doctoral Grants - Block Payment,University of Durham,98530189,4946.75,Training Awards - Postgraduates
BEIS,UKRI - AHRC,23/07/2019,Training Awards - Postgraduates,Collabrative Doctoral Grants - Block Payment,"City, University of London",98530190,5446.75,Training Awards - Postgraduates
BEIS,UKRI - AHRC,23/07/2019,Training Awards - Postgraduates,Collabrative Doctoral Grants - Block Payment,University of Strathclyde,98530191,4792.13,Training Awards - Postgraduates
BEIS,UKRI - AHRC,23/07/2019,Training Awards - Postgraduates,Collabrative Doctoral Grants - Block Payment,University College London,98530192,5446.75,Training Awards - Postgraduates
BEIS,UKRI - AHRC,23/07/2019,Training Awards - Postgraduates,Collabrative Doctoral Grants - Block Payment,University of Leeds,98530193,4946.75,Training Awards - Postgraduates
BEIS,UKRI - AHRC,23/07/2019,Training Awards - Postgraduates,Collabrative Doctoral Grants - Block Payment,University College London,98530194,5446.75,Training Awards - Postgraduates
BEIS,UKRI - AHRC,23/07/2019,Training Awards - Postgraduates,Collabrative Doctoral Grants - Block Payment,King's College London,98530195,5446.75,Training Awards - Postgraduates
BEIS,UKRI - AHRC,23/07/2019,Training Awards - Postgraduates,Collabrative Doctoral Grants - Block Payment,University of Southampton GRANT,98530196,4946.75,Training Awards - Postgraduates
BEIS,UKRI - AHRC,23/07/2019,Training Awards - Postgraduates,Collabrative Doctoral Grants - Block Payment,University of Central Lancashire,98530197,4946.75,Training Awards - Postgraduates
BEIS,UKRI - AHRC,23/07/2019,Training Awards - Postgraduates,Collabrative Doctoral Grants - Block Payment,Birkbeck College,98530198,5446.75,Training Awards - Postgraduates
BEIS,UKRI - AHRC,23/07/2019,Training Awards - Postgraduates,Collabrative Doctoral Grants - Block Payment,Birkbeck College,98530198,5446.75,Training Awards - Postgraduates
BEIS,UKRI - AHRC,23/07/2019,Training Awards - Postgraduates,Collabrative Doctoral Grants - Block Payment,University of Glasgow,98530199,4946.75,Training Awards - Postgraduates
BEIS,UKRI - AHRC,23/07/2019,Training Awards - Postgraduates,Collabrative Doctoral Grants - Block Payment,University of Stirling,98530200,4946.75,Training Awards - Postgraduates
BEIS,UKRI - AHRC,23/07/2019,Training Awards - Postgraduates,Collabrative Doctoral Grants - Block Payment,University of Newcastle Upon Tyne,98530201,4946.75,Training Awards - Postgraduates
BEIS,UKRI - AHRC,23/07/2019,Training Awards - Postgraduates,Collabrative Doctoral Grants - Block Payment,University of Leeds,98530202,4946.75,Training Awards - Postgraduates
BEIS,UKRI - AHRC,23/07/2019,Training Awards - Postgraduates,Collabrative Doctoral Grants - Block Payment,University of Oxford,98530203,4946.75,Training Awards - Postgraduates
BEIS,UKRI - AHRC,23/07/2019,Training Awards - Postgraduates,Collabrative Doctoral Grants - Block Payment,University of York,98530204,4946.75,Training Awards - Postgraduates
BEIS,UKRI - AHRC,23/07/2019,Training Awards - Postgraduates,Collabrative Doctoral Grants - Block Payment,University of Kent,98530205,4946.75,Training Awards - Postgraduates
BEIS,UKRI - AHRC,23/07/2019,Training Awards - Postgraduates,Collabrative Doctoral Grants - Block Payment,University of Cambridge,98530206,4946.75,Training Awards - Postgraduates
BEIS,UKRI - AHRC,23/07/2019,Training Awards - Postgraduates,Collabrative Doctoral Grants - Block Payment,Courtauld Institute of Art,98530207,5446.75,Training Awards - Postgraduates
BEIS,UKRI - AHRC,23/07/2019,Training Awards - Postgraduates,Collabrative Doctoral Grants - Block Payment,Queen Mary University of London,98530208,5446.75,Training Awards - Postgraduates
BEIS,UKRI - AHRC,23/07/2019,Training Awards - Postgraduates,Collabrative Doctoral Grants - Block Payment,University of Aberdeen,98530209,4946.75,Training Awards - Postgraduates
BEIS,UKRI - AHRC,23/07/2019,Training Awards - Postgraduates,Collabrative Doctoral Grants - Block Payment,University of Durham,98530210,4946.75,Training Awards - Postgraduates
BEIS,UKRI - AHRC,23/07/2019,Training Awards - Postgraduates,Collabrative Doctoral Grants - Block Payment,University College London,98530211,5446.75,Training Awards - Postgraduates
BEIS,UKRI - AHRC,23/07/2019,Training Awards - Postgraduates,Collabrative Doctoral Grants - Block Payment,University of Kent,98530212,4946.75,Training Awards - Postgraduates
BEIS,UKRI - AHRC,23/07/2019,Training Awards - Postgraduates,Collabrative Doctoral Grants - Block Payment,University of Cambridge,98530213,4946.75,Training Awards - Postgraduates
BEIS,UKRI - AHRC,23/07/2019,Training Awards - Postgraduates,Collabrative Doctoral Grants - Block Payment,University of Cambridge,98530214,4946.75,Training Awards - Postgraduates
BEIS,UKRI - AHRC,23/07/2019,Training Awards - Postgraduates,Collabrative Doctoral Grants - Block Payment,University of Leeds,98530215,4946.75,Training Awards - Postgraduates
BEIS,UKRI - AHRC,23/07/2019,Training Awards - Postgraduates,Collabrative Doctoral Grants - Block Payment,University of Leeds,98530216,4946.75,Training Awards - Postgraduates
BEIS,UKRI - AHRC,23/07/2019,Training Awards - Postgraduates,Collabrative Doctoral Grants - Block Payment,University of Strathclyde,98530217,4946.75,Training Awards - Postgraduates
BEIS,UKRI - AHRC,23/07/2019,Training Awards - Postgraduates,Collabrative Doctoral Grants - Block Payment,University of London,98530218,4342.97,Training Awards - Postgraduates
BEIS,UKRI - AHRC,23/07/2019,Training Awards - Postgraduates,Collabrative Doctoral Grants - Block Payment,Keele University,98530219,4946.75,Training Awards - Postgraduates
BEIS,UKRI - AHRC,23/07/2019,Training Awards - Postgraduates,Collabrative Doctoral Grants - Block Payment,Goldsmiths College University of London,98530220,5446.75,Training Awards - Postgraduates
BEIS,UKRI - AHRC,23/07/2019,Training Awards - Postgraduates,Collabrative Doctoral Grants - Block Payment,De Montfort University,98530221,4946.75,Training Awards - Postgraduates
BEIS,UKRI - AHRC,23/07/2019,Training Awards - Postgraduates,Collabrative Doctoral Grants - Block Payment,De Montfort University,98530221,4946.75,Training Awards - Postgraduates
BEIS,UKRI - AHRC,23/07/2019,Training Awards - Postgraduates,Collabrative Doctoral Grants - Block Payment,Sheffield Hallam University,98530222,4946.75,Training Awards - Postgraduates
BEIS,UKRI - AHRC,23/07/2019,Training Awards - Postgraduates,Collabrative Doctoral Grants - Block Payment,De Montfort University,98530223,4946.75,Training Awards - Postgraduates
BEIS,UKRI - AHRC,23/07/2019,Training Awards - Postgraduates,Collabrative Doctoral Grants - Block Payment,De Montfort University,98530223,4946.75,Training Awards - Postgraduates
BEIS,UKRI - AHRC,23/07/2019,Training Awards - Postgraduates,Collabrative Doctoral Grants - Block Payment,University of the Arts London,98530224,5446.75,Training Awards - Postgraduates
BEIS,UKRI - AHRC,23/07/2019,Training Awards - Postgraduates,Collabrative Doctoral Grants - Block Payment,Royal College of Art,98530225,5446.75,Training Awards - Postgraduates
BEIS,UKRI - AHRC,23/07/2019,Training Awards - Postgraduates,International Placement Scheme,University of Cambridge,98530226,5670.00,Training Awards - Postgraduates
BEIS,UKRI - AHRC,23/07/2019,Training Awards - Postgraduates,International Placement Scheme,University of Warwick,98530227,6870.00,Training Awards - Postgraduates
BEIS,UKRI - AHRC,23/07/2019,Training Awards - Postgraduates,International Placement Scheme,The University of Manchester,98530228,4465.00,Training Awards - Postgraduates
BEIS,UKRI - AHRC,23/07/2019,Training Awards - Postgraduates,Collabrative Doctoral Grants - Block Payment,University of Southampton GRANT,98530229,9147.08,Training Awards - Postgraduates
BEIS,UKRI - AHRC,23/07/2019,Training Awards - Postgraduates,Collabrative Doctoral Grants - Block Payment,University of Southampton GRANT,98530229,9147.08,Training Awards - Postgraduates
BEIS,UKRI - AHRC,23/07/2019,Training Awards - Postgraduates,Collabrative Doctoral Grants - Block Payment,University of Southampton GRANT,98530229,9147.08,Training Awards - Postgraduates
BEIS,UKRI - AHRC,23/07/2019,Training Awards - Postgraduates,Collabrative Doctoral Grants - Block Payment,University of Southampton GRANT,98530229,9147.06,Training Awards - Postgraduates
BEIS,UKRI - AHRC,23/07/2019,Training Awards - Postgraduates,Industrial Strategy Challenge Fund (ISCF) - Skills,The University of Manchester,98530230,19660.92,Training Awards - Postgraduates
BEIS,UKRI - AHRC,23/07/2019,Training Awards - Postgraduates,Industrial Strategy Challenge Fund (ISCF) - Skills,University of Glasgow,98530231,19660.92,Training Awards - Postgraduates
BEIS,UKRI - AHRC,23/07/2019,Training Awards - Postgraduates,Industrial Strategy Challenge Fund (ISCF) - Skills,University of Newcastle Upon Tyne,98530232,19660.92,Training Awards - Postgraduates
BEIS,UKRI - AHRC,23/07/2019,Training Awards - Postgraduates,Industrial Strategy Challenge Fund (ISCF) - Skills,"Royal Holloway, University of London",98530233,21632.93,Training Awards - Postgraduates
BEIS,UKRI - AHRC,23/07/2019,Training Awards - Postgraduates,Industrial Strategy Challenge Fund (ISCF) - Skills,University of Nottingham,98530234,19660.92,Training Awards - Postgraduates
BEIS,UKRI - AHRC,23/07/2019,Training Awards - Postgraduates,Industrial Strategy Challenge Fund (ISCF) - Skills,University of the West of England,98530235,19665.67,Training Awards - Postgraduates
BEIS,UKRI - AHRC,23/07/2019,Training Awards - Postgraduates,Collabrative Doctoral Grants - Block Payment,The Royal Central School of Speech and Drama,98530236,2715.10,Training Awards - Postgraduates
BEIS,UKRI - AHRC,23/07/2019,Training Awards - Postgraduates,Collabrative Doctoral Grants - Block Payment,University of Warwick,98530237,3267.91,Training Awards - Postgraduates
BEIS,UKRI - AHRC,23/07/2019,Training Awards - Postgraduates,Collabrative Doctoral Grants - Block Payment,University of Warwick,98530237,3267.91,Training Awards - Postgraduates
BEIS,UKRI - AHRC,23/07/2019,Training Awards - Postgraduates,Collabrative Doctoral Grants - Block Payment,University of Warwick,98530237,3267.91,Training Awards - Postgraduates
BEIS,UKRI - AHRC,23/07/2019,Training Awards - Postgraduates,Collabrative Doctoral Grants - Block Payment,University of Warwick,98530237,3267.91,Training Awards - Postgraduates
BEIS,UKRI - AHRC,23/07/2019,Training Awards - Postgraduates,Collabrative Doctoral Grants - Block Payment,University of Warwick,98530237,3267.91,Training Awards - Postgraduates
BEIS,UKRI - AHRC,23/07/2019,Training Awards - Postgraduates,Collabrative Doctoral Grants - Block Payment,University of Warwick,98530237,3267.91,Training Awards - Postgraduates
BEIS,UKRI - AHRC,23/07/2019,Training Awards - Postgraduates,Collabrative Doctoral Grants - Block Payment,University of Warwick,98530237,3267.91,Training Awards - Postgraduates
BEIS,UKRI - AHRC,23/07/2019,Training Awards - Postgraduates,Collabrative Doctoral Grants - Block Payment,University of Warwick,98530237,3267.91,Training Awards - Postgraduates
BEIS,UKRI - AHRC,23/07/2019,Training Awards - Postgraduates,International Placement Scheme,University of Newcastle Upon Tyne,98530238,4470.00,Training Awards - Postgraduates
BEIS,UKRI - AHRC,23/07/2019,Training Awards - Postgraduates,Collabrative Doctoral Grants - Block Payment,University of York,98530239,649.00,Training Awards - Postgraduates
BEIS,UKRI - AHRC,23/07/2019,Training Awards - Postgraduates,BGP Award,"City, University of London",98530240,88358.08,Training Awards - Postgraduates
BEIS,UKRI - AHRC,23/07/2019,Training Awards - Postgraduates,Collabrative Doctoral Grants - Block Payment,University of York,98530241,-43799.76,Training Awards - Postgraduates
BEIS,UKRI - AHRC,23/07/2019,Training Awards - Postgraduates,Collabrative Doctoral Grants - Block Payment,University of Cambridge,98530242,2202.00,Training Awards - Postgraduates
BEIS,UKRI - AHRC,23/07/2019,Training Awards - Postgraduates,Collabrative Doctoral Grants - Block Payment,Birkbeck College,98530243,7552.50,Training Awards - Postgraduates
BEIS,UKRI - AHRC,23/07/2019,Training Awards - Postgraduates,Collabrative Doctoral Grants - Block Payment,Cardiff University,98530244,-1703.53,Training Awards - Postgraduates
BEIS,UKRI - AHRC,23/07/2019,Training Awards - Postgraduates,Collabrative Doctoral Grants - Block Payment,University of York,98530245,1607.55,Training Awards - Postgraduates
BEIS,UKRI - AHRC,23/07/2019,Training Awards - Postgraduates,Collabrative Doctoral Grants - Block Payment,University of Bristol GRANT,98530246,-35841.59,Training Awards - Postgraduates
BEIS,UKRI - AHRC,23/07/2019,Training Awards - Postgraduates,Collabrative Doctoral Grants - Block Payment,University College London,98530247,-57.00,Training Awards - Postgraduates
BEIS,UKRI - AHRC,23/07/2019,Training Awards - Postgraduates,Collabrative Doctoral Grants - Block Payment,Loughborough University,98530249,7495.23,Training Awards - Postgraduates
BEIS,UKRI - AHRC,23/07/2019,Training Awards - Postgraduates,International Placement Scheme,Birkbeck College,98530250,4470.00,Training Awards - Postgraduates
BEIS,UKRI - AHRC,23/07/2019,Training Awards - Postgraduates,International Placement Scheme,University of Edinburgh,98530251,-220.00,Training Awards - Postgraduates
BEIS,UKRI - AHRC,23/07/2019,Training Awards - Postgraduates,International Placement Scheme,University of Oxford,98530252,4470.00,Training Awards - Postgraduates
BEIS,UKRI - AHRC,23/07/2019,Training Awards - Postgraduates,International Placement Scheme,University of Oxford,98530253,4470.00,Training Awards - Postgraduates
BEIS,UKRI - AHRC,23/07/2019,Training Awards - Postgraduates,International Placement Scheme,King's College London,98530254,4465.00,Training Awards - Postgraduates
BEIS,UKRI - AHRC,23/07/2019,Training Awards - Postgraduates,International Placement Scheme,Queen's University Belfast GRANT,98530255,3270.00,Training Awards - Postgraduates
BEIS,UKRI - AHRC,23/07/2019,Training Awards - Postgraduates,International Placement Scheme,King's College London,98530256,4465.00,Training Awards - Postgraduates
BEIS,UKRI - AHRC,23/07/2019,Training Awards - Postgraduates,International Placement Scheme,University of York,98530257,3295.00,Training Awards - Postgraduates
BEIS,UKRI - AHRC,23/07/2019,Training Awards - Postgraduates,International Placement Scheme,University of Exeter,98530258,-312.10,Training Awards - Postgraduates
BEIS,UKRI - AHRC,23/07/2019,Training Awards - Postgraduates,International Placement Scheme,University of Oxford,98530259,4470.00,Training Awards - Postgraduates
BEIS,UKRI - AHRC,23/07/2019,Training Awards - Postgraduates,International Placement Scheme,Birkbeck College,98530260,4665.00,Training Awards - Postgraduates
BEIS,UKRI - AHRC,23/07/2019,Conferences & Seminars,SMT,Westminster Higher Education Forum,98541539,276.00,Conferences & Seminars
BEIS,UKRI - AHRC,23/07/2019,Research Grant Expenditure,Public and Stakeholder Engagement,University of London,98542285,2000.00,Research Grant Expenditure
BEIS,UKRI - AHRC,24/07/2019,Staff Training,HR,Tableau International U.C,98527180,1103.20,Staff Training
BEIS,UKRI - AHRC,24/07/2019,Recruitment Costs,Corporate Services,Onefix Recruitment Ltd,98541110,55.50,Recruitment Costs
BEIS,UKRI - AHRC,24/07/2019,Recruitment Costs,Corporate Services,Onefix Recruitment Ltd,98541113,27.76,Recruitment Costs
BEIS,UKRI - AHRC,24/07/2019,Health & Safety (inc. Medicals & Opticians),Corporate Services,Benenden Healthcare Society,98541162,287.00,Health & Safety (inc. Medicals & Opticians)
BEIS,UKRI - AHRC,24/07/2019,Non-staff travel and subsistance,Executive Office,Non Employee Expenses Supplier,98543097,72.38,Non-staff travel and subsistance
BEIS,UKRI - AHRC,24/07/2019,Non-staff travel and subsistance,SMT,Non Employee Expenses Supplier,98543098,82.00,Non-staff travel and subsistance
BEIS,UKRI - AHRC,24/07/2019,Non-staff travel and subsistance,Executive Office,Non Employee Expenses Supplier,98543099,520.83,Non-staff travel and subsistance
BEIS,UKRI - AHRC,24/07/2019,Non-staff travel and subsistance,SMT,Non Employee Expenses Supplier,98543100,1074.76,Non-staff travel and subsistance
BEIS,UKRI - AHRC,24/07/2019,T&S UK - Other Charges,Public and Stakeholder Engagement,Unspecified,98543328,12.34,T&S UK - Other Charges
BEIS,UKRI - AHRC,24/07/2019,T&S UK - Subsistence,Public and Stakeholder Engagement,Unspecified,98543328,2.95,T&S UK - Subsistence
BEIS,UKRI - AHRC,24/07/2019,T&S UK - Subsistence,Public and Stakeholder Engagement,Unspecified,98543328,34.18,T&S UK - Subsistence
BEIS,UKRI - AHRC,24/07/2019,T&S UK - Subsistence,Public and Stakeholder Engagement,Unspecified,98543328,12.20,T&S UK - Subsistence
BEIS,UKRI - AHRC,24/07/2019,T&S UK - Mileage,SMT,Unspecified,98543329,18.00,T&S UK - Mileage
BEIS,UKRI - AHRC,24/07/2019,T&S UK - Mileage,SMT,Unspecified,98543330,18.00,T&S UK - Mileage
BEIS,UKRI - AHRC,24/07/2019,Education Fees & Study Materials,SMT,Unspecified,98543331,5.15,Education Fees & Study Materials
BEIS,UKRI - AHRC,24/07/2019,T&S UK - Parking Tolls Congestion Charges,SMT,Unspecified,98543331,50.70,T&S UK - Parking Tolls Congestion Charges
BEIS,UKRI - AHRC,24/07/2019,T&S UK - Subsistence,SMT,Unspecified,98543331,13.30,T&S UK - Subsistence
BEIS,UKRI - AHRC,24/07/2019,T&S UK - Subsistence,SMT,Unspecified,98543331,2.99,T&S UK - Subsistence
BEIS,UKRI - AHRC,24/07/2019,T&S UK - Mileage,Digital Arts and Humanities and Creative Industries,Unspecified,98543332,59.40,T&S UK - Mileage
BEIS,UKRI - AHRC,24/07/2019,T&S UK - Other Charges,Digital Arts and Humanities and Creative Industries,Unspecified,98543332,2.54,T&S UK - Other Charges
BEIS,UKRI - AHRC,24/07/2019,T&S UK - Public Transport,Digital Arts and Humanities and Creative Industries,Unspecified,98543332,45.00,T&S UK - Public Transport
BEIS,UKRI - AHRC,24/07/2019,T&S UK - Subsistence,Digital Arts and Humanities and Creative Industries,Unspecified,98543332,30.00,T&S UK - Subsistence
BEIS,UKRI - AHRC,24/07/2019,T&S UK - Subsistence,Digital Arts and Humanities and Creative Industries,Unspecified,98543332,10.00,T&S UK - Subsistence
BEIS,UKRI - AHRC,24/07/2019,T&S UK - Mileage,"History, Heritage, Languages and Literature",Unspecified,98543333,36.18,T&S UK - Mileage
BEIS,UKRI - AHRC,24/07/2019,T&S UK - Other Charges,"History, Heritage, Languages and Literature",Unspecified,98543333,19.50,T&S UK - Other Charges
BEIS,UKRI - AHRC,24/07/2019,T&S UK - Parking Tolls Congestion Charges,"History, Heritage, Languages and Literature",Unspecified,98543333,69.10,T&S UK - Parking Tolls Congestion Charges
BEIS,UKRI - AHRC,24/07/2019,T&S UK - Public Transport,"History, Heritage, Languages and Literature",Unspecified,98543333,6.39,T&S UK - Public Transport
BEIS,UKRI - AHRC,24/07/2019,T&S UK - Subsistence,"History, Heritage, Languages and Literature",Unspecified,98543333,38.22,T&S UK - Subsistence
BEIS,UKRI - AHRC,24/07/2019,T&S UK - Subsistence,"History, Heritage, Languages and Literature",Unspecified,98543333,12.09,T&S UK - Subsistence
BEIS,UKRI - AHRC,24/07/2019,T&S UK - Subsistence,"History, Heritage, Languages and Literature",Unspecified,98543333,25.00,T&S UK - Subsistence
BEIS,UKRI - AHRC,24/07/2019,T&S UK - Subsistence,"History, Heritage, Languages and Literature",Unspecified,98543334,20.33,T&S UK - Subsistence
BEIS,UKRI - AHRC,24/07/2019,T&S UK - Subsistence,"History, Heritage, Languages and Literature",Unspecified,98543334,13.28,T&S UK - Subsistence
BEIS,UKRI - AHRC,24/07/2019,T&S UK - Subsistence,"History, Heritage, Languages and Literature",Unspecified,98543334,20.00,T&S UK - Subsistence
BEIS,UKRI - AHRC,24/07/2019,T&S UK - Subsistence,"History, Heritage, Languages and Literature",Unspecified,98543334,3.00,T&S UK - Subsistence
BEIS,UKRI - AHRC,24/07/2019,Recruitment Costs,Corporate Services,Warwick University Services Ltd,98543846,245.00,Recruitment Costs
BEIS,UKRI - AHRC,25/07/2019,Voluntary Deductions,Balance Sheet,Swindon Office Sports and Social Club,98536306,40.00,Voluntary Deductions
BEIS,UKRI - AHRC,25/07/2019,T&S UK - Subsistence,PSU Project Office,Unspecified,98537598,8.65,T&S UK - Subsistence
BEIS,UKRI - AHRC,25/07/2019,T&S UK - Subsistence,PSU Project Office,Unspecified,98537598,37.75,T&S UK - Subsistence
BEIS,UKRI - AHRC,25/07/2019,T&S UK - Subsistence,PSU Project Office,Unspecified,98537598,6.15,T&S UK - Subsistence
BEIS,UKRI - AHRC,25/07/2019,Secondments,SMT,"Keble College, University of Oxford",98538041,66754.20,Secondments
BEIS,UKRI - AHRC,25/07/2019,Conferences & Seminars,GCRF - Programme Delivery,Calder Conference Ltd,98538559,864.00,Conferences & Seminars
BEIS,UKRI - AHRC,25/07/2019,Health & Safety (inc. Medicals & Opticians),Corporate Services,Benenden Healthcare Society,98541160,1506.75,Health & Safety (inc. Medicals & Opticians)
BEIS,UKRI - AHRC,25/07/2019,Contract Staff,PSU JRS,Alexander Mann Solutions Ltd,98541935,3423.12,Contract Staff
BEIS,UKRI - AHRC,25/07/2019,Non-staff travel and subsistance,Executive Office,Non Employee Expenses Supplier,98543471,177.30,Non-staff travel and subsistance
BEIS,UKRI - AHRC,25/07/2019,Non-staff travel and subsistance,Executive Office,Non Employee Expenses Supplier,98543472,34.30,Non-staff travel and subsistance
BEIS,UKRI - AHRC,25/07/2019,Non-staff travel and subsistance,International Development and Area Studies,Non Employee Expenses Supplier,98543473,38.70,Non-staff travel and subsistance
BEIS,UKRI - AHRC,25/07/2019,Non-staff travel and subsistance,Operations,Non Employee Expenses Supplier,98543474,91.60,Non-staff travel and subsistance
BEIS,UKRI - AHRC,25/07/2019,Non-staff travel and subsistance,International Development and Area Studies,Non Employee Expenses Supplier,98543475,116.95,Non-staff travel and subsistance
BEIS,UKRI - AHRC,25/07/2019,Non-staff travel and subsistance,Executive Office,Non Employee Expenses Supplier,98543477,156.95,Non-staff travel and subsistance
BEIS,UKRI - AHRC,25/07/2019,T&S UK - Other Charges,SMT,Unspecified,98544701,5.40,T&S UK - Other Charges
BEIS,UKRI - AHRC,25/07/2019,T&S UK - Parking Tolls Congestion Charges,SMT,Unspecified,98544701,28.80,T&S UK - Parking Tolls Congestion Charges
BEIS,UKRI - AHRC,25/07/2019,T&S UK - Subsistence,SMT,Unspecified,98544701,5.35,T&S UK - Subsistence
BEIS,UKRI - AHRC,25/07/2019,T&S UK - Subsistence,SMT,Unspecified,98544701,35.22,T&S UK - Subsistence
BEIS,UKRI - AHRC,25/07/2019,T&S UK - Subsistence,SMT,Unspecified,98544701,8.05,T&S UK - Subsistence
BEIS,UKRI - AHRC,25/07/2019,T&S UK - Public Transport,"History, Heritage, Languages and Literature",Unspecified,98544702,7.00,T&S UK - Public Transport
BEIS,UKRI - AHRC,25/07/2019,T&S UK - Subsistence,"History, Heritage, Languages and Literature",Unspecified,98544702,7.40,T&S UK - Subsistence
BEIS,UKRI - AHRC,25/07/2019,T&S UK - Subsistence,"History, Heritage, Languages and Literature",Unspecified,98544702,60.94,T&S UK - Subsistence
BEIS,UKRI - AHRC,25/07/2019,T&S UK - Subsistence,"History, Heritage, Languages and Literature",Unspecified,98544702,8.50,T&S UK - Subsistence
BEIS,UKRI - AHRC,25/07/2019,T&S UK - Subsistence,"History, Heritage, Languages and Literature",Unspecified,98544702,10.00,T&S UK - Subsistence
BEIS,UKRI - AHRC,25/07/2019,T&S UK - Public Transport,"History, Heritage, Languages and Literature",Unspecified,98544703,20.00,T&S UK - Public Transport
BEIS,UKRI - AHRC,26/07/2019,Consultancy Services,Public and Stakeholder Engagement,Unspecified,98541921,2400.00,Consultancy Services
BEIS,UKRI - AHRC,26/07/2019,T&S UK - Other Charges,Digital Arts and Humanities and Creative Industries,Unspecified,98544704,125.00,T&S UK - Other Charges
BEIS,UKRI - AHRC,26/07/2019,Recruitment Costs,Operations,Onefix Recruitment Ltd,98545232,55.50,Recruitment Costs
BEIS,UKRI - AHRC,26/07/2019,Conferences & Seminars,SMT,Dods Parliamentary Communications Ltd,98545284,306.00,Conferences & Seminars
BEIS,UKRI - AHRC,26/07/2019,Contract Staff,PSU Project Office,Alexander Mann Solutions Ltd,98545328,2795.58,Contract Staff
BEIS,UKRI - AHRC,26/07/2019,Health & Safety (inc. Medicals & Opticians),Corporate Services,Benenden Healthcare Society,98545781,1496.50,Health & Safety (inc. Medicals & Opticians)
BEIS,UKRI - AHRC,26/07/2019,T&S UK - Mileage,Digital Arts and Humanities and Creative Industries,Unspecified,98545906,63.00,T&S UK - Mileage
BEIS,UKRI - AHRC,26/07/2019,T&S UK - Subsistence,Digital Arts and Humanities and Creative Industries,Unspecified,98545906,9.56,T&S UK - Subsistence
BEIS,UKRI - AHRC,26/07/2019,T&S UK - Subsistence,Digital Arts and Humanities and Creative Industries,Unspecified,98545906,5.00,T&S UK - Subsistence
BEIS,UKRI - AHRC,26/07/2019,Health & Safety (inc. Medicals & Opticians),Digital Arts and Humanities and Creative Industries,Unspecified,98546122,-231.50,Health & Safety (inc. Medicals & Opticians)
BEIS,UKRI - AHRC,29/07/2019,Secondments,SMT,"Keble College, University of Oxford",98502589,40836.66,Secondments
BEIS,UKRI - AHRC,29/07/2019,Secondments,SMT,"Keble College, University of Oxford",98502589,24615.13,Secondments
BEIS,UKRI - AHRC,29/07/2019,Secondments,SMT,"Keble College, University of Oxford",98502589,1302.41,Secondments
BEIS,UKRI - AHRC,29/07/2019,Secondments,SMT,"Keble College, University of Oxford",98539407,-24615.13,Secondments
BEIS,UKRI - AHRC,29/07/2019,Secondments,SMT,"Keble College, University of Oxford",98539407,-42139.07,Secondments
BEIS,UKRI - AHRC,29/07/2019,Printing & Stationery,Corporate Services,Banner Group Ltd,98545068,22.68,Printing & Stationery
BEIS,UKRI - AHRC,29/07/2019,Printing & Stationery,Corporate Services,Banner Group Ltd,98545068,6.88,Printing & Stationery
BEIS,UKRI - AHRC,29/07/2019,Non-staff travel and subsistance,GCRF - Programme Delivery,Non Employee Expenses Supplier,98546162,355.33,Non-staff travel and subsistance
BEIS,UKRI - AHRC,29/07/2019,Non-staff travel and subsistance,Executive Office,Non Employee Expenses Supplier,98546163,182.06,Non-staff travel and subsistance
BEIS,UKRI - AHRC,29/07/2019,Legal & Professional Services,HR,Unspecified,98546246,9.00,Legal & Professional Services
BEIS,UKRI - AHRC,29/07/2019,Advertising & Promotion,Public and Stakeholder Engagement,Studio Orb Ltd,98546711,1000.00,Advertising & Promotion
BEIS,UKRI - AHRC,30/07/2019,Research Grant Expenditure,Urban Living,UKRI - Economic & Social Research Council,98522854,-6124.87,Research Grant Expenditure
BEIS,UKRI - AHRC,30/07/2019,Research Grant Expenditure,Global Challenges Research Fund (GCRF),UKRI - Economic & Social Research Council,98522857,-204.22,Research Grant Expenditure
BEIS,UKRI - AHRC,30/07/2019,Research Grant Expenditure,Global Challenges Research Fund (GCRF),UKRI - Economic & Social Research Council,98526496,5966.36,Research Grant Expenditure
BEIS,UKRI - AHRC,30/07/2019,Hospitality,Public and Stakeholder Engagement,House of Commons,98546508,912.00,Hospitality
BEIS,UKRI - AHRC,30/07/2019,Research Grant Expenditure,GCRF - Programme Delivery,UKRI - Economic & Social Research Council,98546854,28700.00,Research Grant Expenditure
BEIS,UKRI - AHRC,30/07/2019,Non-staff travel and subsistance,Executive Office,Non Employee Expenses Supplier,98546950,179.40,Non-staff travel and subsistance
BEIS,UKRI - AHRC,30/07/2019,Non-staff travel and subsistance,Executive Office,Non Employee Expenses Supplier,98546951,222.20,Non-staff travel and subsistance
BEIS,UKRI - AHRC,30/07/2019,T&S UK - Other Charges,Secretariat,Unspecified,98547177,9.03,T&S UK - Other Charges
BEIS,UKRI - AHRC,30/07/2019,T&S UK - Subsistence,Secretariat,Unspecified,98547177,5.64,T&S UK - Subsistence
BEIS,UKRI - AHRC,30/07/2019,T&S UK - Subsistence,Secretariat,Unspecified,98547177,13.70,T&S UK - Subsistence
BEIS,UKRI - AHRC,30/07/2019,UK - Professional Memberships & Subscriptions,SMT,Foundation for Science & Technology,98547700,6360.00,UK - Professional Memberships & Subscriptions
BEIS,UKRI - AHRC,31/07/2019,Contract Staff,PSU JRS,Alexander Mann Solutions Ltd,98545510,3423.12,Contract Staff
BEIS,UKRI - AHRC,31/07/2019,Non-staff travel and subsistance,Executive Office,Non Employee Expenses Supplier,98547329,53.25,Non-staff travel and subsistance
BEIS,UKRI - AHRC,31/07/2019,Non-staff travel and subsistance,International,Non Employee Expenses Supplier,98547330,365.84,Non-staff travel and subsistance
BEIS,UKRI - AHRC,31/07/2019,Non-staff travel and subsistance,Executive Office,Non Employee Expenses Supplier,98547331,142.10,Non-staff travel and subsistance
BEIS,UKRI - BBSRC,01/07/2019,Electricity,FG - Estates,Haven Power Ltd,98517927,995.50,Electricity
BEIS,UKRI - BBSRC,01/07/2019,Electricity,FG - Estates,Haven Power Ltd,98517929,679.83,Electricity
BEIS,UKRI - BBSRC,01/07/2019,Staff Training,PDG - Director,The Knowledge Academy,98525097,714.00,Staff Training
BEIS,UKRI - BBSRC,01/07/2019,T&S UK - Public Transport,Innovation and Skills Group CDSU,Unspecified,98526029,17.00,T&S UK - Public Transport
BEIS,UKRI - BBSRC,01/07/2019,T&S UK - Subsistence,Innovation and Skills Group CDSU,Unspecified,98526029,2.95,T&S UK - Subsistence
BEIS,UKRI - BBSRC,01/07/2019,T&S UK - Subsistence,Innovation and Skills Group CDSU,Unspecified,98526029,15.00,T&S UK - Subsistence
BEIS,UKRI - BBSRC,01/07/2019,T&S UK - Other Charges,FG - Estates,Unspecified,98526030,15.64,T&S UK - Other Charges
BEIS,UKRI - BBSRC,01/07/2019,T&S UK - Subsistence,FG - Estates,Unspecified,98526030,9.39,T&S UK - Subsistence
BEIS,UKRI - BBSRC,01/07/2019,T&S UK - Subsistence,FG - Estates,Unspecified,98526030,23.55,T&S UK - Subsistence
BEIS,UKRI - BBSRC,01/07/2019,T&S UK - Subsistence,FG - Estates,Unspecified,98526030,7.60,T&S UK - Subsistence
BEIS,UKRI - BBSRC,01/07/2019,T&S UK - Vehicle Hire,FG - Estates,Unspecified,98526030,48.30,T&S UK - Vehicle Hire
BEIS,UKRI - BBSRC,02/07/2019,Other Programme Costs,Innovation and Skills Group CDSU,UKRI - Engineering & Physical Sciences Research Council,98522340,3600.00,Other Programme Costs
BEIS,UKRI - BBSRC,02/07/2019,Research Grant Expenditure,Science Group,UKRI - Medical Research Council,98522389,149229.50,Research Grant Expenditure
BEIS,UKRI - BBSRC,02/07/2019,Research Grant Expenditure,Science Group,UKRI - Medical Research Council,98522396,17480.97,Research Grant Expenditure
BEIS,UKRI - BBSRC,02/07/2019,Research Grant Expenditure,Science Group,UKRI - Medical Research Council,98522397,114018.59,Research Grant Expenditure
BEIS,UKRI - BBSRC,02/07/2019,Research Grant Expenditure,Science Group,UKRI - Medical Research Council,98522402,103885.21,Research Grant Expenditure
BEIS,UKRI - BBSRC,02/07/2019,Research Grant Expenditure,Science Group,UKRI - Medical Research Council,98522410,24565.74,Research Grant Expenditure
BEIS,UKRI - BBSRC,02/07/2019,Research Grant Expenditure,Science Group,UKRI - Medical Research Council,98522433,19966.13,Research Grant Expenditure
BEIS,UKRI - BBSRC,02/07/2019,International Awards - Non Capital,GCRF Awards,UKRI - Medical Research Council,98522434,314679.47,International Awards - Non Capital
BEIS,UKRI - BBSRC,02/07/2019,Research Grant Expenditure,FG - Accounts & Business Planning,UKRI - Economic & Social Research Council,98522865,4932.37,Research Grant Expenditure
BEIS,UKRI - BBSRC,02/07/2019,Research Grant Expenditure,Science Group,UKRI - Medical Research Council,98522941,91533.14,Research Grant Expenditure
BEIS,UKRI - BBSRC,02/07/2019,Research Grant Expenditure,Science Group,UKRI - Medical Research Council,98522943,11003.17,Research Grant Expenditure
BEIS,UKRI - BBSRC,02/07/2019,Research Grant Expenditure,FG - Accounts & Business Planning,UKRI - Medical Research Council,98522946,26054.58,Research Grant Expenditure
BEIS,UKRI - BBSRC,02/07/2019,Fellowships,Innovation and Skills Group,UKRI - Medical Research Council,98522948,83414.87,Fellowships
BEIS,UKRI - BBSRC,02/07/2019,Research Grant Expenditure,Science Group,UKRI - Medical Research Council,98522952,161790.53,Research Grant Expenditure
BEIS,UKRI - BBSRC,02/07/2019,Research Grant Expenditure,Science Group,UKRI - Medical Research Council,98522956,13316.10,Research Grant Expenditure
BEIS,UKRI - BBSRC,02/07/2019,Research Grant Expenditure,FG - Accounts & Business Planning,UKRI - Medical Research Council,98523019,-596.38,Research Grant Expenditure
BEIS,UKRI - BBSRC,02/07/2019,Research Grant Expenditure,Science Group,UKRI - Medical Research Council,98524262,746875.00,Research Grant Expenditure
BEIS,UKRI - BBSRC,02/07/2019,Non-Capital Building Construction,JBOS - Maintenance,ISS Mediclean Ltd,98525716,1520.80,Non-Capital Building Construction
BEIS,UKRI - BBSRC,02/07/2019,T&S UK - Vehicle Hire,FG - Estates,Enterprise Rent-A-Car UK Ltd,98525910,107.77,T&S UK - Vehicle Hire
BEIS,UKRI - BBSRC,02/07/2019,T&S UK - Vehicle Hire,FG - Estates,Enterprise Rent-A-Car UK Ltd,98525910,55.13,T&S UK - Vehicle Hire
BEIS,UKRI - BBSRC,02/07/2019,T&S UK - Vehicle Hire,FG - Estates,Enterprise Rent-A-Car UK Ltd,98525910,32.58,T&S UK - Vehicle Hire
BEIS,UKRI - BBSRC,02/07/2019,T&S UK - Vehicle Hire,FG - RCUK Assurance,Enterprise Rent-A-Car UK Ltd,98525910,120.04,T&S UK - Vehicle Hire
BEIS,UKRI - BBSRC,02/07/2019,T&S UK - Vehicle Hire,FG - RCUK Assurance,Enterprise Rent-A-Car UK Ltd,98525910,25.82,T&S UK - Vehicle Hire
BEIS,UKRI - BBSRC,02/07/2019,T&S UK - Vehicle Hire,FG - RCUK Assurance,Enterprise Rent-A-Car UK Ltd,98525910,52.73,T&S UK - Vehicle Hire
BEIS,UKRI - BBSRC,02/07/2019,T&S UK - Vehicle Hire,FG - RCUK Assurance,Enterprise Rent-A-Car UK Ltd,98525910,117.77,T&S UK - Vehicle Hire
BEIS,UKRI - BBSRC,02/07/2019,T&S UK - Flights,Science Group - Delivery Function,Unspecified,98526028,7.00,T&S UK - Flights
BEIS,UKRI - BBSRC,02/07/2019,T&S UK - Public Transport,Science Group - Delivery Function,Unspecified,98526028,33.00,T&S UK - Public Transport
BEIS,UKRI - BBSRC,02/07/2019,T&S UK - Subsistence,Science Group - Delivery Function,Unspecified,98526028,15.00,T&S UK - Subsistence
BEIS,UKRI - BBSRC,02/07/2019,T&S UK - Subsistence,CIMG - Director,Unspecified,98526032,6.78,T&S UK - Subsistence
BEIS,UKRI - BBSRC,02/07/2019,Health & Safety (inc. Medicals & Opticians),PDG - Director,BMI Healthcare Limited,98526404,666.00,Health & Safety (inc. Medicals & Opticians)
BEIS,UKRI - BBSRC,02/07/2019,Legal & Professional Services,CIMG - External Relations,Studio 108 Design Partnership,98526471,4800.00,Legal & Professional Services
BEIS,UKRI - BBSRC,02/07/2019,Legal & Professional Services,CIMG - External Relations,Studio 108 Design Partnership,98526471,4800.00,Legal & Professional Services
BEIS,UKRI - BBSRC,02/07/2019,Safety Materials & Equipment,FG - Estates,Enterprise Rent-A-Car UK Ltd,98527039,24.44,Safety Materials & Equipment
BEIS,UKRI - BBSRC,02/07/2019,Safety Materials & Equipment,FG - Estates,Enterprise Rent-A-Car UK Ltd,98527039,122.18,Safety Materials & Equipment
BEIS,UKRI - BBSRC,02/07/2019,T&S UK - Vehicle Hire,FG - Estates,Enterprise Rent-A-Car UK Ltd,98527039,26.95,T&S UK - Vehicle Hire
BEIS,UKRI - BBSRC,02/07/2019,T&S UK - Vehicle Hire,FG - Estates,Enterprise Rent-A-Car UK Ltd,98527039,78.61,T&S UK - Vehicle Hire
BEIS,UKRI - BBSRC,02/07/2019,T&S UK - Vehicle Hire,FG - Estates,Enterprise Rent-A-Car UK Ltd,98527039,56.13,T&S UK - Vehicle Hire
BEIS,UKRI - BBSRC,02/07/2019,T&S UK - Vehicle Hire,FG - RCUK Assurance,Enterprise Rent-A-Car UK Ltd,98527039,11.52,T&S UK - Vehicle Hire
BEIS,UKRI - BBSRC,02/07/2019,T&S UK - Vehicle Hire,FG - RCUK Assurance,Enterprise Rent-A-Car UK Ltd,98527039,57.60,T&S UK - Vehicle Hire
BEIS,UKRI - BBSRC,02/07/2019,Agency Staff,FG - Accounts & Business Planning,Reed Specialist Recruitment Ltd,98527067,719.62,Agency Staff
BEIS,UKRI - BBSRC,02/07/2019,Other Programme Costs,Science Group,University of Durham,98527115,9000.00,Other Programme Costs
BEIS,UKRI - BBSRC,02/07/2019,Subsidiaries Expenditure,Innovation and Skills Group,The University of Manchester,98527155,98872.79,Subsidiaries Expenditure
BEIS,UKRI - BBSRC,02/07/2019,T&S UK - Subsistence,FG - Estates,Unspecified,98527191,5.57,T&S UK - Subsistence
BEIS,UKRI - BBSRC,02/07/2019,T&S UK - Vehicle Hire,FG - Estates,Unspecified,98527191,46.05,T&S UK - Vehicle Hire
BEIS,UKRI - BBSRC,02/07/2019,T&S UK - Parking Tolls Congestion Charges,Innovation and Skills Group,Unspecified,98527192,17.00,T&S UK - Parking Tolls Congestion Charges
BEIS,UKRI - BBSRC,02/07/2019,T&S UK - Subsistence,Innovation and Skills Group,Unspecified,98527192,180.22,T&S UK - Subsistence
BEIS,UKRI - BBSRC,02/07/2019,T&S UK - Subsistence,Innovation and Skills Group,Unspecified,98527192,5.70,T&S UK - Subsistence
BEIS,UKRI - BBSRC,02/07/2019,T&S UK - Subsistence,Innovation and Skills Group,Unspecified,98527192,20.00,T&S UK - Subsistence
BEIS,UKRI - BBSRC,02/07/2019,T&S UK - Vehicle Hire,Innovation and Skills Group,Unspecified,98527192,65.48,T&S UK - Vehicle Hire
BEIS,UKRI - BBSRC,03/07/2019,Non-staff travel and subsistance,Science Group - Delivery Function,Non Employee Expenses Supplier,98523905,218.71,Non-staff travel and subsistance
BEIS,UKRI - BBSRC,03/07/2019,Non-staff travel and subsistance,Science Group - Delivery Function,Non Employee Expenses Supplier,98526320,115.77,Non-staff travel and subsistance
BEIS,UKRI - BBSRC,03/07/2019,Compensation Payments,FG - Accounts & Business Planning,RCPS Pension,98526389,3820.53,Compensation Payments
BEIS,UKRI - BBSRC,03/07/2019,Non-staff travel and subsistance,Science Group - Delivery Function,Non Employee Expenses Supplier,98526834,96.08,Non-staff travel and subsistance
BEIS,UKRI - BBSRC,03/07/2019,Legal & Professional Services,PDG - Director,Unspecified,98527449,98.40,Legal & Professional Services
BEIS,UKRI - BBSRC,03/07/2019,Legal & Professional Services,FG - Estates,Perfect Circle JV Ltd,98527521,539.90,Legal & Professional Services
BEIS,UKRI - BBSRC,03/07/2019,Meetings & Catering,CIMG - Director,Harbour & Jones Ltd T/A Dartmouth House,98528846,88.20,Meetings & Catering
BEIS,UKRI - BBSRC,04/07/2019,Mechanical & Electrical Maintenance,JBOS - Maintenance,SSE contracting Ltd T/A SSE Enterprise,98529130,2651.41,Mechanical & Electrical Maintenance
BEIS,UKRI - BBSRC,04/07/2019,T&S UK - Other Charges,European Initiatives,Unspecified,98529905,7.57,T&S UK - Other Charges
BEIS,UKRI - BBSRC,04/07/2019,T&S UK - Public Transport,European Initiatives,Unspecified,98529905,8.55,T&S UK - Public Transport
BEIS,UKRI - BBSRC,04/07/2019,T&S UK - Subsistence,European Initiatives,Unspecified,98529905,40.55,T&S UK - Subsistence
BEIS,UKRI - BBSRC,04/07/2019,T&S UK - Subsistence,European Initiatives,Unspecified,98529905,10.00,T&S UK - Subsistence
BEIS,UKRI - BBSRC,04/07/2019,T&S UK - Subsistence,Science Group,Unspecified,98529906,12.70,T&S UK - Subsistence
BEIS,UKRI - BBSRC,04/07/2019,T&S UK - Subsistence,Science Group,Unspecified,98529906,2.00,T&S UK - Subsistence
BEIS,UKRI - BBSRC,05/07/2019,Health & Safety (inc. Medicals & Opticians),PDG - Director,BMI Healthcare Limited,98529548,1116.50,Health & Safety (inc. Medicals & Opticians)
BEIS,UKRI - BBSRC,05/07/2019,Health & Safety (inc. Medicals & Opticians),PDG - Director,BMI Healthcare Limited,98529549,1566.00,Health & Safety (inc. Medicals & Opticians)
BEIS,UKRI - BBSRC,05/07/2019,Security Services,FG - Estates,Babraham Institute,98529592,4392.00,Security Services
BEIS,UKRI - BBSRC,05/07/2019,Research Institutes - Capital Grants: Major Works,JIC,John Innes Centre,98529608,3549.49,Research Institutes - Capital Grants: Major Works
BEIS,UKRI - BBSRC,05/07/2019,Mechanical & Electrical Maintenance,JBOS - Maintenance,ISS Mediclean Ltd,98530658,967.67,Mechanical & Electrical Maintenance
BEIS,UKRI - BBSRC,05/07/2019,General Building Maintenance,JBOS - Maintenance,ISS Mediclean Ltd,98530659,1425.48,General Building Maintenance
BEIS,UKRI - BBSRC,05/07/2019,General Building Maintenance,JBOS - Maintenance,ISS Mediclean Ltd,98530661,956.89,General Building Maintenance
BEIS,UKRI - BBSRC,05/07/2019,Non-Capital Building Construction,JBOS - Maintenance,ISS Mediclean Ltd,98530662,14886.71,Non-Capital Building Construction
BEIS,UKRI - BBSRC,05/07/2019,Security Services,FG - Estates,Babraham Institute,98530736,3780.00,Security Services
BEIS,UKRI - BBSRC,05/07/2019,T&S UK - Subsistence,Science Group,Unspecified,98530948,5.42,T&S UK - Subsistence
BEIS,UKRI - BBSRC,05/07/2019,T&S UK - Public Transport,Science Group,Unspecified,98530949,8.50,T&S UK - Public Transport
BEIS,UKRI - BBSRC,05/07/2019,T&S UK - Subsistence,Science Group,Unspecified,98530950,9.49,T&S UK - Subsistence
BEIS,UKRI - BBSRC,05/07/2019,T&S UK - Public Transport,CE - CPS,Unspecified,98530951,43.05,T&S UK - Public Transport
BEIS,UKRI - BBSRC,05/07/2019,T&S UK - Subsistence,CE - CPS,Unspecified,98530951,4.20,T&S UK - Subsistence
BEIS,UKRI - BBSRC,08/07/2019,Recruitment Costs,PDG - Director,Onefix Recruitment Ltd,98529594,300.00,Recruitment Costs
BEIS,UKRI - BBSRC,08/07/2019,Legal & Professional Services,FG - Estates,Womble Bond Dickinson LLP,98530296,4731.96,Legal & Professional Services
BEIS,UKRI - BBSRC,08/07/2019,Recruitment Costs,PDG - Director,Warwick University Services Ltd,98532006,294.00,Recruitment Costs
BEIS,UKRI - BBSRC,08/07/2019,Postage & Courier Services,JBOS - Post Room,Unspecified,98532027,1025.21,Postage & Courier Services
BEIS,UKRI - BBSRC,08/07/2019,Health & Safety (inc. Medicals & Opticians),PDG - Director,Back2 International Ltd,98532114,477.36,Health & Safety (inc. Medicals & Opticians)
BEIS,UKRI - BBSRC,09/07/2019,Training Awards - Postgraduates,FG - Accounts & Business Planning,Aberystwyth University,98525439,3719.55,Training Awards - Postgraduates
BEIS,UKRI - BBSRC,09/07/2019,Training Awards - Postgraduates,FG - Accounts & Business Planning,University of Edinburgh,98525440,6013.30,Training Awards - Postgraduates
BEIS,UKRI - BBSRC,09/07/2019,Training Awards - Postgraduates,FG - Accounts & Business Planning,The Pirbright Institute,98525441,2451.18,Training Awards - Postgraduates
BEIS,UKRI - BBSRC,09/07/2019,Training Awards - Postgraduates,FG - Accounts & Business Planning,University of Birmingham GRANT,98525442,4977.84,Training Awards - Postgraduates
BEIS,UKRI - BBSRC,09/07/2019,Training Awards - Postgraduates,FG - Accounts & Business Planning,Quadram Institute Bioscience,98525443,4706.30,Training Awards - Postgraduates
BEIS,UKRI - BBSRC,09/07/2019,Training Awards - Postgraduates,FG - Accounts & Business Planning,University of Liverpool,98525444,3921.92,Training Awards - Postgraduates
BEIS,UKRI - BBSRC,09/07/2019,Training Awards - Postgraduates,FG - Accounts & Business Planning,Babraham Institute,98525445,4622.27,Training Awards - Postgraduates
BEIS,UKRI - BBSRC,09/07/2019,Training Awards - Postgraduates,FG - Accounts & Business Planning,University of Newcastle Upon Tyne,98525446,4779.90,Training Awards - Postgraduates
BEIS,UKRI - BBSRC,09/07/2019,Training Awards - Postgraduates,FG - Accounts & Business Planning,University of York,98525447,5882.89,Training Awards - Postgraduates
BEIS,UKRI - BBSRC,09/07/2019,Training Awards - Postgraduates,FG - Accounts & Business Planning,University of York,98525447,5882.87,Training Awards - Postgraduates
BEIS,UKRI - BBSRC,09/07/2019,Training Awards - Postgraduates,FG - Accounts & Business Planning,University of York,98525447,5882.89,Training Awards - Postgraduates
BEIS,UKRI - BBSRC,09/07/2019,Training Awards - Postgraduates,FG - Accounts & Business Planning,University of York,98525447,5882.89,Training Awards - Postgraduates
BEIS,UKRI - BBSRC,09/07/2019,Training Awards - Postgraduates,FG - Accounts & Business Planning,University of York,98525447,5882.87,Training Awards - Postgraduates
BEIS,UKRI - BBSRC,09/07/2019,Training Awards - Postgraduates,FG - Accounts & Business Planning,Royal Veterinary College,98525448,3904.16,Training Awards - Postgraduates
BEIS,UKRI - BBSRC,09/07/2019,Training Awards - Postgraduates,FG - Accounts & Business Planning,University College London,98525449,1014056.25,Training Awards - Postgraduates
BEIS,UKRI - BBSRC,09/07/2019,Training Awards - Postgraduates,FG - Accounts & Business Planning,University of Nottingham,98525450,778223.75,Training Awards - Postgraduates
BEIS,UKRI - BBSRC,09/07/2019,Training Awards - Postgraduates,FG - Accounts & Business Planning,University of Cambridge,98525451,937556.25,Training Awards - Postgraduates
BEIS,UKRI - BBSRC,09/07/2019,Training Awards - Postgraduates,FG - Accounts & Business Planning,John Innes Centre,98525452,786223.75,Training Awards - Postgraduates
BEIS,UKRI - BBSRC,09/07/2019,Training Awards - Postgraduates,FG - Accounts & Business Planning,University of Warwick,98525453,818714.75,Training Awards - Postgraduates
BEIS,UKRI - BBSRC,09/07/2019,Training Awards - Postgraduates,FG - Accounts & Business Planning,University of Oxford,98525454,822223.75,Training Awards - Postgraduates
BEIS,UKRI - BBSRC,09/07/2019,Training Awards - Postgraduates,FG - Accounts & Business Planning,University of Leeds,98525455,736750.75,Training Awards - Postgraduates
BEIS,UKRI - BBSRC,09/07/2019,Training Awards - Postgraduates,FG - Accounts & Business Planning,University of Newcastle Upon Tyne,98525456,263244.25,Training Awards - Postgraduates
BEIS,UKRI - BBSRC,09/07/2019,Training Awards - Postgraduates,FG - Accounts & Business Planning,Imperial College London,98525457,539549.75,Training Awards - Postgraduates
BEIS,UKRI - BBSRC,09/07/2019,Training Awards - Postgraduates,FG - Accounts & Business Planning,The University of Manchester,98525458,477402.00,Training Awards - Postgraduates
BEIS,UKRI - BBSRC,09/07/2019,Training Awards - Postgraduates,FG - Accounts & Business Planning,University of Edinburgh,98525459,479558.25,Training Awards - Postgraduates
BEIS,UKRI - BBSRC,09/07/2019,Training Awards - Postgraduates,FG - Accounts & Business Planning,University of Bristol GRANT,98525460,524049.75,Training Awards - Postgraduates
BEIS,UKRI - BBSRC,09/07/2019,Training Awards - Postgraduates,FG - Accounts & Business Planning,University of Edinburgh,98525461,5483.20,Training Awards - Postgraduates
BEIS,UKRI - BBSRC,09/07/2019,Training Awards - Postgraduates,FG - Accounts & Business Planning,Aberystwyth University,98525462,5940.12,Training Awards - Postgraduates
BEIS,UKRI - BBSRC,09/07/2019,Training Awards - Postgraduates,FG - Accounts & Business Planning,Aberystwyth University,98525463,5940.12,Training Awards - Postgraduates
BEIS,UKRI - BBSRC,09/07/2019,Training Awards - Postgraduates,FG - Accounts & Business Planning,King's College London,98525464,6440.12,Training Awards - Postgraduates
BEIS,UKRI - BBSRC,09/07/2019,Training Awards - Postgraduates,FG - Accounts & Business Planning,University of Reading,98525465,5445.11,Training Awards - Postgraduates
BEIS,UKRI - BBSRC,09/07/2019,Training Awards - Postgraduates,FG - Accounts & Business Planning,University of Glasgow,98525466,5940.12,Training Awards - Postgraduates
BEIS,UKRI - BBSRC,09/07/2019,Training Awards - Postgraduates,FG - Accounts & Business Planning,University of Birmingham GRANT,98525467,5940.12,Training Awards - Postgraduates
BEIS,UKRI - BBSRC,09/07/2019,Training Awards - Postgraduates,FG - Accounts & Business Planning,University of Durham,98525468,5515.82,Training Awards - Postgraduates
BEIS,UKRI - BBSRC,09/07/2019,Training Awards - Postgraduates,FG - Accounts & Business Planning,Rothamsted Research Ltd,98525469,5940.20,Training Awards - Postgraduates
BEIS,UKRI - BBSRC,09/07/2019,Training Awards - Postgraduates,FG - Accounts & Business Planning,University of Oxford,98525470,5940.12,Training Awards - Postgraduates
BEIS,UKRI - BBSRC,09/07/2019,Training Awards - Postgraduates,FG - Accounts & Business Planning,Lancaster University,98525471,4356.10,Training Awards - Postgraduates
BEIS,UKRI - BBSRC,09/07/2019,Training Awards - Postgraduates,FG - Accounts & Business Planning,Earlham Institute,98525472,4242.99,Training Awards - Postgraduates
BEIS,UKRI - BBSRC,09/07/2019,Training Awards - Postgraduates,FG - Accounts & Business Planning,King's College London,98525473,4953.95,Training Awards - Postgraduates
BEIS,UKRI - BBSRC,09/07/2019,Training Awards - Postgraduates,FG - Accounts & Business Planning,King's College London,98525474,9367.46,Training Awards - Postgraduates
BEIS,UKRI - BBSRC,09/07/2019,Training Awards - Postgraduates,FG - Accounts & Business Planning,University of Chester,98525475,5940.12,Training Awards - Postgraduates
BEIS,UKRI - BBSRC,09/07/2019,Training Awards - Postgraduates,FG - Accounts & Business Planning,University of Leicester,98525476,6364.57,Training Awards - Postgraduates
BEIS,UKRI - BBSRC,09/07/2019,Training Awards - Postgraduates,FG - Accounts & Business Planning,University of Leeds,98525477,5445.11,Training Awards - Postgraduates
BEIS,UKRI - BBSRC,09/07/2019,Training Awards - Postgraduates,FG - Accounts & Business Planning,University of Nottingham,98525478,5940.12,Training Awards - Postgraduates
BEIS,UKRI - BBSRC,09/07/2019,Training Awards - Postgraduates,FG - Accounts & Business Planning,King's College London,98525479,6440.12,Training Awards - Postgraduates
BEIS,UKRI - BBSRC,09/07/2019,Training Awards - Postgraduates,FG - Accounts & Business Planning,University College London,98525480,6440.12,Training Awards - Postgraduates
BEIS,UKRI - BBSRC,09/07/2019,Training Awards - Postgraduates,FG - Accounts & Business Planning,Imperial College London,98525481,6440.12,Training Awards - Postgraduates
BEIS,UKRI - BBSRC,09/07/2019,Training Awards - Postgraduates,FG - Accounts & Business Planning,Imperial College London,98525482,6440.12,Training Awards - Postgraduates
BEIS,UKRI - BBSRC,09/07/2019,Training Awards - Postgraduates,FG - Accounts & Business Planning,University of Cambridge,98525483,5940.12,Training Awards - Postgraduates
BEIS,UKRI - BBSRC,09/07/2019,Training Awards - Postgraduates,FG - Accounts & Business Planning,University of Cambridge,98525484,5940.12,Training Awards - Postgraduates
BEIS,UKRI - BBSRC,09/07/2019,Training Awards - Postgraduates,FG - Accounts & Business Planning,University of Leeds,98525485,5483.20,Training Awards - Postgraduates
BEIS,UKRI - BBSRC,09/07/2019,Training Awards - Postgraduates,FG - Accounts & Business Planning,University of Leeds,98525486,5940.12,Training Awards - Postgraduates
BEIS,UKRI - BBSRC,09/07/2019,Training Awards - Postgraduates,FG - Accounts & Business Planning,University of Bristol GRANT,98525487,4510.08,Training Awards - Postgraduates
BEIS,UKRI - BBSRC,09/07/2019,Training Awards - Postgraduates,FG - Accounts & Business Planning,University College London,98525488,6543.50,Training Awards - Postgraduates
BEIS,UKRI - BBSRC,09/07/2019,Training Awards - Postgraduates,FG - Accounts & Business Planning,University of Oxford,98525489,6043.50,Training Awards - Postgraduates
BEIS,UKRI - BBSRC,09/07/2019,Training Awards - Postgraduates,FG - Accounts & Business Planning,Royal Veterinary College,98525490,6543.50,Training Awards - Postgraduates
BEIS,UKRI - BBSRC,09/07/2019,Training Awards - Postgraduates,FG - Accounts & Business Planning,The University of Manchester,98525491,6043.50,Training Awards - Postgraduates
BEIS,UKRI - BBSRC,09/07/2019,Training Awards - Postgraduates,FG - Accounts & Business Planning,University of Leicester,98525492,6043.50,Training Awards - Postgraduates
BEIS,UKRI - BBSRC,09/07/2019,Training Awards - Postgraduates,FG - Accounts & Business Planning,University of Oxford,98525493,6043.50,Training Awards - Postgraduates
BEIS,UKRI - BBSRC,09/07/2019,Training Awards - Postgraduates,FG - Accounts & Business Planning,University of Oxford,98525494,5113.72,Training Awards - Postgraduates
BEIS,UKRI - BBSRC,09/07/2019,Training Awards - Postgraduates,FG - Accounts & Business Planning,Liverpool John Moores University,98525495,6043.50,Training Awards - Postgraduates
BEIS,UKRI - BBSRC,09/07/2019,Training Awards - Postgraduates,FG - Accounts & Business Planning,The University of Manchester,98525496,6043.50,Training Awards - Postgraduates
BEIS,UKRI - BBSRC,09/07/2019,Training Awards - Postgraduates,FG - Accounts & Business Planning,University of Newcastle Upon Tyne,98525497,6043.50,Training Awards - Postgraduates
BEIS,UKRI - BBSRC,09/07/2019,Training Awards - Postgraduates,FG - Accounts & Business Planning,University of Surrey,98525498,5180.15,Training Awards - Postgraduates
BEIS,UKRI - BBSRC,09/07/2019,Training Awards - Postgraduates,FG - Accounts & Business Planning,University College London,98525499,6543.50,Training Awards - Postgraduates
BEIS,UKRI - BBSRC,09/07/2019,Training Awards - Postgraduates,FG - Accounts & Business Planning,Queen Mary University of London,98525500,6543.50,Training Awards - Postgraduates
BEIS,UKRI - BBSRC,09/07/2019,Training Awards - Postgraduates,FG - Accounts & Business Planning,University of York,98525501,6043.50,Training Awards - Postgraduates
BEIS,UKRI - BBSRC,09/07/2019,Training Awards - Postgraduates,FG - Accounts & Business Planning,Queen Mary University of London,98525502,6543.50,Training Awards - Postgraduates
BEIS,UKRI - BBSRC,09/07/2019,Training Awards - Postgraduates,FG - Accounts & Business Planning,Wellcome Trust Sanger Institute,98525503,6043.50,Training Awards - Postgraduates
BEIS,UKRI - BBSRC,09/07/2019,Training Awards - Postgraduates,FG - Accounts & Business Planning,John Innes Centre,98525504,6043.50,Training Awards - Postgraduates
BEIS,UKRI - BBSRC,09/07/2019,Training Awards - Postgraduates,FG - Accounts & Business Planning,University of Leicester,98525505,6043.50,Training Awards - Postgraduates
BEIS,UKRI - BBSRC,09/07/2019,Training Awards - Postgraduates,FG - Accounts & Business Planning,University of Surrey,98525506,4532.61,Training Awards - Postgraduates
BEIS,UKRI - BBSRC,09/07/2019,Training Awards - Postgraduates,FG - Accounts & Business Planning,University of Exeter,98525507,3874.76,Training Awards - Postgraduates
BEIS,UKRI - BBSRC,09/07/2019,Training Awards - Postgraduates,FG - Accounts & Business Planning,The University of Manchester,98525508,6043.50,Training Awards - Postgraduates
BEIS,UKRI - BBSRC,09/07/2019,Training Awards - Postgraduates,FG - Accounts & Business Planning,University of Glasgow,98525509,6043.50,Training Awards - Postgraduates
BEIS,UKRI - BBSRC,09/07/2019,Training Awards - Postgraduates,FG - Accounts & Business Planning,The Francis Crick Institute,98525510,6543.50,Training Awards - Postgraduates
BEIS,UKRI - BBSRC,09/07/2019,Training Awards - Postgraduates,FG - Accounts & Business Planning,King's College London,98525511,6543.50,Training Awards - Postgraduates
BEIS,UKRI - BBSRC,09/07/2019,Training Awards - Postgraduates,FG - Accounts & Business Planning,King's College London,98525512,6543.50,Training Awards - Postgraduates
BEIS,UKRI - BBSRC,09/07/2019,Training Awards - Postgraduates,FG - Accounts & Business Planning,The Francis Crick Institute,98525513,6543.50,Training Awards - Postgraduates
BEIS,UKRI - BBSRC,09/07/2019,Training Awards - Postgraduates,FG - Accounts & Business Planning,University of Edinburgh,98525514,6043.50,Training Awards - Postgraduates
BEIS,UKRI - BBSRC,09/07/2019,Training Awards - Postgraduates,FG - Accounts & Business Planning,University of Cambridge,98525515,6043.50,Training Awards - Postgraduates
BEIS,UKRI - BBSRC,09/07/2019,Training Awards - Postgraduates,FG - Accounts & Business Planning,Babraham Institute,98525516,6043.50,Training Awards - Postgraduates
BEIS,UKRI - BBSRC,09/07/2019,Training Awards - Postgraduates,FG - Accounts & Business Planning,University of York,98525517,6043.50,Training Awards - Postgraduates
BEIS,UKRI - BBSRC,09/07/2019,Training Awards - Postgraduates,FG - Accounts & Business Planning,Cambridge Crystallographic Data Centre,98525518,6043.50,Training Awards - Postgraduates
BEIS,UKRI - BBSRC,09/07/2019,Training Awards - Postgraduates,FG - Accounts & Business Planning,University of Nottingham,98525519,5578.62,Training Awards - Postgraduates
BEIS,UKRI - BBSRC,09/07/2019,Training Awards - Postgraduates,FG - Accounts & Business Planning,King's College London,98525520,6543.50,Training Awards - Postgraduates
BEIS,UKRI - BBSRC,09/07/2019,Training Awards - Postgraduates,FG - Accounts & Business Planning,"Royal Holloway, University of London",98525521,6543.50,Training Awards - Postgraduates
BEIS,UKRI - BBSRC,09/07/2019,Training Awards - Postgraduates,FG - Accounts & Business Planning,University College London,98525522,6543.50,Training Awards - Postgraduates
BEIS,UKRI - BBSRC,09/07/2019,Training Awards - Postgraduates,FG - Accounts & Business Planning,Imperial College London,98525523,6543.50,Training Awards - Postgraduates
BEIS,UKRI - BBSRC,09/07/2019,Training Awards - Postgraduates,FG - Accounts & Business Planning,King's College London,98525524,6543.50,Training Awards - Postgraduates
BEIS,UKRI - BBSRC,09/07/2019,Training Awards - Postgraduates,FG - Accounts & Business Planning,Liverpool John Moores University,98525525,6043.50,Training Awards - Postgraduates
BEIS,UKRI - BBSRC,09/07/2019,Training Awards - Postgraduates,FG - Accounts & Business Planning,Imperial College London,98525526,6543.50,Training Awards - Postgraduates
BEIS,UKRI - BBSRC,09/07/2019,Training Awards - Postgraduates,FG - Accounts & Business Planning,University of Southampton GRANT,98525527,6043.50,Training Awards - Postgraduates
BEIS,UKRI - BBSRC,09/07/2019,Training Awards - Postgraduates,FG - Accounts & Business Planning,Imperial College London,98525528,6543.50,Training Awards - Postgraduates
BEIS,UKRI - BBSRC,09/07/2019,Training Awards - Postgraduates,FG - Accounts & Business Planning,University of Bath,98525529,6043.50,Training Awards - Postgraduates
BEIS,UKRI - BBSRC,09/07/2019,Training Awards - Postgraduates,FG - Accounts & Business Planning,National Institute For Agricultural Botany (NIAB),98525530,4910.35,Training Awards - Postgraduates
BEIS,UKRI - BBSRC,09/07/2019,Training Awards - Postgraduates,FG - Accounts & Business Planning,University of Leicester,98525531,6043.50,Training Awards - Postgraduates
BEIS,UKRI - BBSRC,09/07/2019,Training Awards - Postgraduates,FG - Accounts & Business Planning,Harper Adams University College,98525532,2577.50,Training Awards - Postgraduates
BEIS,UKRI - BBSRC,09/07/2019,Training Awards - Postgraduates,FG - Accounts & Business Planning,University of Edinburgh,98525533,3000.00,Training Awards - Postgraduates
BEIS,UKRI - BBSRC,09/07/2019,Training Awards - Postgraduates,FG - Accounts & Business Planning,University of Exeter,98525534,3453.43,Training Awards - Postgraduates
BEIS,UKRI - BBSRC,09/07/2019,Training Awards - Postgraduates,FG - Accounts & Business Planning,University of Newcastle Upon Tyne,98525535,6043.50,Training Awards - Postgraduates
BEIS,UKRI - BBSRC,09/07/2019,Training Awards - Postgraduates,FG - Accounts & Business Planning,University of Exeter,98525536,6043.50,Training Awards - Postgraduates
BEIS,UKRI - BBSRC,09/07/2019,Training Awards - Postgraduates,FG - Accounts & Business Planning,University of Cambridge,98525537,6043.50,Training Awards - Postgraduates
BEIS,UKRI - BBSRC,09/07/2019,Training Awards - Postgraduates,FG - Accounts & Business Planning,University of Bristol GRANT,98525538,6043.50,Training Awards - Postgraduates
BEIS,UKRI - BBSRC,09/07/2019,Training Awards - Postgraduates,FG - Accounts & Business Planning,University of Essex,98525539,6043.50,Training Awards - Postgraduates
BEIS,UKRI - BBSRC,09/07/2019,Training Awards - Postgraduates,FG - Accounts & Business Planning,Loughborough University,98525540,6043.50,Training Awards - Postgraduates
BEIS,UKRI - BBSRC,09/07/2019,Training Awards - Postgraduates,FG - Accounts & Business Planning,Loughborough University,98525540,6043.50,Training Awards - Postgraduates
BEIS,UKRI - BBSRC,09/07/2019,Training Awards - Postgraduates,FG - Accounts & Business Planning,Cardiff University,98525541,6043.50,Training Awards - Postgraduates
BEIS,UKRI - BBSRC,09/07/2019,Training Awards - Postgraduates,FG - Accounts & Business Planning,Imperial College London,98525542,6543.50,Training Awards - Postgraduates
BEIS,UKRI - BBSRC,09/07/2019,Training Awards - Postgraduates,FG - Accounts & Business Planning,University College London,98525543,6543.50,Training Awards - Postgraduates
BEIS,UKRI - BBSRC,09/07/2019,Training Awards - Postgraduates,FG - Accounts & Business Planning,Imperial College London,98525544,6543.50,Training Awards - Postgraduates
BEIS,UKRI - BBSRC,09/07/2019,Training Awards - Postgraduates,FG - Accounts & Business Planning,University of Cambridge,98525545,6043.50,Training Awards - Postgraduates
BEIS,UKRI - BBSRC,09/07/2019,Training Awards - Postgraduates,FG - Accounts & Business Planning,University of Oxford,98525546,6043.50,Training Awards - Postgraduates
BEIS,UKRI - BBSRC,09/07/2019,Training Awards - Postgraduates,FG - Accounts & Business Planning,The University of Manchester,98525547,6043.50,Training Awards - Postgraduates
BEIS,UKRI - BBSRC,09/07/2019,Training Awards - Postgraduates,FG - Accounts & Business Planning,University of Nottingham,98525548,6043.50,Training Awards - Postgraduates
BEIS,UKRI - BBSRC,09/07/2019,Training Awards - Postgraduates,FG - Accounts & Business Planning,University of York,98525549,6043.50,Training Awards - Postgraduates
BEIS,UKRI - BBSRC,09/07/2019,Training Awards - Postgraduates,FG - Accounts & Business Planning,University of Southampton GRANT,98525550,6043.50,Training Awards - Postgraduates
BEIS,UKRI - BBSRC,09/07/2019,Training Awards - Postgraduates,FG - Accounts & Business Planning,University of Cambridge,98525551,6043.50,Training Awards - Postgraduates
BEIS,UKRI - BBSRC,09/07/2019,Training Awards - Postgraduates,FG - Accounts & Business Planning,University of Nottingham,98525552,6043.50,Training Awards - Postgraduates
BEIS,UKRI - BBSRC,09/07/2019,Training Awards - Postgraduates,FG - Accounts & Business Planning,University of York,98525553,6043.50,Training Awards - Postgraduates
BEIS,UKRI - BBSRC,09/07/2019,Training Awards - Postgraduates,FG - Accounts & Business Planning,University of Reading,98525554,5288.06,Training Awards - Postgraduates
BEIS,UKRI - BBSRC,09/07/2019,Training Awards - Postgraduates,FG - Accounts & Business Planning,University of Sheffield,98525555,6043.50,Training Awards - Postgraduates
BEIS,UKRI - BBSRC,09/07/2019,Training Awards - Postgraduates,FG - Accounts & Business Planning,University of Edinburgh,98525556,6043.50,Training Awards - Postgraduates
BEIS,UKRI - BBSRC,09/07/2019,Training Awards - Postgraduates,FG - Accounts & Business Planning,University of Edinburgh,98525557,6043.50,Training Awards - Postgraduates
BEIS,UKRI - BBSRC,09/07/2019,Training Awards - Postgraduates,FG - Accounts & Business Planning,Brunel University London,98525558,6543.50,Training Awards - Postgraduates
BEIS,UKRI - BBSRC,09/07/2019,Training Awards - Postgraduates,FG - Accounts & Business Planning,University of Newcastle Upon Tyne,98525559,6043.50,Training Awards - Postgraduates
BEIS,UKRI - BBSRC,09/07/2019,Training Awards - Postgraduates,FG - Accounts & Business Planning,University of Bristol GRANT,98525560,11250.00,Training Awards - Postgraduates
BEIS,UKRI - BBSRC,09/07/2019,Training Awards - Postgraduates,FG - Accounts & Business Planning,University of Leeds,98525561,6043.50,Training Awards - Postgraduates
BEIS,UKRI - BBSRC,09/07/2019,Training Awards - Postgraduates,FG - Accounts & Business Planning,University of Oxford,98525562,5688.00,Training Awards - Postgraduates
BEIS,UKRI - BBSRC,09/07/2019,Training Awards - Postgraduates,FG - Accounts & Business Planning,University of Cambridge,98525563,2332.42,Training Awards - Postgraduates
BEIS,UKRI - BBSRC,09/07/2019,Training Awards - Postgraduates,FG - Accounts & Business Planning,"Royal Holloway, University of London",98525564,920.83,Training Awards - Postgraduates
BEIS,UKRI - BBSRC,09/07/2019,Training Awards - Postgraduates,FG - Accounts & Business Planning,University of Newcastle Upon Tyne,98525565,1428.57,Training Awards - Postgraduates
BEIS,UKRI - BBSRC,09/07/2019,Training Awards - Postgraduates,FG - Accounts & Business Planning,University of Newcastle Upon Tyne,98525566,6445.53,Training Awards - Postgraduates
BEIS,UKRI - BBSRC,09/07/2019,Training Awards - Postgraduates,FG - Accounts & Business Planning,University of Cambridge,98525567,6043.50,Training Awards - Postgraduates
BEIS,UKRI - BBSRC,09/07/2019,Training Awards - Postgraduates,FG - Accounts & Business Planning,Cardiff University,98525568,6138.25,Training Awards - Postgraduates
BEIS,UKRI - BBSRC,09/07/2019,Training Awards - Postgraduates,FG - Accounts & Business Planning,The University of Manchester,98525569,6138.25,Training Awards - Postgraduates
BEIS,UKRI - BBSRC,09/07/2019,Training Awards - Postgraduates,FG - Accounts & Business Planning,University of York,98525570,5699.80,Training Awards - Postgraduates
BEIS,UKRI - BBSRC,09/07/2019,Training Awards - Postgraduates,FG - Accounts & Business Planning,University of Surrey,98525571,6138.25,Training Awards - Postgraduates
BEIS,UKRI - BBSRC,09/07/2019,Training Awards - Postgraduates,FG - Accounts & Business Planning,King's College London,98525572,6669.50,Training Awards - Postgraduates
BEIS,UKRI - BBSRC,09/07/2019,Training Awards - Postgraduates,FG - Accounts & Business Planning,University of Reading,98525573,6138.25,Training Awards - Postgraduates
BEIS,UKRI - BBSRC,09/07/2019,Training Awards - Postgraduates,FG - Accounts & Business Planning,University of Oxford,98525574,6043.50,Training Awards - Postgraduates
BEIS,UKRI - BBSRC,09/07/2019,Training Awards - Postgraduates,FG - Accounts & Business Planning,Quadram Institute Bioscience,98525575,6138.25,Training Awards - Postgraduates
BEIS,UKRI - BBSRC,09/07/2019,Training Awards - Postgraduates,FG - Accounts & Business Planning,University of Warwick,98525576,6138.25,Training Awards - Postgraduates
BEIS,UKRI - BBSRC,09/07/2019,Training Awards - Postgraduates,FG - Accounts & Business Planning,Lancaster University,98525577,5319.81,Training Awards - Postgraduates
BEIS,UKRI - BBSRC,09/07/2019,Training Awards - Postgraduates,FG - Accounts & Business Planning,The University of Manchester,98525578,6138.25,Training Awards - Postgraduates
BEIS,UKRI - BBSRC,09/07/2019,Training Awards - Postgraduates,FG - Accounts & Business Planning,University of Exeter,98525579,6138.25,Training Awards - Postgraduates
BEIS,UKRI - BBSRC,09/07/2019,Training Awards - Postgraduates,FG - Accounts & Business Planning,University of Edinburgh,98525580,6138.25,Training Awards - Postgraduates
BEIS,UKRI - BBSRC,09/07/2019,Training Awards - Postgraduates,FG - Accounts & Business Planning,Heriot Watt University,98525581,6138.25,Training Awards - Postgraduates
BEIS,UKRI - BBSRC,09/07/2019,Training Awards - Postgraduates,FG - Accounts & Business Planning,Abertay University,98525582,6138.25,Training Awards - Postgraduates
BEIS,UKRI - BBSRC,09/07/2019,Training Awards - Postgraduates,FG - Accounts & Business Planning,The University of Manchester,98525583,3069.13,Training Awards - Postgraduates
BEIS,UKRI - BBSRC,09/07/2019,Training Awards - Postgraduates,FG - Accounts & Business Planning,University of Glasgow,98525584,3069.13,Training Awards - Postgraduates
BEIS,UKRI - BBSRC,09/07/2019,Training Awards - Postgraduates,FG - Accounts & Business Planning,John Innes Centre,98525585,5596.53,Training Awards - Postgraduates
BEIS,UKRI - BBSRC,09/07/2019,Training Awards - Postgraduates,FG - Accounts & Business Planning,National Institute For Agricultural Botany (NIAB),98525586,6138.25,Training Awards - Postgraduates
BEIS,UKRI - BBSRC,09/07/2019,Training Awards - Postgraduates,FG - Accounts & Business Planning,Imperial College London,98525587,6638.25,Training Awards - Postgraduates
BEIS,UKRI - BBSRC,09/07/2019,Training Awards - Postgraduates,FG - Accounts & Business Planning,University of Cambridge,98525588,6138.25,Training Awards - Postgraduates
BEIS,UKRI - BBSRC,09/07/2019,Training Awards - Postgraduates,FG - Accounts & Business Planning,National Institute For Agricultural Botany (NIAB),98525589,6138.25,Training Awards - Postgraduates
BEIS,UKRI - BBSRC,09/07/2019,Training Awards - Postgraduates,FG - Accounts & Business Planning,University of Birmingham GRANT,98525590,6138.25,Training Awards - Postgraduates
BEIS,UKRI - BBSRC,09/07/2019,Training Awards - Postgraduates,FG - Accounts & Business Planning,Liverpool John Moores University,98525591,6138.25,Training Awards - Postgraduates
BEIS,UKRI - BBSRC,09/07/2019,Training Awards - Postgraduates,FG - Accounts & Business Planning,University of Exeter,98525592,6138.25,Training Awards - Postgraduates
BEIS,UKRI - BBSRC,09/07/2019,Training Awards - Postgraduates,FG - Accounts & Business Planning,Queen Mary University of London,98525593,6638.25,Training Awards - Postgraduates
BEIS,UKRI - BBSRC,09/07/2019,Training Awards - Postgraduates,FG - Accounts & Business Planning,University of Southampton GRANT,98525594,6043.50,Training Awards - Postgraduates
BEIS,UKRI - BBSRC,09/07/2019,Training Awards - Postgraduates,FG - Accounts & Business Planning,University of Warwick,98525595,6138.25,Training Awards - Postgraduates
BEIS,UKRI - BBSRC,09/07/2019,Training Awards - Postgraduates,FG - Accounts & Business Planning,University of Cambridge,98525596,6138.25,Training Awards - Postgraduates
BEIS,UKRI - BBSRC,09/07/2019,Training Awards - Postgraduates,FG - Accounts & Business Planning,University of Cambridge,98525597,6138.25,Training Awards - Postgraduates
BEIS,UKRI - BBSRC,09/07/2019,Training Awards - Postgraduates,FG - Accounts & Business Planning,University of Glasgow,98525598,6138.25,Training Awards - Postgraduates
BEIS,UKRI - BBSRC,09/07/2019,Training Awards - Postgraduates,FG - Accounts & Business Planning,University of Exeter,98525599,6138.25,Training Awards - Postgraduates
BEIS,UKRI - BBSRC,09/07/2019,Training Awards - Postgraduates,FG - Accounts & Business Planning,University of Cambridge,98525600,6138.25,Training Awards - Postgraduates
BEIS,UKRI - BBSRC,09/07/2019,Training Awards - Postgraduates,FG - Accounts & Business Planning,University of Reading,98525601,6138.25,Training Awards - Postgraduates
BEIS,UKRI - BBSRC,09/07/2019,Training Awards - Postgraduates,FG - Accounts & Business Planning,University of Southampton GRANT,98525602,6138.25,Training Awards - Postgraduates
BEIS,UKRI - BBSRC,09/07/2019,Training Awards - Postgraduates,FG - Accounts & Business Planning,Lancaster University,98525603,6138.25,Training Awards - Postgraduates
BEIS,UKRI - BBSRC,09/07/2019,Training Awards - Postgraduates,FG - Accounts & Business Planning,University of Sheffield,98525604,6138.25,Training Awards - Postgraduates
BEIS,UKRI - BBSRC,09/07/2019,Training Awards - Postgraduates,FG - Accounts & Business Planning,University of Liverpool,98525605,6138.25,Training Awards - Postgraduates
BEIS,UKRI - BBSRC,09/07/2019,Training Awards - Postgraduates,FG - Accounts & Business Planning,University of Liverpool,98525606,6138.25,Training Awards - Postgraduates
BEIS,UKRI - BBSRC,09/07/2019,Training Awards - Postgraduates,FG - Accounts & Business Planning,Queen Mary University of London,98525607,6638.25,Training Awards - Postgraduates
BEIS,UKRI - BBSRC,09/07/2019,Training Awards - Postgraduates,FG - Accounts & Business Planning,University of Southampton GRANT,98525608,6138.25,Training Awards - Postgraduates
BEIS,UKRI - BBSRC,09/07/2019,Training Awards - Postgraduates,FG - Accounts & Business Planning,University of St Andrews,98525609,6138.25,Training Awards - Postgraduates
BEIS,UKRI - BBSRC,09/07/2019,Training Awards - Postgraduates,FG - Accounts & Business Planning,University of Leeds,98525610,6138.25,Training Awards - Postgraduates
BEIS,UKRI - BBSRC,09/07/2019,Training Awards - Postgraduates,FG - Accounts & Business Planning,University of Edinburgh,98525611,6138.25,Training Awards - Postgraduates
BEIS,UKRI - BBSRC,09/07/2019,Training Awards - Postgraduates,FG - Accounts & Business Planning,University of Edinburgh,98525612,6138.25,Training Awards - Postgraduates
BEIS,UKRI - BBSRC,09/07/2019,Training Awards - Postgraduates,FG - Accounts & Business Planning,University of Cambridge,98525613,6138.25,Training Awards - Postgraduates
BEIS,UKRI - BBSRC,09/07/2019,Training Awards - Postgraduates,FG - Accounts & Business Planning,University of Aberdeen,98525614,6138.25,Training Awards - Postgraduates
BEIS,UKRI - BBSRC,09/07/2019,Training Awards - Postgraduates,FG - Accounts & Business Planning,John Innes Centre,98525615,6138.25,Training Awards - Postgraduates
BEIS,UKRI - BBSRC,09/07/2019,Training Awards - Postgraduates,FG - Accounts & Business Planning,University of Bristol GRANT,98525616,6138.25,Training Awards - Postgraduates
BEIS,UKRI - BBSRC,09/07/2019,Training Awards - Postgraduates,FG - Accounts & Business Planning,University of Newcastle Upon Tyne,98525617,6138.25,Training Awards - Postgraduates
BEIS,UKRI - BBSRC,09/07/2019,Training Awards - Postgraduates,FG - Accounts & Business Planning,University of Bristol GRANT,98525618,6138.25,Training Awards - Postgraduates
BEIS,UKRI - BBSRC,09/07/2019,Training Awards - Postgraduates,FG - Accounts & Business Planning,University of Bath,98525619,6138.25,Training Awards - Postgraduates
BEIS,UKRI - BBSRC,09/07/2019,Training Awards - Postgraduates,FG - Accounts & Business Planning,National Institute For Agricultural Botany (NIAB),98525620,4987.33,Training Awards - Postgraduates
BEIS,UKRI - BBSRC,09/07/2019,Training Awards - Postgraduates,FG - Accounts & Business Planning,Imperial College London,98525621,6638.25,Training Awards - Postgraduates
BEIS,UKRI - BBSRC,09/07/2019,Training Awards - Postgraduates,FG - Accounts & Business Planning,Imperial College London,98525622,6638.25,Training Awards - Postgraduates
BEIS,UKRI - BBSRC,09/07/2019,Training Awards - Postgraduates,FG - Accounts & Business Planning,The University of Manchester,98525623,6138.25,Training Awards - Postgraduates
BEIS,UKRI - BBSRC,09/07/2019,Training Awards - Postgraduates,FG - Accounts & Business Planning,Imperial College London,98525624,6638.25,Training Awards - Postgraduates
BEIS,UKRI - BBSRC,09/07/2019,Training Awards - Postgraduates,FG - Accounts & Business Planning,University of Sheffield,98525625,6138.25,Training Awards - Postgraduates
BEIS,UKRI - BBSRC,09/07/2019,Training Awards - Postgraduates,FG - Accounts & Business Planning,University of Edinburgh,98525626,6138.25,Training Awards - Postgraduates
BEIS,UKRI - BBSRC,09/07/2019,Training Awards - Postgraduates,FG - Accounts & Business Planning,University of Cambridge,98525627,6138.25,Training Awards - Postgraduates
BEIS,UKRI - BBSRC,09/07/2019,Training Awards - Postgraduates,FG - Accounts & Business Planning,University of Edinburgh,98525628,6138.25,Training Awards - Postgraduates
BEIS,UKRI - BBSRC,09/07/2019,Training Awards - Postgraduates,FG - Accounts & Business Planning,Imperial College London,98525629,6638.25,Training Awards - Postgraduates
BEIS,UKRI - BBSRC,09/07/2019,Training Awards - Postgraduates,FG - Accounts & Business Planning,"Royal Holloway, University of London",98525630,6638.25,Training Awards - Postgraduates
BEIS,UKRI - BBSRC,09/07/2019,Training Awards - Postgraduates,FG - Accounts & Business Planning,"Royal Holloway, University of London",98525631,6638.25,Training Awards - Postgraduates
BEIS,UKRI - BBSRC,09/07/2019,Training Awards - Postgraduates,FG - Accounts & Business Planning,Imperial College London,98525632,6638.25,Training Awards - Postgraduates
BEIS,UKRI - BBSRC,09/07/2019,Training Awards - Postgraduates,FG - Accounts & Business Planning,Imperial College London,98525633,6263.25,Training Awards - Postgraduates
BEIS,UKRI - BBSRC,09/07/2019,Training Awards - Postgraduates,FG - Accounts & Business Planning,Imperial College London,98525634,6638.25,Training Awards - Postgraduates
BEIS,UKRI - BBSRC,09/07/2019,Training Awards - Postgraduates,FG - Accounts & Business Planning,Imperial College London,98525635,6638.25,Training Awards - Postgraduates
BEIS,UKRI - BBSRC,09/07/2019,Training Awards - Postgraduates,FG - Accounts & Business Planning,Imperial College London,98525636,6638.25,Training Awards - Postgraduates
BEIS,UKRI - BBSRC,09/07/2019,Training Awards - Postgraduates,FG - Accounts & Business Planning,Imperial College London,98525636,6638.25,Training Awards - Postgraduates
BEIS,UKRI - BBSRC,09/07/2019,Training Awards - Postgraduates,FG - Accounts & Business Planning,Imperial College London,98525637,6638.25,Training Awards - Postgraduates
BEIS,UKRI - BBSRC,09/07/2019,Training Awards - Postgraduates,FG - Accounts & Business Planning,The University of Manchester,98525638,6138.25,Training Awards - Postgraduates
BEIS,UKRI - BBSRC,09/07/2019,Training Awards - Postgraduates,FG - Accounts & Business Planning,University of Warwick,98525639,6138.25,Training Awards - Postgraduates
BEIS,UKRI - BBSRC,09/07/2019,Training Awards - Postgraduates,FG - Accounts & Business Planning,University of Sheffield,98525640,6138.25,Training Awards - Postgraduates
BEIS,UKRI - BBSRC,09/07/2019,Training Awards - Postgraduates,FG - Accounts & Business Planning,University of Sheffield,98525641,6138.25,Training Awards - Postgraduates
BEIS,UKRI - BBSRC,09/07/2019,Training Awards - Postgraduates,FG - Accounts & Business Planning,University of Newcastle Upon Tyne,98525642,6138.25,Training Awards - Postgraduates
BEIS,UKRI - BBSRC,09/07/2019,Training Awards - Postgraduates,FG - Accounts & Business Planning,University of Sheffield,98525643,6138.25,Training Awards - Postgraduates
BEIS,UKRI - BBSRC,09/07/2019,Training Awards - Postgraduates,FG - Accounts & Business Planning,The University of Manchester,98525644,6138.25,Training Awards - Postgraduates
BEIS,UKRI - BBSRC,09/07/2019,Training Awards - Postgraduates,FG - Accounts & Business Planning,The University of Manchester,98525645,6138.25,Training Awards - Postgraduates
BEIS,UKRI - BBSRC,09/07/2019,Training Awards - Postgraduates,FG - Accounts & Business Planning,The University of Manchester,98525646,6138.25,Training Awards - Postgraduates
BEIS,UKRI - BBSRC,09/07/2019,Training Awards - Postgraduates,FG - Accounts & Business Planning,The University of Manchester,98525647,6138.25,Training Awards - Postgraduates
BEIS,UKRI - BBSRC,09/07/2019,Training Awards - Postgraduates,FG - Accounts & Business Planning,The University of Manchester,98525648,6138.25,Training Awards - Postgraduates
BEIS,UKRI - BBSRC,09/07/2019,Training Awards - Postgraduates,FG - Accounts & Business Planning,The University of Manchester,98525649,6138.25,Training Awards - Postgraduates
